Transaction Reference,Supplier Name,Line Value,Department,Category,Transaction Date,Year/Period,SME,Costs split between Mid Suffolk and Babergh District Councils Y/N,% of transaction apportioned to Babergh District Council
0000422637,AARON SERVICES LTD,4.65,Voids Maintenance,Repairs,27 Jun 2022,2223/04,SME,N,
0000422637,AARON SERVICES LTD,"24,597.07",Planned Maint - Heating,Property Servicing,27 Jun 2022,2223/04,SME,N,
0000422637,AARON SERVICES LTD,37.14,Planned Maint - Heating,Repairs,27 Jun 2022,2223/04,SME,Y,100%
0000422642,AARON SERVICES LTD,"46,309.48",Planned Maint - Heating,Property Servicing,13 Jul 2022,2223/04,SME,N,
0000422648,AARON SERVICES LTD,"21,385.67",Planned Maint - Heating,Property Servicing,27 Jun 2022,2223/04,SME,N,
0000422651,AARON SERVICES LTD,"16,562.80",Planned Maint - Heating,Property Servicing,27 Jul 2022,2223/04,SME,N,
0000422651,AARON SERVICES LTD,"2,235.75",Voids Maintenance,Repairs,27 Jul 2022,2223/04,SME,N,
0000422652,AARON SERVICES LTD,40.00,Housing Rechargeable Works,Repairs,20 Jul 2022,2223/04,SME,N,
0000422652,AARON SERVICES LTD,"12,272.97",Planned Maint - Heating,Property Servicing,20 Jul 2022,2223/04,SME,N,
0000422652,AARON SERVICES LTD,81.64,Voids Maintenance,Repairs,20 Jul 2022,2223/04,SME,N,
0000360351,ANGLIAN WATER,778.40,Water Sampling,Sampling & Analysis,23 May 2022,2223/04,LGE,N,
0000360861,ANGLIAN WATER,"1,392.38",Water Sampling,Sampling & Analysis,27 Jun 2022,2223/04,LGE,N,
0000361008,BINDER LTD,"1,051.05",Sewage Treatment Works,Contracted Services,27 Jun 2022,2223/04,SME,N,
0000361138,BOWER FULLER,"1,177.56",Sheltered Accommodation,Fire Prevention,30 Jun 2022,2223/04,SME,N,
0000361139,BOWER FULLER,405.32,The Foyer,Fire Prevention,30 Jun 2022,2223/04,SME,N,
0000361140,BOWER FULLER,307.19,Sheltered Accommodation,Fire Prevention,30 Jun 2022,2223/04,SME,N,
0000361141,BOWER FULLER,"21,859.70",Stradbrk Pl-Refurb,Repairs,06 Jul 2022,2223/04,SME,N,
0000360612,BUTTON & TURNER LTD,358.17,Street & Major Road Cleansing,Plant & Vehicle - Other costs,04 May 2022,2223/04,SME,N,
0000360614,BUTTON & TURNER LTD,"1,714.74",Open Spaces,Plant & Vehicle - Other costs,16 May 2022,2223/04,SME,N,
0000361185,AQUASAMPLERS,955.00,Water Sampling,Sampling & Analysis,31 May 2022,2223/04,SME,N,
0000361284,AQUASAMPLERS,717.50,Water Sampling,Sampling & Analysis,30 Jun 2022,2223/04,SME,N,
0000360919,CASTONS,"1,200.00",Public Sector Decarbonisation,Contracted Services,28 Jun 2022,2223/04,SME,Y,40%
0000360955,CENTRAL TYRE LTD,265.00,Street & Major Road Cleansing,Plant & Vehicle - Other costs,01 Jul 2022,2223/04,SME,N,
0000360472,CHIPSIDE LTD,888.33,C Parks General,Contracted Services,31 May 2022,2223/04,SME,N,
0000361000,CHIPSIDE LTD,887.00,C Parks General,Contracted Services,30 Jun 2022,2223/04,SME,N,
0000360855,CLARKE FENCING LTD,607.50,Open Spaces,"Equipment, Tools & Materials",24 Jun 2022,2223/04,SME,N,
0000360984,D W ADAMS LTD,720.00,Building Services,Repairs,04 Jul 2022,2223/04,SME,N,
0000361070,D W ADAMS LTD,"3,905.00",Building Services,Repairs,07 Jul 2022,2223/04,SME,N,
0000361150,D W ADAMS LTD,"4,130.00",Council House Adaptions,Improvements,11 Jul 2022,2223/04,SME,N,
0000361292,D W ADAMS LTD,"4,469.00",Council House Adaptions,Improvements,19 Jul 2022,2223/04,SME,N,
0000361424,DISTRICT COUNCILS' NETWORK,"2,779.00",Management Team,Subscriptions,28 Apr 2022,2223/04,LGE,N,
0000360936,DMA HEALTH AND SAFETY LTD,322.00,Planned Maint - Ext Painting,Prof & Consultancy Fees,30 Jun 2022,2223/04,SME,N,
0000361165,DOLPHIN STAIRLIFTS (EAST ANGLIA) LTD,"5,945.00",Mand Disabled Facilities Grant,Grants,12 Jul 2022,2223/04,SME,N,
0000361343,DOLPHIN STAIRLIFTS (EAST ANGLIA) LTD,"4,767.00",Mand Disabled Facilities Grant,Grants,21 Jul 2022,2223/04,SME,N,
0000361351,DOLPHIN STAIRLIFTS (EAST ANGLIA) LTD,"2,311.00",Mand Disabled Facilities Grant,Grants,22 Jul 2022,2223/04,SME,N,
0000360871,EAST ANGLIA CLEANING SERVICES LTD,"1,489.71",Jnt Waste Contract,General Cleaning,28 Jun 2022,2223/04,SME,Y,50%
0000360872,EAST ANGLIA CLEANING SERVICES LTD,451.47,Open Spaces,General Cleaning,28 Jun 2022,2223/04,SME,N,
0000361276,EAST ANGLIA CLEANING SERVICES LTD,"1,350.18",Jnt Waste Contract,General Cleaning,30 Oct 2020,2223/04,SME,Y,50%
0000361277,EAST ANGLIA CLEANING SERVICES LTD,882.06,Open Spaces,General Cleaning,30 Oct 2020,2223/04,SME,N,
0000361457,EAST ANGLIA CLEANING SERVICES LTD,"1,489.71",Jnt Waste Contract,General Cleaning,28 Jul 2022,2223/04,SME,Y,50%
0000361458,EAST ANGLIA CLEANING SERVICES LTD,451.47,Open Spaces,General Cleaning,28 Jul 2022,2223/04,SME,N,
0000360845,ENVIROVENT LTD,460.00,Building Services,Repairs,24 Jun 2022,2223/04,SME,N,
0000360874,ENVIROVENT LTD,460.00,Building Services,Repairs,24 Jun 2022,2223/04,SME,N,
0000360875,ENVIROVENT LTD,460.00,Building Services,Repairs,24 Jun 2022,2223/04,SME,N,
0000360922,ENVIROVENT LTD,460.00,Building Services,Repairs,27 Jun 2022,2223/04,SME,N,
0000360961,ENVIROVENT LTD,709.00,Building Services,Repairs,29 Jun 2022,2223/04,SME,N,
0000360965,ENVIROVENT LTD,460.00,Building Services,Repairs,27 Jun 2022,2223/04,SME,N,
0000361231,ENVIROVENT LTD,460.00,Major Imps,Repairs,13 Jul 2022,2223/04,SME,N,
0000360846,FELLBRIDGE BUILDING SERVICES,"2,534.70",Building Services,Repairs,27 Jun 2022,2223/04,SME,N,
0000360932,FELLBRIDGE BUILDING SERVICES,"16,654.15",Building Services,Repairs,30 Jun 2022,2223/04,SME,N,
0000360939,FELLBRIDGE BUILDING SERVICES,273.48,Building Services,Repairs,30 Jun 2022,2223/04,SME,N,
0000361007,FELLBRIDGE BUILDING SERVICES,728.23,Building Services,Repairs,04 Jul 2022,2223/04,SME,N,
0000361104,FELLBRIDGE BUILDING SERVICES,"2,878.48",Building Services,Repairs,07 Jul 2022,2223/04,SME,N,
0000361152,FELLBRIDGE BUILDING SERVICES,273.50,Building Services,Repairs,11 Jul 2022,2223/04,SME,N,
0000361153,FELLBRIDGE BUILDING SERVICES,"3,097.92",Insulation Imps,Improvements,11 Jul 2022,2223/04,SME,N,
0000361202,FELLBRIDGE BUILDING SERVICES,"2,240.96",Building Services,Repairs,14 Jul 2022,2223/04,SME,N,
0000361232,FELLBRIDGE BUILDING SERVICES,"3,194.04",Major Imps,Improvements,14 Jul 2022,2223/04,SME,N,
0000360935,FORE-MOST GARAGE DOORS LTD,"1,424.99",Building Services,Repairs,30 Jun 2022,2223/04,SME,N,
0000360821,GHB ROOFING,"3,080.00",Roofing,Improvements,31 May 2022,2223/04,SME,N,
0000360923,GHB ROOFING,"13,968.75",Building Services,Repairs,30 Jun 2022,2223/04,SME,N,
0000360857,HAYES DIGGINS BUILDERS,950.00,Leisure Contract,Repairs,10 May 2022,2223/04,SME,N,
0000360877,JOHN PEEL CENTRE FOR CREATIVE ARTS,"8,000.00",Grants & Contrbns,Grants,27 Jun 2022,2223/04,SME,N,
0000360887,JOHN PEEL CENTRE FOR CREATIVE ARTS,"4,000.00",Community Wellbeing,Grants,27 Jun 2022,2223/04,SME,N,
0000360802,KEYWAYS THE LOCKSMITHS LTD,640.00,Verneuil Avenue,Misc Premises Costs,24 Jun 2022,2223/04,SME,N,
0000360805,KEYWAYS THE LOCKSMITHS LTD,445.00,Temporary Accommodation,Misc Premises Costs,24 Jun 2022,2223/04,SME,N,
0000361081,LJ GAMMER (STOWMARKET) LTD,309.35,Building Services,Plant & Vehicle - Other costs,07 Jul 2022,2223/04,SME,N,
0000361206,M & H CIVIL ENGINEERING LTD,716.20,Building Services,Repairs,13 Jul 2022,2223/04,SME,N,
0000361207,M & H CIVIL ENGINEERING LTD,638.25,Building Services,Repairs,13 Jul 2022,2223/04,SME,N,
0000360873,MALJON TIMBER PRESERVATION LTD,689.00,Building Services,Repairs,26 Apr 2022,2223/04,SME,N,
0000361198,MARTIN BROKERS ( UK ) PLC,"1,008.22",Treasury Management,Prof & Consultancy Fees,30 Jun 2022,2223/04,LGE,N,
0000360960,MATERIAL CHANGE COMPOSTING LTD,599.94,Open Spaces,Waste Disposal,30 Jun 2022,2223/04,LGE,N,
0000361085,MB TREES (EAST ANGLIA) LTD,640.00,Public Tree Programme,Tree felling/maintenance,07 Jul 2022,2223/04,SME,N,
0000361086,MB TREES (EAST ANGLIA) LTD,480.00,Amenity Areas,Tree felling/maintenance,07 Jul 2022,2223/04,SME,N,
0000361087,MB TREES (EAST ANGLIA) LTD,720.00,Public Tree Programme,Tree felling/maintenance,07 Jul 2022,2223/04,SME,N,
0000361088,MB TREES (EAST ANGLIA) LTD,780.00,Sheltered Accommodation,Grounds & Site Maintenance,07 Jul 2022,2223/04,SME,N,
0000361308,MB TREES (EAST ANGLIA) LTD,780.00,Amenity Areas,Tree felling/maintenance,14 Jul 2022,2223/04,SME,N,
0000361309,MB TREES (EAST ANGLIA) LTD,360.00,Public Tree Programme,Tree felling/maintenance,14 Jul 2022,2223/04,SME,N,
0000361310,MB TREES (EAST ANGLIA) LTD,480.00,Amenity Areas,Tree felling/maintenance,14 Jul 2022,2223/04,SME,N,
0000361311,MB TREES (EAST ANGLIA) LTD,620.00,Amenity Areas,Tree felling/maintenance,14 Jul 2022,2223/04,SME,N,
0000361344,MB TREES (EAST ANGLIA) LTD,"1,840.00",Public Tree Programme,Tree felling/maintenance,21 Jul 2022,2223/04,SME,N,
0000361345,MB TREES (EAST ANGLIA) LTD,280.00,Amenity Areas,Tree felling/maintenance,21 Jul 2022,2223/04,SME,N,
0000361409,MB TREES (EAST ANGLIA) LTD,"1,858.20",Public Tree Programme,Tree felling/maintenance,26 Jul 2022,2223/04,SME,N,
0000360832,MID SUFFOLK FENCING LTD,"1,851.00",Building Services,Repairs,24 Jun 2022,2223/04,SME,N,
0000360833,MID SUFFOLK FENCING LTD,"1,295.00",Building Services,Repairs,24 Jun 2022,2223/04,SME,N,
0000361162,MID SUFFOLK FENCING LTD,986.00,Building Services,Repairs,11 Jul 2022,2223/04,SME,N,
0000361181,MID SUFFOLK FENCING LTD,"1,115.00","Fences, Gates and Walls",BMBS Repairs Work,11 Jul 2022,2223/04,SME,N,
0000361220,MID SUFFOLK FENCING LTD,"3,554.00","Fences, Gates and Walls",BMBS Repairs Work,14 Jul 2022,2223/04,SME,N,
0000361278,PRO-FLAT SPECIALIST SERVICES LTD,627.00,Building Services,Repairs,18 Jul 2022,2223/04,SME,N,
0000360856,REID PLUMBING & HEATING CONTRACTORS LTD,"10,131.32",Central Heating,Major Contracts,28 Jun 2022,2223/04,SME,N,
0000360999,REID PLUMBING & HEATING CONTRACTORS LTD,"18,204.90",Central Heating,Major Contracts,04 Jul 2022,2223/04,SME,N,
0000361100,REID PLUMBING & HEATING CONTRACTORS LTD,"14,815.03",Central Heating,Major Contracts,06 Jul 2022,2223/04,SME,N,
0000361171,REID PLUMBING & HEATING CONTRACTORS LTD,"8,646.55",Central Heating,Major Contracts,12 Jul 2022,2223/04,SME,N,
0000361098,NBS ENTERPRISES LTD,"1,939.58",Building Services,Software Licnse (Line of Bus) ,30 Jun 2022,2223/04,SME,Y,50%
0000361099,NBS ENTERPRISES LTD,"2,745.00",Building Services,Software Licnse (Line of Bus) ,31 Jan 2022,2223/04,SME,Y,50%
0000360926,SACKERS LTD,"2,023.57",Building Services,Waste Disposal,30 Jun 2022,2223/04,SME,Y,50%
0000360962,SACKERS LTD,651.52,Building Services,Waste Disposal,30 Jun 2022,2223/04,SME,Y,50%
0000360822,SEAGER HOME SOLUTIONS,"10,551.71",Building Services,Repairs,24 Jun 2022,2223/04,SME,N,
0000360930,SEAGER HOME SOLUTIONS,"5,803.00",Mand Disabled Facilities Grant,Grants,30 Jun 2022,2223/04,SME,N,
0000361096,SEAGER HOME SOLUTIONS,"9,676.73",Building Services,Repairs,06 Jul 2022,2223/04,SME,N,
0000361184,SOLACE GROUP LTD,"1,235.20",Organisational Devt,Training,30 Jun 2022,2223/04,SME,Y,50%
0000361249,SUDBURY OFFICE SUPPLIES,431.28,Management Team,Stationery,13 Jul 2022,2223/04,SME,Y,50%
0000360947,SUFFOLK POLICE & CRIME COMMISSIONER,"304,649.86",CIL Funded REFCUS,Grants,01 Jul 2022,2223/04,LGE,N,
0000361216,SUREFIX,350.00,Major Imps,Improvements,28 Jun 2022,2223/04,SME,N,
0000361274,SUREFIX,"3,019.44",Major Imps,Improvements,06 Jul 2022,2223/04,SME,N,
0000360979,TANKCHANGE LTD,375.00,Central Heating,Improvements,20 Jun 2022,2223/04,SME,N,
0000360980,TANKCHANGE LTD,375.00,Central Heating,Improvements,20 Jun 2022,2223/04,SME,N,
0000360933,TDT ENTERPRISES LTD,"1,044.00",Temporary Accommodation,Misc Supplies & Services Costs,30 Jun 2022,2223/04,SME,N,
0000361027,THERMATECH,"2,480.00",Sheltered Accommodation,Fire Prevention,05 Jul 2022,2223/04,SME,N,
0000361236,THERMATECH,"1,930.00",Sheltered Accommodation,Fire Prevention,15 Jul 2022,2223/04,SME,N,
0000361237,THERMATECH,350.00,Sheltered Accommodation,Fire Prevention,15 Jul 2022,2223/04,SME,N,
0000361238,THERMATECH,475.00,Needham HQ S106 Units,Prof & Consultancy Fees,15 Jul 2022,2223/04,SME,N,
0000361103,TRUCKEAST LTD,"2,341.41",Open Spaces,Plant & Vehicle - Other costs,07 Jul 2022,2223/04,LGE,N,
0000360778,WINDIMAN LTD,"1,185.00",Major Imps,Improvements,23 Jun 2022,2223/04,SME,N,
0000360783,WINDIMAN LTD,976.93,Building Services,Repairs,12 May 2022,2223/04,SME,N,
0000360849,WINDIMAN LTD,760.00,Major Imps,Improvements,27 Jun 2022,2223/04,SME,N,
0000360913,WINDIMAN LTD,800.00,Building Services,Repairs,29 Jun 2022,2223/04,SME,N,
0000361105,WINDIMAN LTD,700.00,Window & Door Rplcmts,Improvements,07 Jul 2022,2223/04,SME,N,
0000361110,WINDIMAN LTD,760.00,Building Services,Repairs,07 Jul 2022,2223/04,SME,N,
0000361299,WINDIMAN LTD,380.00,Building Services,Repairs,19 Jul 2022,2223/04,SME,N,
0000361300,WINDIMAN LTD,817.07,Major Imps,Improvements,19 Jul 2022,2223/04,SME,N,
0000361347,WINDIMAN LTD,"1,920.00",Major Imps,Improvements,21 Jul 2022,2223/04,SME,N,
0000360914,ARCHANT COMMUNITY MEDIA LTD,662.83,Devt Management - Apps,Advertising&mkting (non-staff),25 Jun 2022,2223/04,LGE,N,
0000360993,ARCHANT COMMUNITY MEDIA LTD,610.30,Devt Management - Apps,Advertising&mkting (non-staff),30 Jun 2022,2223/04,LGE,N,
0000361156,ARCHANT COMMUNITY MEDIA LTD,767.89,Devt Management - Apps,Advertising&mkting (non-staff),09 Jul 2022,2223/04,LGE,N,
0000361262,ARCHANT COMMUNITY MEDIA LTD,610.30,Devt Management - Apps,Advertising&mkting (non-staff),16 Jul 2022,2223/04,LGE,N,
0000361459,ARCHANT COMMUNITY MEDIA LTD,794.15,Devt Management - Apps,Advertising&mkting (non-staff),23 Jul 2022,2223/04,LGE,N,
0000360988,LABC EAST ANGLIA,570.00,Bldg Regs Chargeable Serv,Subscriptions,09 Jun 2022,2223/04,SME,Y,45%
0000360898,SPORTS & LEISURE MANAGEMENT LTD,"62,499.99",Leisure Contract,Contributions to other Bodies,08 Jun 2022,2223/04,LGE,N,
0000361230,SPORTS & LEISURE MANAGEMENT LTD,"20,833.33",Leisure Contract,Contributions to other Bodies,15 Jul 2022,2223/04,LGE,N,
0000360453,ESSEX COUNTY COUNCIL,883.20,Pre App Charging,Ecology Consultancy,07 Jun 2022,2223/04,LGE,N,
0000360454,ESSEX COUNTY COUNCIL,"2,105.40",Pre App Charging,Ecology Consultancy,07 Jun 2022,2223/04,LGE,N,
0000361068,ESSEX COUNTY COUNCIL,"4,344.55",Conservation,Prof & Consultancy Fees,06 Jul 2022,2223/04,LGE,N,
0000361069,ESSEX COUNTY COUNCIL,"2,560.00",Pre App Charging,Heritage Consultancy ,06 Jul 2022,2223/04,LGE,N,
0000361397,ESSEX COUNTY COUNCIL,"7,068.00",Devt Management - Apps,Ecology Consultancy,25 Jul 2022,2223/04,LGE,N,
0000361419,ESSEX COUNTY COUNCIL,"1,800.00",Pre App Charging,Landscape Consultancy,26 Jul 2022,2223/04,LGE,N,
0000361420,ESSEX COUNTY COUNCIL,"7,076.00",Devt Management - Apps,Landscape Consultancy,26 Jul 2022,2223/04,LGE,N,
0000360910,IDOX SOFTWARE LTD,800.00,Devt Management - Apps,Training,29 Jun 2022,2223/04,SME,Y,50%
0000361095,DARDAN SECURITY,430.00,Wingfield Barns,Annual Bldg Maint Contracts,30 Jun 2022,2223/04,LGE,N,
0000360963,NPS PROPERTY CONSULTANTS LTD,"1,925.00",Assets & Development,Prof & Consultancy Fees,30 Jun 2022,2223/04,LGE,N,
0000361065,BUILDBASE,253.80,Open Spaces,"Equipment, Tools & Materials",30 Jun 2022,2223/04,LGE,N,
0000361320,SERCO LTD,"4,587.00",Domestic Waste,Refuse Contract,12 Jul 2022,2223/04,LGE,Y,50%
0000361321,SERCO LTD,"320,710.50",Domestic Waste,Refuse Contract,12 Jul 2022,2223/04,LGE,Y,48%
0000361321,SERCO LTD,"85,522.80",Garden Waste,Refuse Contract,12 Jul 2022,2223/04,LGE,Y,47.5%
0000361321,SERCO LTD,"21,380.70",Trade Waste,Refuse Contract,12 Jul 2022,2223/04,LGE,Y,60%
0000361325,SERCO LTD,"10,000.00",Jnt Waste Contract,Plant & Vehicle Fuel,12 Jul 2022,2223/04,LGE,Y,50%
0000361194,TRAVIS PERKINS TRADING CO LTD,"50,037.21",Building Services,"Equipment, Tools & Materials",30 Jun 2022,2223/04,LGE,Y,64%
0000422634,EDF ENERGY,39.96,Open Spaces,Electricity,25 Jun 2022,2223/04,LGE,N,
0000422634,EDF ENERGY,90.28,Other HRA Temp Accommodation,Electricity,25 Jun 2022,2223/04,LGE,N,
0000422634,EDF ENERGY,39.20,Public Conveniences,Electricity,25 Jun 2022,2223/04,LGE,N,
0000422634,EDF ENERGY,114.60,Sewage Treatment Works,Electricity,25 Jun 2022,2223/04,LGE,N,
0000422634,EDF ENERGY,45.63,Sheltered Accommodation,Electricity,25 Jun 2022,2223/04,LGE,N,
0000422634,EDF ENERGY,125.41,Temporary Accommodation,Electricity,25 Jun 2022,2223/04,LGE,N,
0000422634,EDF ENERGY,755.46,Tenancy Services,Electricity,25 Jun 2022,2223/04,LGE,N,
0000360881,RURAL COFFEE CARAVAN INFORMATION PROJECT,"5,000.00",Community Wellbeing,Grants,27 Jun 2022,2223/04,SME,N,
0000361196,ERNST & YOUNG LLP,"16,520.00",Ext Audit,Audit Fees,11 Jul 2022,2223/04,LGE,N,
0000422643,GPC BARCLAYS,"7,238.56",Current Assets,Barclaycard Control,14 Jul 2022,2223/04,LGE,Y,5%
0000422631,ALLSTAR BUSINESS SOLUTIONS LTD,112.28,Housing Options,Plant & Vehicle Fuel,30 Jun 2022,2223/04,SME,Y,50%
0000422631,ALLSTAR BUSINESS SOLUTIONS LTD,"8,731.01",Building Services,Plant & Vehicle Fuel,30 Jun 2022,2223/04,SME,Y,50%
0000422626,COMPUTERSHARE ,"1,060.00",Current Assets,ChildCare Vouchers-Control,28 Jun 2022,2223/04,LGE,N,
0000360890,ASSOCIATION FOR SUFFOLK MUSEUMS,500.00,Community Wellbeing,Grants,27 Jun 2022,2223/04,SME,N,
0000360893,DEBENHAM VILLAGE HALL & PLAYING FIELD TR,"2,500.00",Community Wellbeing,Grants,27 Jun 2022,2223/04,SME,N,
0000361227,DENHAM PARISH COUNCIL,"4,337.60",Community Wellbeing,Grants,15 Jul 2022,2223/04,SME,N,
0000360905,DRINKSTONE PARISH COUNCIL,"2,500.00",Grants & Contrbns,Contributions & Donations,28 Jun 2022,2223/04,SME,N,
0000361352,ELMSWELL PARISH COUNCIL,"19,593.81",CIL Funded REFCUS,Grants,22 Jul 2022,2223/04,SME,N,
0000361130,EYE TOWN COUNCIL,885.00,RHSSF,Misc Supplies & Services Costs,08 Jul 2022,2223/04,SME,N,
0000360892,HOME -START MID SUFFOLK,"1,000.00",Community Wellbeing,Grants,27 Jun 2022,2223/04,SME,N,
0000360894,LIGHTHOUSE WOMENS AID LTD,"2,000.00",Community Wellbeing,Grants,27 Jun 2022,2223/04,SME,N,
0000360895,MID SUFFOLK AXIS,500.00,Community Wellbeing,Grants,27 Jun 2022,2223/04,SME,N,
0000361229,MID SUFFOLK VOLUNTARY ORGANISATIONS FORU,"1,000.00",Grants & Contrbns,Grants,15 Jul 2022,2223/04,SME,N,
0000361280,ST PETER AND ST MARY'S CHURCH PCC,576.00,Grants & Contrbns,Contributions & Donations,19 Jul 2022,2223/04,SME,N,
0000360888,STREET FORGE WORKSHOPS,500.00,Community Wellbeing,Grants,27 Jun 2022,2223/04,SME,N,
0000360883,SUFFOLK ACCIDENT RESCUE SERVICE,500.00,Community Wellbeing,Grants,27 Jun 2022,2223/04,SME,N,
0000360891,SUFFOLK ARTLINK,"1,000.00",Community Wellbeing,Grants,27 Jun 2022,2223/04,SME,N,
0000360880,SUFFOLK WEST CITIZENS ADVICE BUREAU,540.00,Community Wellbeing,Grants,27 Jun 2022,2223/04,SME,N,
0000361248,WINGFIELD BARNS CIC,833.34,Holiday Activity Fund,"Equipment, Tools & Materials",18 Jul 2022,2223/04,SME,N,
0000361306,WYVERSTONE VILLAGE HALL COMMITTEE,600.00,Grants & Contrbns,Contributions & Donations,19 Jul 2022,2223/04,SME,N,
0000359281,SUFFOLK COUNTY COUNCIL,"9,918.00",Organisational Devt,Recruitment,08 Apr 2022,2223/04,LGE,Y,50%
0000360305,SUFFOLK COUNTY COUNCIL,"5,255.00",Organisational Devt,Recruitment,25 May 2022,2223/04,LGE,Y,50%
0000361042,SUFFOLK COUNTY COUNCIL,"1,795.00",Land Chgs,Contracted Services,05 Jul 2022,2223/04,LGE,N,
0000361080,SUFFOLK COUNTY COUNCIL,"8,518.09",Domestic Waste,MRF Disposal,06 Jul 2022,2223/04,LGE,N,
0000361080,SUFFOLK COUNTY COUNCIL,"27,389.88",Garden Waste,Garden Waste Disposal,06 Jul 2022,2223/04,LGE,N,
0000361091,SUFFOLK COUNTY COUNCIL,833.00,Current Assets,AR Refunds,07 Jul 2022,2223/04,LGE,N,
0000360860,FENN WRIGHT LLP,675.00,General/Supervision & Mgmt,Prof & Consultancy Fees,28 Jun 2022,2223/04,SME,N,
0000361201,STOWMARKET TOWN COUNCIL,"1,086.75",BRRP-MarketTownVision&Invest,Prof & Consultancy Fees,31 Mar 2022,2223/04,SME,N,
0000361421,TELEFONICA UK LIMITED - O2,"1,458.24",ICT,Telephone Costs,27 Jul 2022,2223/04,LGE,Y,50%
0000360835,KENNET EQUIPMENT LEASING,283.05,Creeting Rd Depot,Operating Lease Payments,27 Jun 2022,2223/04,SME,Y,50%
0000361064,ZURICH MUNICIPAL,315.00,Building Services,Premises Insurance Excess,30 Jun 2022,2223/04,LGE,N,
0000361089,EAST OF ENGLAND CO-OPERATIVE SOCIETY LTD,"2,000.00",Electoral Registration,Returning Officer Fees,30 May 2022,2223/04,LGE,Y,50%
0000361097,EAST OF ENGLAND CO-OPERATIVE SOCIETY LTD,"1,375.00",Publice Health Funerals,Public Health Funerals,28 Jun 2022,2223/04,LGE,N,
0000422646,GAZPROM ENERGY,15.37,"11 Market Place, Stowmarket",Gas,21 Jul 2022,2223/04,SME,N,
0000422646,GAZPROM ENERGY,92.81,Creeting Rd Depot,Gas,21 Jul 2022,2223/04,SME,Y,50%
0000422646,GAZPROM ENERGY,27.95,Headquarters General,Gas,21 Jul 2022,2223/04,SME,N,
0000422646,GAZPROM ENERGY,"9,711.11",Leisure Contract,Gas,21 Jul 2022,2223/04,SME,N,
0000422646,GAZPROM ENERGY,31.25,Pure Gym & Adjacent Building,Gas,21 Jul 2022,2223/04,SME,N,
0000422646,GAZPROM ENERGY,"3,790.85",Sheltered Accommodation,Gas,21 Jul 2022,2223/04,SME,N,
0000422646,GAZPROM ENERGY,635.15,Temporary Accommodation,Gas,21 Jul 2022,2223/04,SME,N,
0000422646,GAZPROM ENERGY,367.15,Tenancy Services,Gas,21 Jul 2022,2223/04,SME,N,
0000360633,PREMIER BODYWORKS,378.57,Open Spaces,Plant & Vehicle - Other costs,14 Jun 2022,2223/04,SME,N,
0000360879,MID SUFFOLK CITIZENS ADVICE BUREAU,"30,000.00",Community Wellbeing,Grants,27 Jun 2022,2223/04,SME,N,
0000360948,SUFFOLK COUNTY COUNCIL - (MAPPING),358.16,Footpaths,Misc Supplies & Services Costs,30 Jun 2022,2223/04,LGE,N,
0000361026,ERNEST DOE & SONS LTD,"1,843.24",Building Services,Repairs,09 Jun 2022,2223/04,LGE,Y,50%
0000361408,TEMPLE GROUP LTD,"2,245.00",Stowmarket Middle School,Prof & Consultancy Fees,18 Jul 2022,2223/04,SME,N,
0000361158,WHYBROW PROPERTY SOLUTIONS LTD,"10,000.00",Building Services,Repairs,06 May 2022,2223/04,SME,N,
0000361159,WHYBROW PROPERTY SOLUTIONS LTD,"12,172.42",Building Services,Repairs,20 May 2022,2223/04,SME,N,
0000361195,WHYBROW PROPERTY SOLUTIONS LTD,496.99,Council House Adaptions,Improvements,11 Jul 2022,2223/04,SME,N,
0000360918,L A C CLEANING CONTRACTORS LIMITED,885.25,Insulation Imps,Improvements,29 Jun 2022,2223/04,SME,N,
0000361090,L A C CLEANING CONTRACTORS LIMITED,"1,192.50",Insulation Imps,Improvements,07 Jul 2022,2223/04,SME,N,
0000361273,LONDON SOUTH BANK UNIVERSITY,"6,935.00",Organisational Devt,Training,08 Oct 2021,2223/04,LGE,Y,50%
0000360889,THE MIX STOWMARKET LTD,"4,788.00",Community Wellbeing,Grants,27 Jun 2022,2223/04,SME,N,
0000361272,THE MIX STOWMARKET LTD,"6,050.00",Holiday Activity Fund,"Equipment, Tools & Materials",19 Jul 2022,2223/04,SME,N,
0000361290,THE MIX STOWMARKET LTD,"10,900.00",Grants & Contrbns,Contributions & Donations,19 Jul 2022,2223/04,SME,N,
0000422624,BT DIRECT DEBIT,"11,183.77",ICT,Telephone Costs,21 Jun 2022,2223/04,LGE,Y,50%
0000360920,TRADITION (UK) LTD,"9,630.14",Treasury Management,Prof & Consultancy Fees,30 Jun 2022,2223/04,LGE,N,
0000361197,STOWE VETERINARY GROUP,374.72,Animal Welfare Licensing,Prof & Consultancy Fees,14 Jul 2022,2223/04,SME,N,
0000360906,1ST THURSTON SCOUT GROUP,500.00,Grants & Contrbns,Contributions & Donations,28 Jun 2022,2223/04,SME,N,
0000360908,ORSIS UK LTD,"4,902.00",PV Panels,Contracted Services,29 Jun 2022,2223/04,SME,N,
0000361233,TAYLOR COMMERCIALS LTD,293.75,Street & Major Road Cleansing,Plant & Vehicle - Other costs,05 Jul 2022,2223/04,SME,N,
0000361234,TAYLOR COMMERCIALS LTD,293.75,Open Spaces,Plant & Vehicle - Other costs,07 Jul 2022,2223/04,SME,N,
0000361430,DALROD (UK) LTD,392.00,Creeting Rd Depot,Grounds & Site Maintenance,27 Jul 2022,2223/04,SME,Y,50%
0000361431,DALROD (UK) LTD,465.00,Creeting Rd Depot,Grounds & Site Maintenance,27 Jul 2022,2223/04,SME,Y,50%
0000361148,OPUS PEOPLE SOLUTIONS LTD,405.28,Current Liabilities,Agency Staff Holding A/C,30 Jun 2022,2223/04,SME,N,
0000361149,OPUS PEOPLE SOLUTIONS LTD,316.10,Current Liabilities,Agency Staff Holding A/C,07 Jul 2022,2223/04,SME,N,
0000361047,CORNERSTONE BARRISTERS,"1,575.00",Devt Management - Apps,Legal ex - Crt challenge relat,06 Jul 2022,2223/04,SME,N,
0000361048,CORNERSTONE BARRISTERS,"1,300.00",Devt Management - Apps,Legal ex - Crt challenge relat,28 Apr 2022,2223/04,SME,N,
0000361368,CORNERSTONE BARRISTERS,"1,100.00",Devt Management - Apps,Legal Expenses,22 Jul 2022,2223/04,SME,N,
0000361094,VERTAS GROUP LTD,"1,440.00",Assets & Development,Security Systems,30 Jun 2022,2223/04,SME,N,
0000361169,BIRKETTS LLP,"2,584.00",Organisational Devt,Legal Expenses,31 May 2022,2223/04,LGE,Y,50%
0000361416,BIRKETTS LLP,"1,020.00",BMS Invest,Legal Expenses,25 Jul 2022,2223/04,LGE,Y,50%
0000361123,GALLAGHER CAR & VAN RENTALS LTD,"1,400.00",Domestic Waste,Refuse Contract,08 Jul 2022,2223/04,LGE,N,
0000361124,GALLAGHER CAR & VAN RENTALS LTD,"1,232.00",Domestic Waste,Refuse Contract,08 Jul 2022,2223/04,LGE,N,
0000360823,CIRRUS RESEARCH PLC,"1,242.00",Environmental Protection,Contracted Services,23 Jun 2022,2223/04,SME,Y,50%
0000361127,FORESOLUTIONS LTD,254.38,Open Spaces,Plant & Vehicle - Other costs,08 Jul 2022,2223/04,SME,N,
0000360904,BRAMFORD PLAYING FIELD MANAGEMENT COMMIT,"1,000.00",Grants & Contrbns,Contributions & Donations,28 Jun 2022,2223/04,SME,N,
0000360865,BADWELL ASH PLAYING FIELD & RECREATION G,"1,896.00",Community Wellbeing,Grants,27 Jun 2022,2223/04,SME,N,
0000360903,RATTLESDEN PAROCHIAL CHURCH COUNCIL,380.00,Grants & Contrbns,Contributions & Donations,28 Jun 2022,2223/04,SME,N,
0000360989,HAYS SPECIALIST RECRUITMENT LTD,"6,992.00",PP&I,Recruitment,01 Jul 2022,2223/04,LGE,Y,50%
0000360944,RICHARD UTTING ASSOCIATES LLP,"2,055.00",Eves Meadow Haughley S106,Prof & Consultancy Fees,30 Jun 2022,2223/04,SME,N,
0000361193,RICHARD UTTING ASSOCIATES LLP,"1,293.23","Green Road, Woolpit",Prof & Consultancy Fees,30 Jun 2022,2223/04,SME,N,
0000361265,RICHARD UTTING ASSOCIATES LLP,"1,787.20",Needham Market Middle School,Prof & Consultancy Fees,30 Jun 2022,2223/04,SME,N,
0000361266,RICHARD UTTING ASSOCIATES LLP,"2,124.74",Stowmarket Middle School,Prof & Consultancy Fees,30 Jun 2022,2223/04,SME,N,
0000361012,THE STOWMARKET GLASS COMPANY LTD,"1,169.69",Building Services,Repairs,01 Jun 2022,2223/04,SME,N,
0000361013,THE STOWMARKET GLASS COMPANY LTD,400.00,Building Services,Repairs,13 Jun 2022,2223/04,SME,N,
0000361014,THE STOWMARKET GLASS COMPANY LTD,674.79,Building Services,Repairs,13 Jun 2022,2223/04,SME,N,
0000361240,THE OFFSHOOT FOUNDATION,"1,878.00",Holiday Activity Fund,"Equipment, Tools & Materials",17 Jul 2022,2223/04,SME,N,
0000361188,THE OYSTER PARTNERSHIP LTD,"1,770.00",General/Supervision & Mgmt,Agency Staff,13 Jul 2022,2223/04,SME,Y,50%
0000361189,THE OYSTER PARTNERSHIP LTD,"3,150.00",General/Supervision & Mgmt,Agency Staff,13 Jul 2022,2223/04,SME,Y,50%
0000361190,THE OYSTER PARTNERSHIP LTD,"2,450.00",General/Supervision & Mgmt,Agency Staff,13 Jul 2022,2223/04,SME,Y,50%
0000361322,THE OYSTER PARTNERSHIP LTD,"1,770.00",General/Supervision & Mgmt,Agency Staff,20 Jul 2022,2223/04,SME,Y,50%
0000361323,THE OYSTER PARTNERSHIP LTD,"3,150.00",General/Supervision & Mgmt,Agency Staff,20 Jul 2022,2223/04,SME,Y,50%
0000361324,THE OYSTER PARTNERSHIP LTD,"2,450.00",General/Supervision & Mgmt,Agency Staff,20 Jul 2022,2223/04,SME,Y,50%
0000361432,THE OYSTER PARTNERSHIP LTD,"1,770.00",General/Supervision & Mgmt,Agency Staff,27 Jul 2022,2223/04,SME,Y,50%
0000361433,THE OYSTER PARTNERSHIP LTD,"3,150.00",General/Supervision & Mgmt,Agency Staff,27 Jul 2022,2223/04,SME,Y,50%
0000361434,THE OYSTER PARTNERSHIP LTD,"2,450.00",General/Supervision & Mgmt,Agency Staff,27 Jul 2022,2223/04,SME,Y,50%
0000422636,RIX PETROLEUM (EAST ANGLIA) LTD,"9,284.49",Open Spaces,Plant & Vehicle Fuel,04 Jul 2022,2223/04,SME,N,
0000361054,VIVID RESOURCING,"4,560.00",Business Cont/Emergency Plan,Contracted Services,06 Jul 2022,2223/04,SME,Y,50%
0000361187,VIVID RESOURCING,"2,280.00",Business Cont/Emergency Plan,Contracted Services,13 Jul 2022,2223/04,SME,Y,50%
0000361333,VIVID RESOURCING,"2,463.45",Business Cont/Emergency Plan,Contracted Services,20 Jul 2022,2223/04,SME,Y,50%
0000361429,VIVID RESOURCING,"2,280.00",Business Cont/Emergency Plan,Contracted Services,27 Jul 2022,2223/04,SME,Y,50%
0000359660,GIPPING OCCUPATIONAL HEALTH LTD,420.00,Organisational Devt,Contracted Services,26 Apr 2022,2223/04,SME,Y,50%
0000360496,PARK AVENUE RECRUITMENT LTD,"1,025.00",Devt Management - Apps,Prof & Consultancy Fees,24 May 2022,2223/04,SME,Y,46%
0000361369,PARK AVENUE RECRUITMENT LTD,"1,373.50",Devt Management - Apps,Prof & Consultancy Fees,14 Jun 2022,2223/04,SME,Y,46%
0000361370,PARK AVENUE RECRUITMENT LTD,"1,066.00",Devt Management - Apps,Prof & Consultancy Fees,28 Jun 2022,2223/04,SME,Y,50%
0000361167,JOHN FORD GROUP LTD,"19,914.50",Mand Disabled Facilities Grant,Grants,12 Jul 2022,2223/04,SME,N,
0000360896,HOME-START IN SUFFOLK,"1,000.00",Community Wellbeing,Grants,27 Jun 2022,2223/04,SME,N,
0000361028,PORTAL PLAN QUEST LTD,462.00,Devt Management - Apps,Planning Fees,05 Jul 2022,2223/04,SME,N,
0000361452,PORTAL PLAN QUEST LTD,462.00,Devt Management - Apps,Planning Fees,28 Jul 2022,2223/04,SME,N,
0000361453,PORTAL PLAN QUEST LTD,462.00,Devt Management - Apps,Planning Fees,28 Jul 2022,2223/04,SME,N,
0000361367,ABBEYCROFT LEISURE,"12,423.92",Holiday Activity Fund,"Equipment, Tools & Materials",22 Jul 2022,2223/04,LGE,N,
0000360858,SUFFOLK POWER EQUIPMENT,734.92,Open Spaces,Plant & Vehicle - Other costs,27 Jun 2022,2223/04,ST,N,
0000361250,SUFFOLK POWER EQUIPMENT,708.12,Open Spaces,Plant & Vehicle - Other costs,18 Jul 2022,2223/04,ST,N,
0000361251,SUFFOLK POWER EQUIPMENT,736.20,Open Spaces,Plant & Vehicle - Other costs,18 Jul 2022,2223/04,ST,N,
0000361252,SUFFOLK POWER EQUIPMENT,467.83,Open Spaces,Plant & Vehicle - Other costs,18 Jul 2022,2223/04,ST,N,
0000360982,3 POINT PROPERTY MANAGEMENT LTD,895.00,Guaranteed Rent Scheme,Rent Payable,04 Jul 2022,2223/04,SME,N,
0000361059,3 POINT PROPERTY MANAGEMENT LTD,675.00,Guaranteed Rent Scheme,Rent Payable,07 Jul 2022,2223/04,SME,N,
0000361164,DG ACCESSIBLE DESIGNS,"3,726.77",Mand Disabled Facilities Grant,Grants,12 Jul 2022,2223/04,SME,N,
0000360971,WASHCO LTD,467.00,Sheltered Accommodation,"Equipment, Tools & Materials",01 Jul 2022,2223/04,SME,N,
0000360981,ANGLIA COMMERCIAL FLOORING LTD,502.86,Building Services,Repairs,12 Jan 2022,2223/04,SME,N,
0000361073,ANGLIA COMMERCIAL FLOORING LTD,642.06,Building Services,Repairs,07 Jul 2022,2223/04,SME,N,
0000361074,ANGLIA COMMERCIAL FLOORING LTD,431.61,Building Services,Repairs,07 Jul 2022,2223/04,SME,N,
0000361112,ANGLIA COMMERCIAL FLOORING LTD,355.29,Building Services,Repairs,07 Jul 2022,2223/04,SME,N,
0000361114,ANGLIA COMMERCIAL FLOORING LTD,320.40,Building Services,Repairs,07 Jul 2022,2223/04,SME,N,
0000361115,ANGLIA COMMERCIAL FLOORING LTD,847.23,Building Services,Repairs,07 Jul 2022,2223/04,SME,N,
0000361116,ANGLIA COMMERCIAL FLOORING LTD,407.96,Building Services,Repairs,07 Jul 2022,2223/04,SME,N,
0000361117,ANGLIA COMMERCIAL FLOORING LTD,251.44,Building Services,Repairs,07 Jul 2022,2223/04,SME,N,
0000361118,ANGLIA COMMERCIAL FLOORING LTD,367.77,Building Services,Repairs,07 Jul 2022,2223/04,SME,N,
0000361119,ANGLIA COMMERCIAL FLOORING LTD,620.00,Building Services,Repairs,07 Jul 2022,2223/04,SME,N,
0000361243,DMD INSTALLATIONS LTD,"1,000.00",Insulation Imps,Improvements,15 Jul 2022,2223/04,SME,N,
0000422647,ANGLIAN WATER BUS (NAT) LTD T/A WAVE,-19.54,"11 Market Place, Stowmarket",Water Rates - Metered,12 Jul 2022,2223/04,LGE,N,
0000422647,ANGLIAN WATER BUS (NAT) LTD T/A WAVE,31.22,General/Supervision & Mgmt,Water Rates - Metered,12 Jul 2022,2223/04,LGE,N,
0000422647,ANGLIAN WATER BUS (NAT) LTD T/A WAVE,134.06,Headquarters General,Water Rates - Metered,12 Jul 2022,2223/04,LGE,N,
0000422647,ANGLIAN WATER BUS (NAT) LTD T/A WAVE,129.32,Open Spaces,Water Rates - Metered,12 Jul 2022,2223/04,LGE,N,
0000422647,ANGLIAN WATER BUS (NAT) LTD T/A WAVE,775.80,Public Conveniences,Water Rates - Metered,12 Jul 2022,2223/04,LGE,N,
0000422647,ANGLIAN WATER BUS (NAT) LTD T/A WAVE,4.07,Recycling Centre,Water Rates - Metered,12 Jul 2022,2223/04,LGE,N,
0000422647,ANGLIAN WATER BUS (NAT) LTD T/A WAVE,4.07,Sewage Treatment Works,Water Rates - Metered,12 Jul 2022,2223/04,LGE,N,
0000422647,ANGLIAN WATER BUS (NAT) LTD T/A WAVE,"2,457.93",Sheltered Accommodation,Water Rates - Metered,12 Jul 2022,2223/04,LGE,N,
0000422647,ANGLIAN WATER BUS (NAT) LTD T/A WAVE,16.84,Tacon Close Eye TDP,Water Rates - Metered,12 Jul 2022,2223/04,LGE,N,
0000422647,ANGLIAN WATER BUS (NAT) LTD T/A WAVE,129.05,Temporary Accommodation,Water Rates - Metered,12 Jul 2022,2223/04,LGE,N,
0000422647,ANGLIAN WATER BUS (NAT) LTD T/A WAVE,33.30,Tenancy Services,Water Rates - Metered,12 Jul 2022,2223/04,LGE,N,
0000422647,ANGLIAN WATER BUS (NAT) LTD T/A WAVE,25.86,Wingfield Barns,Water Rates - Metered,12 Jul 2022,2223/04,LGE,N,
0000360952,127 TRADING LTD,310.00,Needham Lake Vis Centre (CAP),Prof & Consultancy Fees,14 Jun 2022,2223/04,SME,N,
0000360868,CROWFIELD VILLAGE HALL MGT COMMITTEE,"14,765.11",Community Wellbeing,Grants,27 Jun 2022,2223/04,SME,N,
0000360761,EASTERN PLAY SERVICES LTD,980.00,Needham Lake Vis Centre (CAP),"Equipment, Tools & Materials",22 Jun 2022,2223/04,SME,N,
0000360997,EASTERN PLAY SERVICES LTD,"5,855.00",MSLC Playworld Refurbishment,Repairs,27 Jun 2022,2223/04,SME,N,
0000361263,EASTERN PLAY SERVICES LTD,"5,215.00",Open Spaces,Repairs,15 Jul 2022,2223/04,SME,N,
0000360912,GREENACRE RECRUITMENT LTD,"1,193.99",Housing Standards,Agency Staff,01 Jul 2022,2223/04,SME,Y,50%
0000361049,GREENACRE RECRUITMENT LTD,"1,223.24",Housing Standards,Agency Staff,06 Jul 2022,2223/04,SME,Y,50%
0000361192,GREENACRE RECRUITMENT LTD,"1,287.59",Housing Standards,Agency Staff,13 Jul 2022,2223/04,SME,Y,50%
0000361316,GREENACRE RECRUITMENT LTD,"1,355.09",Housing Standards,Agency Staff,20 Jul 2022,2223/04,SME,Y,50%
0000361425,GREENACRE RECRUITMENT LTD,"1,251.59",Housing Standards,Agency Staff,27 Jul 2022,2223/04,SME,Y,50%
0000360937,MID SUFFOLK GROWTH LTD,"80,066.61",Regen Fund - HQ Sites,Prof & Consultancy Fees,29 Jun 2022,2223/04,SME,N,
0000360938,MID SUFFOLK GROWTH LTD,"105,350.82",Needham HQ S106 Units,Purchase of Land & Buildings,30 Jun 2022,2223/04,SME,N,
0000360998,MID SUFFOLK GROWTH LTD,"13,672.55",Needham Lake Vis Centre (CAP),Prof & Consultancy Fees,07 Feb 2022,2223/04,SME,N,
0000360852,WATERLOGIC,759.93,Creeting Rd Depot,Contracted Services,25 Jun 2022,2223/04,LGE,Y,50%
0000361357,PENTACO CONSTRUCTION LTD,"370,346.00",Stowmarket Middle School,Major Contracts,05 Jul 2022,2223/04,SME,N,
0000361242,THE KINETIC SCIENCE FOUNDATION,"7,346.67",Holiday Activity Fund,"Equipment, Tools & Materials",01 Jul 2022,2223/04,SME,N,
0000360886,EYES OPEN CIC,"10,000.00",Community Wellbeing,Grants,27 Jun 2022,2223/04,SME,N,
0000361143,EYES OPEN CIC,324.60,Business Innovation Grants,Grants,11 Jul 2022,2223/04,SME,N,
0000361359,LIMELEASE LTD,395.00,Guaranteed Rent Scheme,Rent Payable,25 Jul 2022,2223/04,SME,N,
0000422630,LIMELEASE LTD,395.00,Guaranteed Rent Scheme,Rent Payable,01 Jul 2022,2223/04,SME,N,
0000360943,BUCHER MUNICIPAL LTD,"1,688.50",Street & Major Road Cleansing,Plant & Vehicle - Other costs,30 Jun 2022,2223/04,LGE,Y,50%
0000361142,BUCHER MUNICIPAL LTD,509.71,Street & Major Road Cleansing,"Equipment, Tools & Materials",08 Jul 2022,2223/04,LGE,N,
0000361337,GRANTCHESTER CONSTRUCTION (EASTERN) LTD,"12,092.09",Mand Disabled Facilities Grant,Grants,21 Jul 2022,2223/04,SME,N,
0000361271,PRIVATE LANDLORD,786.50,Guaranteed Rent Scheme,Rent Payable,19 Jul 2022,2223/04,ST,N,
0000361375,RED CACTUS MEDIA LTD,"1,900.00",Cost of Democracy,Advertising&mkting (non-staff),07 Jul 2022,2223/04,SME,Y,50%
0000422644,PAUL WRIGHT & CO,596.16,Guaranteed Rent Scheme,Rent Payable,15 Jul 2022,2223/04,SME,N,
0000422644,PAUL WRIGHT & CO,"1,500.00",Guaranteed Rent Scheme,Misc Supplies & Services Costs,15 Jul 2022,2223/04,SME,N,
0000360987,AMPLIS CONSTRUCTION LTD,"69,992.20","Fences, Gates and Walls",Improvements,30 Jun 2022,2223/04,SME,N,
0000361122,AMPLIS CONSTRUCTION LTD,"2,472.45",Window & Door Rplcmts,Repairs,08 Jul 2022,2223/04,SME,N,
0000361163,SUFFOLK DOORS & WINDOWS LTD,"4,150.00",Roofing,Improvements,12 Jul 2022,2223/04,SME,N,
0000361182,SUFFOLK DOORS & WINDOWS LTD,"5,427.00",Window & Door Rplcmts,Improvements,12 Jul 2022,2223/04,SME,N,
0000361183,SUFFOLK DOORS & WINDOWS LTD,"1,198.00",Window & Door Rplcmts,Improvements,12 Jul 2022,2223/04,SME,N,
0000361205,SUFFOLK DOORS & WINDOWS LTD,"5,800.00",Roofing,Improvements,14 Jul 2022,2223/04,SME,N,
0000361077,DUNMOW SKIPS LTD T/A DUNMOW GROUP,"1,300.00",Jnt Waste Contract,Waste Disposal,06 Jul 2022,2223/04,LGE,Y,50%
0000361144,DUNMOW SKIPS LTD T/A DUNMOW GROUP,"1,345.50",Jnt Waste Contract,Waste Disposal,08 Jul 2022,2223/04,LGE,N,
0000361057,PRIVATE LANDLORD,786.50,Guaranteed Rent Scheme,Rent Payable,07 Jul 2022,2223/04,ST,N,
0000361132,COUNTRYSTYLE RECYCLING LTD,"5,083.10",Bring Sites,Contracted Services,30 Jun 2022,2223/04,SME,N,
0000361155,COUNTRYSTYLE RECYCLING LTD,300.00,Trade Waste,Trade Waste Disposal,30 Jun 2022,2223/04,SME,Y,50%
0000422629,TEMPLE LETTINGS,"1,400.00",Rent Deposit Scheme,Misc Premises Costs,01 Jul 2022,2223/04,SME,N,
0000360942,DGL QUALITY MANAGEMENT LTD,870.76,Needham Market Middle School,Prof & Consultancy Fees,30 Jun 2022,2223/04,SME,N,
0000361279,OAKS MEADOW PROJECT CIO,"5,000.00",Community Wellbeing,Grants,19 Jul 2022,2223/04,SME,N,
0000422641,OAKS MEADOW PROJECT CIO,"1,508.61",Community Wellbeing,Grants,11 Jul 2022,2223/04,SME,N,
0000361268,PRIMADONNA FESTIVAL CIC,"3,200.00",Grants & Contrbns,Contributions & Donations,18 Jul 2022,2223/04,SME,N,
0000361029,CARE PLUS STAFFORDSHIRE LTD,"7,162.92",Sheltered General Mgmt,Community Alarm Costs,01 Jul 2022,2223/04,SME,N,
0000361029,CARE PLUS STAFFORDSHIRE LTD,63.67,Temporary Accommodation,Telephone Costs,01 Jul 2022,2223/04,SME,N,
0000361029,CARE PLUS STAFFORDSHIRE LTD,541.20,Building Services,Telephone Costs,01 Jul 2022,2223/04,SME,N,
0000361029,CARE PLUS STAFFORDSHIRE LTD,63.67,Animal Welfare Licensing,Telephone Costs,01 Jul 2022,2223/04,SME,N,
0000361029,CARE PLUS STAFFORDSHIRE LTD,21.22,Bldg Regs Chargeable Serv,Telephone Costs,01 Jul 2022,2223/04,SME,N,
0000361029,CARE PLUS STAFFORDSHIRE LTD,21.22,Bldg Regs Non-Chargeable Serv,Telephone Costs,01 Jul 2022,2223/04,SME,N,
0000361029,CARE PLUS STAFFORDSHIRE LTD,21.22,Bldg Regs Other Activities,Telephone Costs,01 Jul 2022,2223/04,SME,N,
0000361029,CARE PLUS STAFFORDSHIRE LTD,63.68,Civil Protection & Emerg Plg,Telephone Costs,01 Jul 2022,2223/04,SME,N,
0000361030,CARE PLUS STAFFORDSHIRE LTD,"7,162.92",Sheltered General Mgmt,Community Alarm Costs,25 Jun 2021,2223/04,SME,N,
0000361030,CARE PLUS STAFFORDSHIRE LTD,63.67,Temporary Accommodation,Telephone Costs,25 Jun 2021,2223/04,SME,N,
0000361030,CARE PLUS STAFFORDSHIRE LTD,541.20,Building Services,Telephone Costs,25 Jun 2021,2223/04,SME,N,
0000361030,CARE PLUS STAFFORDSHIRE LTD,63.67,Animal Welfare Licensing,Telephone Costs,25 Jun 2021,2223/04,SME,N,
0000361030,CARE PLUS STAFFORDSHIRE LTD,21.22,Bldg Regs Chargeable Serv,Telephone Costs,25 Jun 2021,2223/04,SME,N,
0000361030,CARE PLUS STAFFORDSHIRE LTD,21.22,Bldg Regs Non-Chargeable Serv,Telephone Costs,25 Jun 2021,2223/04,SME,N,
0000361030,CARE PLUS STAFFORDSHIRE LTD,21.22,Bldg Regs Other Activities,Telephone Costs,25 Jun 2021,2223/04,SME,N,
0000361030,CARE PLUS STAFFORDSHIRE LTD,63.68,Civil Protection & Emerg Plg,Telephone Costs,25 Jun 2021,2223/04,SME,N,
0000361031,CARE PLUS STAFFORDSHIRE LTD,"7,162.92",Sheltered General Mgmt,Community Alarm Costs,01 Oct 2021,2223/04,SME,N,
0000361031,CARE PLUS STAFFORDSHIRE LTD,63.67,Temporary Accommodation,Telephone Costs,01 Oct 2021,2223/04,SME,N,
0000361031,CARE PLUS STAFFORDSHIRE LTD,541.20,Building Services,Telephone Costs,01 Oct 2021,2223/04,SME,N,
0000361031,CARE PLUS STAFFORDSHIRE LTD,63.67,Animal Welfare Licensing,Telephone Costs,01 Oct 2021,2223/04,SME,N,
0000361031,CARE PLUS STAFFORDSHIRE LTD,21.22,Bldg Regs Chargeable Serv,Telephone Costs,01 Oct 2021,2223/04,SME,N,
0000361031,CARE PLUS STAFFORDSHIRE LTD,21.22,Bldg Regs Non-Chargeable Serv,Telephone Costs,01 Oct 2021,2223/04,SME,N,
0000361031,CARE PLUS STAFFORDSHIRE LTD,21.22,Bldg Regs Other Activities,Telephone Costs,01 Oct 2021,2223/04,SME,N,
0000361031,CARE PLUS STAFFORDSHIRE LTD,63.68,Civil Protection & Emerg Plg,Telephone Costs,01 Oct 2021,2223/04,SME,N,
0000361032,CARE PLUS STAFFORDSHIRE LTD,"7,162.92",Sheltered General Mgmt,Community Alarm Costs,01 Jan 2022,2223/04,SME,N,
0000361032,CARE PLUS STAFFORDSHIRE LTD,63.67,Temporary Accommodation,Telephone Costs,01 Jan 2022,2223/04,SME,N,
0000361032,CARE PLUS STAFFORDSHIRE LTD,541.20,Building Services,Telephone Costs,01 Jan 2022,2223/04,SME,N,
0000361032,CARE PLUS STAFFORDSHIRE LTD,63.67,Animal Welfare Licensing,Telephone Costs,01 Jan 2022,2223/04,SME,N,
0000361032,CARE PLUS STAFFORDSHIRE LTD,21.22,Bldg Regs Chargeable Serv,Telephone Costs,01 Jan 2022,2223/04,SME,N,
0000361032,CARE PLUS STAFFORDSHIRE LTD,21.22,Bldg Regs Non-Chargeable Serv,Telephone Costs,01 Jan 2022,2223/04,SME,N,
0000361032,CARE PLUS STAFFORDSHIRE LTD,21.22,Bldg Regs Other Activities,Telephone Costs,01 Jan 2022,2223/04,SME,N,
0000361032,CARE PLUS STAFFORDSHIRE LTD,63.68,Civil Protection & Emerg Plg,Telephone Costs,01 Jan 2022,2223/04,SME,N,
0000361131,CARE PLUS STAFFORDSHIRE LTD,"7,456.60",Sheltered General Mgmt,Community Alarm Costs,29 Jun 2022,2223/04,SME,N,
0000361131,CARE PLUS STAFFORDSHIRE LTD,66.28,Temporary Accommodation,Telephone Costs,29 Jun 2022,2223/04,SME,N,
0000361131,CARE PLUS STAFFORDSHIRE LTD,563.38,Building Services,Telephone Costs,29 Jun 2022,2223/04,SME,N,
0000361131,CARE PLUS STAFFORDSHIRE LTD,66.28,Animal Welfare Licensing,Telephone Costs,29 Jun 2022,2223/04,SME,N,
0000361131,CARE PLUS STAFFORDSHIRE LTD,22.10,Bldg Regs Chargeable Serv,Telephone Costs,29 Jun 2022,2223/04,SME,N,
0000361131,CARE PLUS STAFFORDSHIRE LTD,22.10,Bldg Regs Non-Chargeable Serv,Telephone Costs,29 Jun 2022,2223/04,SME,N,
0000361131,CARE PLUS STAFFORDSHIRE LTD,22.10,Bldg Regs Other Activities,Telephone Costs,29 Jun 2022,2223/04,SME,N,
0000361131,CARE PLUS STAFFORDSHIRE LTD,66.27,Civil Protection & Emerg Plg,Telephone Costs,29 Jun 2022,2223/04,SME,N,
0000361020,QUEUE TECHNOLOGY LTD,500.00,BRRP-MarketTownVision&Invest,Advertising&mkting (non-staff),05 Jul 2022,2223/04,SME,Y,50%
0000361423,HAVEBURY HOUSING PARTNERSHIP (RENTS),877.88,Tenancy Services,Other Service Charges,21 Jul 2022,2223/04,SME,N,
0000360841,ARAN INSULATION LTD,"3,627.00",Insulation Imps,Improvements,27 Jun 2022,2223/04,SME,N,
0000360842,ARAN INSULATION LTD,"4,118.00",Insulation Imps,Improvements,27 Jun 2022,2223/04,SME,N,
0000360843,ARAN INSULATION LTD,"2,049.06",Insulation Imps,Improvements,27 Jun 2022,2223/04,SME,N,
0000361121,ORWELL REMOVALS & STORAGE LTD,795.00,Homeless Prevention Fund,Removal Expenses,06 Jul 2022,2223/04,SME,N,
0000361210,CIPFA (COURSES),880.00,Organisational Devt,Training,06 Jul 2022,2223/04,LGE,Y,50%
0000360985,MARCHDELL LTD,715.00,Guaranteed Rent Scheme,Rent Payable,04 Jul 2022,2223/04,SME,N,
0000361125,SEH FRENCH LTD,"7,944.00",Needham Lake Vis Centre (CAP),Major Contracts,29 Jun 2022,2223/04,SME,N,
0000361126,SEH FRENCH LTD,"36,580.00",Needham Lake Vis Centre (CAP),Major Contracts,29 Jun 2022,2223/04,SME,N,
0000361270,PRIVATE LANDLORD,669.00,Guaranteed Rent Scheme,Rent Payable,19 Jul 2022,2223/04,ST,N,
0000361151,JACKSON LIFT SERVICES LTD,624.99,Sheltered Accommodation,Plant Maintenance,07 Jul 2022,2223/04,LGE,N,
0000361060,PRIVATE LANDLORD,650.00,Guaranteed Rent Scheme,Rent Payable,07 Jul 2022,2223/04,ST,N,
0000361058,PRIVATE LANDLORD,495.00,Guaranteed Rent Scheme,Rent Payable,07 Jul 2022,2223/04,SME,N,
0000361314,PIXEL FINANCIAL MANAGEMENT LTD,"1,050.00",Financial Servs,Subscriptions,18 Jul 2022,2223/04,SME,N,
0000360986,SHJ HOMES LTD,500.00,Guaranteed Rent Scheme,Rent Payable,04 Jul 2022,2223/04,SME,N,
0000361244,SHJ HOMES LTD,550.00,Guaranteed Rent Scheme,Rent Payable,18 Jul 2022,2223/04,SME,N,
0000361245,PREMIER EDUCATION,864.00,Holiday Activity Fund,"Equipment, Tools & Materials",16 Jul 2022,2223/04,SME,N,
0000361246,PREMIER EDUCATION,"2,960.00",Holiday Activity Fund,"Equipment, Tools & Materials",16 Jul 2022,2223/04,SME,N,
0000361388,PREMIER EDUCATION,"5,866.66",Holiday Activity Fund,"Equipment, Tools & Materials",22 Jul 2022,2223/04,SME,N,
0000361389,PREMIER EDUCATION,"1,973.33",Holiday Activity Fund,"Equipment, Tools & Materials",22 Jul 2022,2223/04,SME,N,
0000361390,PREMIER EDUCATION,"3,946.67",Holiday Activity Fund,"Equipment, Tools & Materials",22 Jul 2022,2223/04,SME,N,
0000360862,KING GEORGE PLAYING FIELD COMMITTEE,317.52,Community Wellbeing,Grants,27 Jun 2022,2223/04,SME,N,
0000361422,T MAN WITH A VAN,400.00,Homelessness Private Sector,Removal Expenses,09 Jun 2022,2223/04,ST,N,
0000361377,HARLEQUIN TRAVEL,600.00,Management Team,Misc Supplies & Services Costs,22 Jul 2022,2223/04,SME,Y,50%
0000361011,MOVEITCLEARITFINDITSTOREIT LTD,"1,080.00",Homeless Prevention Fund,Removal Expenses,02 Jul 2022,2223/04,SME,N,
0000361055,ABLEY LETCHFORD PARTNERSHIP LTD,258.75,Devt Management - Apps,Environmental  Consultancy,30 Jun 2022,2223/04,SME,N,
0000360959,HAMILTON SMITH LETTINGS,300.00,Guaranteed Rent Scheme,Misc Supplies & Services Costs,01 Jul 2022,2223/04,SME,N,
0000361061,HAMILTON SMITH LETTINGS,775.00,Guaranteed Rent Scheme,Rent Payable,07 Jul 2022,2223/04,SME,N,
0000361365,HAMILTON SMITH LETTINGS,500.00,Guaranteed Rent Scheme,Rent Payable,25 Jul 2022,2223/04,SME,N,
0000422628,HAMILTON SMITH LETTINGS,"1,000.00",Guaranteed Rent Scheme,Rent Payable,01 Jul 2022,2223/04,SME,N,
0000361360,NATURAL ENGLAND (SSCL),890.00,Stowmarket Middle School,Prof & Consultancy Fees,30 May 2022,2223/04,LGE,N,
0000361285,PAY 360 LIMITED,"6,390.16",Bank Chgs,Bank Charges,11 May 2022,2223/04,0,N,
0000361286,PAY 360 LIMITED,"5,319.52",Bank Chgs,Bank Charges,09 Jun 2022,2223/04,0,N,
0000361287,PAY 360 LIMITED,"5,800.88",Bank Chgs,Bank Charges,18 Jul 2022,2223/04,0,N,
0000360885,THE FOOD MUSEUM LTD,"20,000.00",Community Wellbeing,Grants,27 Jun 2022,2223/04,SME,N,
0000360876,LIFTSHARE.COM LTD,"6,900.00",MSM Sustainable Travel,Prof & Consultancy Fees,28 Jun 2022,2223/04,SME,N,
0000360902,PRIVATE LANDLORD,"2,500.00",Homeless Prevention Fund,Misc Supplies & Services Costs,28 Jun 2022,2223/04,ST,N,
0000361228,KAREN LOUISE DANCE CIC,799.50,Grants & Contrbns,Grants,15 Jul 2022,2223/04,SME,N,
0000361051,OSBORNE CLARKE LLP,"5,000.00",Organisational Devt,Professional Subs (Staff),30 Jun 2022,2223/04,LGE,Y,50%
0000361052,SUFFOLK LAW CENTRE,"7,254.34",Tenancy Services,Legal Expenses,07 Jul 2022,2223/04,SME,N,
0000361281,STOWMARKET WOODFIELD BOWLS CLUB,750.00,Grants & Contrbns,Contributions & Donations,19 Jul 2022,2223/04,SME,N,
0000422645,PRIVATE LANDLORD,590.00,Guaranteed Rent Scheme,Rent Payable,18 Jul 2022,2223/04,SME,N,
0000422645,PRIVATE LANDLORD,"1,500.00",Guaranteed Rent Scheme,Misc Supplies & Services Costs,18 Jul 2022,2223/04,SME,N,
0000361221,SOUTH VIEW FARM,"2,500.00",Business Innovation Grants,Grants,15 Jul 2022,2223/04,SME,N,
0000361332,JOEL MILLERCHIP,"1,000.00",Stowmarket Middle School,Prof & Consultancy Fees,20 Jul 2022,2223/04,ST,N,
0000361361,JOEL MILLERCHIP,"1,047.00",Holiday Activity Fund,"Equipment, Tools & Materials",21 Jul 2022,2223/04,ST,N,
0000361448,A W & D HAMMOND LTD,"3,000.00",Vehicle and Plant Renewals,Plant & Vehicle - Purchase,28 Jul 2022,2223/04,LGE,N,
0000361025,ERNEST DOE & SONS LTD,"-1,780.00",Building Services,Repairs,09 Jun 2022,2223/04,LGE,Y,50%
0000000220,GIPPING OCCUPATIONAL HEALTH LTD,144.00,Health & Safety,Contracted Services,01 Jul 2022,2223/04,SME,Y,50%
0000360834,GIPPING OCCUPATIONAL HEALTH LTD,-144.00,Health & Safety,Contracted Services,27 Jun 2022,2223/04,SME,Y,50%
0000000269,DMD INSTALLATIONS LTD,"-1,000.00",Insulation Imps,Improvements,27 Jul 2022,2223/04,SME,N,
0000000937,CARE PLUS STAFFORDSHIRE LTD,"-7,162.92",Sheltered General Mgmt,Community Alarm Costs,27 Jul 2022,2223/04,SME,N,
0000000937,CARE PLUS STAFFORDSHIRE LTD,-63.67,Temporary Accommodation,Telephone Costs,27 Jul 2022,2223/04,SME,N,
0000000937,CARE PLUS STAFFORDSHIRE LTD,-541.20,Building Services,Telephone Costs,27 Jul 2022,2223/04,SME,N,
0000000937,CARE PLUS STAFFORDSHIRE LTD,-63.67,Animal Welfare Licensing,Telephone Costs,27 Jul 2022,2223/04,SME,N,
0000000937,CARE PLUS STAFFORDSHIRE LTD,-21.22,Bldg Regs Chargeable Serv,Telephone Costs,27 Jul 2022,2223/04,SME,N,
0000000937,CARE PLUS STAFFORDSHIRE LTD,-21.22,Bldg Regs Non-Chargeable Serv,Telephone Costs,27 Jul 2022,2223/04,SME,N,
0000000937,CARE PLUS STAFFORDSHIRE LTD,-21.22,Bldg Regs Other Activities,Telephone Costs,27 Jul 2022,2223/04,SME,N,
0000000937,CARE PLUS STAFFORDSHIRE LTD,-63.68,Civil Protection & Emerg Plg,Telephone Costs,27 Jul 2022,2223/04,SME,N,
0000000939,CARE PLUS STAFFORDSHIRE LTD,"-7,162.92",Sheltered General Mgmt,Community Alarm Costs,27 Jul 2022,2223/04,SME,N,
0000000939,CARE PLUS STAFFORDSHIRE LTD,-63.67,Temporary Accommodation,Telephone Costs,27 Jul 2022,2223/04,SME,N,
0000000939,CARE PLUS STAFFORDSHIRE LTD,-541.20,Building Services,Telephone Costs,27 Jul 2022,2223/04,SME,N,
0000000939,CARE PLUS STAFFORDSHIRE LTD,-63.67,Animal Welfare Licensing,Telephone Costs,27 Jul 2022,2223/04,SME,N,
0000000939,CARE PLUS STAFFORDSHIRE LTD,-21.22,Bldg Regs Chargeable Serv,Telephone Costs,27 Jul 2022,2223/04,SME,N,
0000000939,CARE PLUS STAFFORDSHIRE LTD,-21.22,Bldg Regs Non-Chargeable Serv,Telephone Costs,27 Jul 2022,2223/04,SME,N,
0000000939,CARE PLUS STAFFORDSHIRE LTD,-21.22,Bldg Regs Other Activities,Telephone Costs,27 Jul 2022,2223/04,SME,N,
0000000939,CARE PLUS STAFFORDSHIRE LTD,-63.68,Civil Protection & Emerg Plg,Telephone Costs,27 Jul 2022,2223/04,SME,N,
0000000940,CARE PLUS STAFFORDSHIRE LTD,"-7,162.92",Sheltered General Mgmt,Community Alarm Costs,27 Jul 2022,2223/04,SME,N,
0000000940,CARE PLUS STAFFORDSHIRE LTD,-63.67,Temporary Accommodation,Telephone Costs,27 Jul 2022,2223/04,SME,N,
0000000940,CARE PLUS STAFFORDSHIRE LTD,-541.20,Building Services,Telephone Costs,27 Jul 2022,2223/04,SME,N,
0000000940,CARE PLUS STAFFORDSHIRE LTD,-63.67,Animal Welfare Licensing,Telephone Costs,27 Jul 2022,2223/04,SME,N,
0000000940,CARE PLUS STAFFORDSHIRE LTD,-21.22,Bldg Regs Chargeable Serv,Telephone Costs,27 Jul 2022,2223/04,SME,Y,100%
0000000940,CARE PLUS STAFFORDSHIRE LTD,-21.22,Bldg Regs Non-Chargeable Serv,Telephone Costs,27 Jul 2022,2223/04,SME,Y,100%
0000000940,CARE PLUS STAFFORDSHIRE LTD,-21.22,Bldg Regs Other Activities,Telephone Costs,27 Jul 2022,2223/04,SME,Y,100%
0000000940,CARE PLUS STAFFORDSHIRE LTD,-63.68,Civil Protection & Emerg Plg,Telephone Costs,27 Jul 2022,2223/04,SME,N,
0000000943,CARE PLUS STAFFORDSHIRE LTD,"-7,162.92",Sheltered General Mgmt,Community Alarm Costs,27 Jul 2022,2223/04,SME,N,
0000000943,CARE PLUS STAFFORDSHIRE LTD,-63.67,Temporary Accommodation,Telephone Costs,27 Jul 2022,2223/04,SME,N,
0000000943,CARE PLUS STAFFORDSHIRE LTD,-541.20,Building Services,Telephone Costs,27 Jul 2022,2223/04,SME,N,
0000000943,CARE PLUS STAFFORDSHIRE LTD,-63.67,Animal Welfare Licensing,Telephone Costs,27 Jul 2022,2223/04,SME,N,
0000000943,CARE PLUS STAFFORDSHIRE LTD,-21.22,Bldg Regs Chargeable Serv,Telephone Costs,27 Jul 2022,2223/04,SME,N,
0000000943,CARE PLUS STAFFORDSHIRE LTD,-21.22,Bldg Regs Non-Chargeable Serv,Telephone Costs,27 Jul 2022,2223/04,SME,N,
0000000943,CARE PLUS STAFFORDSHIRE LTD,-21.22,Bldg Regs Other Activities,Telephone Costs,27 Jul 2022,2223/04,SME,N,
0000000943,CARE PLUS STAFFORDSHIRE LTD,-63.68,Civil Protection & Emerg Plg,Telephone Costs,27 Jul 2022,2223/04,SME,N,
0000000945,CARE PLUS STAFFORDSHIRE LTD,"-7,162.92",Sheltered General Mgmt,Community Alarm Costs,27 Jul 2022,2223/04,SME,N,
0000000945,CARE PLUS STAFFORDSHIRE LTD,-63.67,Temporary Accommodation,Telephone Costs,27 Jul 2022,2223/04,SME,N,
0000000945,CARE PLUS STAFFORDSHIRE LTD,-541.20,Building Services,Telephone Costs,27 Jul 2022,2223/04,SME,N,
0000000945,CARE PLUS STAFFORDSHIRE LTD,-63.67,Animal Welfare Licensing,Telephone Costs,27 Jul 2022,2223/04,SME,N,
0000000945,CARE PLUS STAFFORDSHIRE LTD,-21.22,Bldg Regs Chargeable Serv,Telephone Costs,27 Jul 2022,2223/04,SME,N,
0000000945,CARE PLUS STAFFORDSHIRE LTD,-21.22,Bldg Regs Non-Chargeable Serv,Telephone Costs,27 Jul 2022,2223/04,SME,N,
0000000945,CARE PLUS STAFFORDSHIRE LTD,-21.22,Bldg Regs Other Activities,Telephone Costs,27 Jul 2022,2223/04,SME,N,
0000000945,CARE PLUS STAFFORDSHIRE LTD,-63.68,Civil Protection & Emerg Plg,Telephone Costs,27 Jul 2022,2223/04,SME,N,
0000000268,PREMIER EDUCATION,"-2,960.00",Holiday Activity Fund,"Equipment, Tools & Materials",22 Jul 2022,2223/04,SME,N,
0000361413,AARON SERVICES LTD,"29,189.01",Planned Maint - Heating,Property Servicing,30 Jun 2022,2223/05,SME,N,
0000361923,AARON SERVICES LTD,"29,189.01",Planned Maint - Heating,Property Servicing,25 Jul 2022,2223/05,SME,N,
0000422662,AARON SERVICES LTD,"2,070.85",Voids Maintenance,Repairs,05 Aug 2022,2223/05,SME,N,
0000422662,AARON SERVICES LTD,"5,071.34",Planned Maint - Heating,Property Servicing,05 Aug 2022,2223/05,SME,N,
0000422666,AARON SERVICES LTD,139.87,Smoke Alarms (Bbgh Standard),Improvements,15 Aug 2022,2223/05,SME,N,
0000422666,AARON SERVICES LTD,"3,810.19",Planned Maint - Heating,Property Servicing,15 Aug 2022,2223/05,SME,N,
0000422666,AARON SERVICES LTD,488.17,Voids Maintenance,Repairs,15 Aug 2022,2223/05,SME,N,
0000361929,ACADEMY BUILDING CONTRACTS LTD,270.34,Building Services,Repairs,18 Aug 2022,2223/05,SME,N,
0000361930,ACADEMY BUILDING CONTRACTS LTD,"1,319.75","Fences, Gates and Walls",BMBS Repairs Work,18 Aug 2022,2223/05,SME,N,
0000361111,AE WHITE SURFACING,"2,312.00",Open Spaces,Horticultural Purchases,08 Jul 2022,2223/05,SME,N,
0000361565,AE WHITE SURFACING,"1,293.00",C Parks General,Repairs,20 Jul 2022,2223/05,SME,N,
0000361566,AE WHITE SURFACING,"10,636.00",C Parks General,Repairs,08 Jul 2022,2223/05,SME,N,
0000361567,AE WHITE SURFACING,"10,439.00",Council House Adaptions,Improvements,06 Jul 2022,2223/05,SME,N,
0000362015,AE WHITE SURFACING,790.00,Building Services,Repairs,19 Aug 2022,2223/05,SME,N,
0000361673,ANGLIAN WATER,648.26,Water Sampling,Sampling & Analysis,27 Jul 2022,2223/05,LGE,N,
0000361675,ANGLIAN WATER,657.46,Water Sampling,Sampling & Analysis,22 Jul 2022,2223/05,LGE,N,
0000361710,ANGLIAN WATER,"2,666.81",Sheltered Accommodation,Water Rates - Metered,14 Mar 2022,2223/05,LGE,N,
0000361985,ANGLIAN WATER,823.86,Tenancy Services,Water Rates - Metered,14 Aug 2022,2223/05,LGE,N,
0000361661,APSE,"3,484.00",Management Team,Subscriptions,01 Apr 2022,2223/05,LGE,Y,50%
0000361203,AQUAJET CLEANING EQUIPMENT LTD,800.00,Open Spaces,Plant & Vehicle - Other costs,14 Jul 2022,2223/05,SME,N,
0000361215,BEN BURGESS GARDEN EQUIPMENT,500.00,Open Spaces,"Equipment, Tools & Materials",15 Jul 2022,2223/05,SME,N,
0000361219,BEN BURGESS GARDEN EQUIPMENT,"7,500.00",Open Spaces,"Equipment, Tools & Materials",15 Jul 2022,2223/05,SME,N,
0000361749,BINDER LTD,305.80,Sewage Treatment Works,Contracted Services,03 Aug 2022,2223/05,SME,N,
0000361755,BINDER LTD,"13,192.18",Sewage Treatment Works,Contracted Services,29 Jul 2022,2223/05,SME,N,
0000361894,BLUE FLAME (COLCHESTER) LTD,"9,195.00",Central Heating,Improvements,05 Jul 2022,2223/05,SME,N,
0000361895,BLUE FLAME (COLCHESTER) LTD,"9,195.00",Central Heating,Improvements,04 Jul 2022,2223/05,SME,N,
0000361617,BOWER FULLER,"1,662.10",Sheltered Accommodation,Fire Prevention,29 Jul 2022,2223/05,SME,N,
0000361618,BOWER FULLER,"2,357.52","11 Market Place, Stowmarket",Contracted Services,29 Jul 2022,2223/05,SME,N,
0000361619,BOWER FULLER,"1,012.66",Leisure Contract,Repairs,29 Jul 2022,2223/05,SME,N,
0000361620,BOWER FULLER,376.02,Sheltered Accommodation,Fire Prevention,29 Jul 2022,2223/05,SME,N,
0000361629,BOWER FULLER,823.77,Wingfield Barns,Repairs,29 Jul 2022,2223/05,SME,N,
0000361630,BOWER FULLER,"1,824.84",Temporary Accommodation,Fire Prevention,29 Jul 2022,2223/05,SME,N,
0000361631,BOWER FULLER,255.96,Sheltered Accommodation,Fire Prevention,29 Jul 2022,2223/05,SME,N,
0000361632,BOWER FULLER,434.78,Sheltered Accommodation,Fire Prevention,29 Jul 2022,2223/05,SME,N,
0000361633,BOWER FULLER,440.65,Sheltered Accommodation,Repairs,29 Jul 2022,2223/05,SME,N,
0000361574,BUTTON & TURNER LTD,655.64,Open Spaces,Plant & Vehicle - Other costs,08 Jul 2022,2223/05,SME,N,
0000361884,CHIPSIDE LTD,300.00,C Parks General,Contracted Services,25 Jul 2022,2223/05,SME,N,
0000361885,CHIPSIDE LTD,321.62,C Parks General,Contracted Services,25 Jul 2022,2223/05,SME,N,
0000361886,CHIPSIDE LTD,"1,000.17",C Parks General,Contracted Services,31 Jul 2022,2223/05,SME,N,
0000361291,CLARKE FENCING LTD,310.03,Open Spaces,"Equipment, Tools & Materials",19 Jul 2022,2223/05,SME,N,
0000361767,CLARKE FENCING LTD,315.00,Open Spaces,"Equipment, Tools & Materials",13 Jul 2022,2223/05,SME,N,
0000361386,CLARKES OF WALSHAM LTD,383.51,Building Services,Repairs,25 Jul 2022,2223/05,SME,N,
0000361374,D W ADAMS LTD,"7,124.00",Council House Adaptions,Improvements,25 Jul 2022,2223/05,SME,N,
0000361809,D W ADAMS LTD,"7,228.00",Council House Adaptions,Improvements,10 Aug 2022,2223/05,SME,N,
0000361662,DMA HEALTH AND SAFETY LTD,316.00,Strategic Assets,Prof & Consultancy Fees,31 Jul 2022,2223/05,SME,N,
0000362075,EAST ANGLIA CLEANING SERVICES LTD,"1,489.71",Jnt Waste Contract,General Cleaning,25 Aug 2022,2223/05,SME,Y,50%
0000361709,EAST OF ENGLAND LGA,"5,525.00",Organisational Devt,Legal Expenses,04 Aug 2022,2223/05,SME,Y,50%
0000422654,ELMHURST ENERGY SYSTEMS LTD - DD,680.00,Bldg Regs Chargeable Serv,Contracted Services,31 Jul 2022,2223/05,SME,Y,45%
0000361241,FELLBRIDGE BUILDING SERVICES,"5,580.28",Major Imps,Improvements,17 Jul 2022,2223/05,SME,N,
0000361283,FELLBRIDGE BUILDING SERVICES,"12,233.76",Building Services,Repairs,18 Jul 2022,2223/05,SME,N,
0000361395,FELLBRIDGE BUILDING SERVICES,"2,236.80",Building Services,Repairs,25 Jul 2022,2223/05,SME,N,
0000361454,FELLBRIDGE BUILDING SERVICES,"12,943.39",Building Services,Repairs,25 Jul 2022,2223/05,SME,N,
0000361455,FELLBRIDGE BUILDING SERVICES,"1,789.84",Major Imps,Improvements,28 Jul 2022,2223/05,SME,N,
0000361527,FELLBRIDGE BUILDING SERVICES,"10,529.95",Building Services,Repairs,01 Aug 2022,2223/05,SME,N,
0000361684,FELLBRIDGE BUILDING SERVICES,"16,780.82",Building Services,Repairs,04 Aug 2022,2223/05,SME,N,
0000361738,FELLBRIDGE BUILDING SERVICES,"11,559.11",Building Services,Repairs,08 Aug 2022,2223/05,SME,N,
0000361830,FELLBRIDGE BUILDING SERVICES,"9,200.38",Building Services,Repairs,11 Aug 2022,2223/05,SME,N,
0000361881,FELLBRIDGE BUILDING SERVICES,"14,356.35",Building Services,Repairs,15 Aug 2022,2223/05,SME,N,
0000361882,FELLBRIDGE BUILDING SERVICES,"2,291.85",Building Services,Repairs,15 Aug 2022,2223/05,SME,N,
0000361936,FELLBRIDGE BUILDING SERVICES,"1,303.56",Building Services,Repairs,18 Aug 2022,2223/05,SME,N,
0000361937,FELLBRIDGE BUILDING SERVICES,476.40,Building Services,Repairs,18 Aug 2022,2223/05,SME,N,
0000361444,GHB ROOFING,"12,471.00",Roofing,Improvements,28 Jul 2022,2223/05,SME,N,
0000361038,HAYES DIGGINS BUILDERS,"3,200.00",Building Services,Repairs,06 Jul 2022,2223/05,SME,N,
0000361732,JMP SERVICES LTD,750.00,Street & Major Road Cleansing,Contracted Services,04 Aug 2022,2223/05,SME,N,
0000361857,JMP SERVICES LTD,340.00,Street & Major Road Cleansing,Contracted Services,12 Aug 2022,2223/05,SME,N,
0000361756,KENDA-CLEAN,62.00,Creeting Rd Depot,Window Cleaning,09 Aug 2022,2223/05,SME,Y,50%
0000361756,KENDA-CLEAN,"2,074.00",Sheltered Accommodation,Window Cleaning,09 Aug 2022,2223/05,SME,N,
0000361756,KENDA-CLEAN,123.00,Temporary Accommodation,Window Cleaning,09 Aug 2022,2223/05,SME,N,
0000362006,LABC,870.00,Bldg Regs Chargeable Serv,Training,17 May 2022,2223/05,SME,Y,45%
0000361735,M & H CIVIL ENGINEERING LTD,565.00,Building Services,Repairs,08 Aug 2022,2223/05,SME,N,
0000361736,M & H CIVIL ENGINEERING LTD,603.38,Building Services,Repairs,08 Aug 2022,2223/05,SME,N,
0000361737,M & H CIVIL ENGINEERING LTD,653.75,Building Services,Repairs,08 Aug 2022,2223/05,SME,N,
0000361806,M & H CIVIL ENGINEERING LTD,609.88,Building Services,Repairs,09 Aug 2022,2223/05,SME,N,
0000361515,MATERIAL CHANGE COMPOSTING LTD,566.61,Open Spaces,Waste Disposal,31 Jul 2022,2223/05,LGE,N,
0000361515,MATERIAL CHANGE COMPOSTING LTD,47.70,Open Spaces,"Equipment, Tools & Materials",31 Jul 2022,2223/05,LGE,N,
0000361769,MB TREES (EAST ANGLIA) LTD,820.00,Tenancy Services,Tree felling/maintenance,09 Aug 2022,2223/05,SME,N,
0000361770,MB TREES (EAST ANGLIA) LTD,"1,091.42",Public Tree Programme,Tree felling/maintenance,09 Aug 2022,2223/05,SME,N,
0000361901,MB TREES (EAST ANGLIA) LTD,780.00,Tenancy Services,Tree felling/maintenance,16 Aug 2022,2223/05,SME,N,
0000361902,MB TREES (EAST ANGLIA) LTD,880.00,Amenity Areas,Tree felling/maintenance,16 Aug 2022,2223/05,SME,N,
0000361935,MB TREES (EAST ANGLIA) LTD,"1,380.00",Public Tree Programme,Tree felling/maintenance,18 Aug 2022,2223/05,SME,N,
0000362035,MB TREES (EAST ANGLIA) LTD,"1,480.00",Amenity Areas,Tree felling/maintenance,23 Aug 2022,2223/05,SME,N,
0000361685,MID SUFFOLK FENCING LTD,400.00,Building Services,Repairs,22 Jul 2022,2223/05,SME,N,
0000361686,MID SUFFOLK FENCING LTD,680.00,Building Services,Repairs,22 Jul 2022,2223/05,SME,N,
0000361687,MID SUFFOLK FENCING LTD,"1,699.00",Building Services,Repairs,22 Jul 2022,2223/05,SME,N,
0000361688,MID SUFFOLK FENCING LTD,572.00,Building Services,Repairs,22 Jul 2022,2223/05,SME,N,
0000361689,MID SUFFOLK FENCING LTD,"1,266.00",Building Services,Repairs,22 Jul 2022,2223/05,SME,N,
0000361690,MID SUFFOLK FENCING LTD,840.00,Building Services,Repairs,22 Jul 2022,2223/05,SME,N,
0000361691,MID SUFFOLK FENCING LTD,320.00,Building Services,Repairs,22 Jul 2022,2223/05,SME,N,
0000361778,MID SUFFOLK FENCING LTD,"2,574.00","Fences, Gates and Walls",BMBS Repairs Work,01 Aug 2022,2223/05,SME,N,
0000361865,MID SUFFOLK FENCING LTD,"2,200.00","Fences, Gates and Walls",BMBS Repairs Work,08 Aug 2022,2223/05,SME,N,
0000361866,MID SUFFOLK FENCING LTD,508.00,"Fences, Gates and Walls",BMBS Repairs Work,08 Aug 2022,2223/05,SME,N,
0000361839,NEEDHAM MARKET TOWN COUNCIL,"46,645.46",S106 Open Spaces Expenditure,Grants,12 Aug 2022,2223/05,SME,N,
0000361916,NEEDHAM MARKET TOWN COUNCIL,"24,888.91",S106 Open Spaces Expenditure,Grants,16 Aug 2022,2223/05,SME,N,
0000422690,NEEDHAM MARKET TOWN COUNCIL,"2,717.00",Street & Major Road Cleansing,Contributions to other Bodies,19 Aug 2022,2223/05,SME,N,
0000361218,PMC POLYTHENE LTD,870.00,Open Spaces,"Equipment, Tools & Materials",15 Jul 2022,2223/05,SME,N,
0000361832,PRO-FLAT SPECIALIST SERVICES LTD,"1,086.00",Building Services,Repairs,11 Aug 2022,2223/05,SME,N,
0000361396,REID PLUMBING & HEATING CONTRACTORS LTD,"8,778.31",Central Heating,Major Contracts,25 Jul 2022,2223/05,SME,N,
0000361427,REID PLUMBING & HEATING CONTRACTORS LTD,"18,456.55",Central Heating,Major Contracts,27 Jul 2022,2223/05,SME,N,
0000361528,REID PLUMBING & HEATING CONTRACTORS LTD,"9,407.66",Central Heating,Major Contracts,01 Aug 2022,2223/05,SME,N,
0000361921,REID PLUMBING & HEATING CONTRACTORS LTD,"19,819.64",Central Heating,Major Contracts,17 Aug 2022,2223/05,SME,N,
0000361491,SACKERS LTD,"3,349.71",Building Services,Waste Disposal,31 Jul 2022,2223/05,SME,Y,50%
0000361264,SEAGER HOME SOLUTIONS,"10,005.58",Building Services,Repairs,15 Jul 2022,2223/05,SME,N,
0000361725,SUDBURY OFFICE SUPPLIES,339.19,Central Stationery & equip,Stationery,01 Aug 2022,2223/05,SME,Y,50%
0000361913,SUDBURY OFFICE SUPPLIES,43.99,Tenancy Services,Stationery,10 Aug 2022,2223/05,SME,Y,50%
0000361913,SUDBURY OFFICE SUPPLIES,291.35,Central Stationery & equip,Stationery,10 Aug 2022,2223/05,SME,Y,50%
0000361693,SUREFIX,750.00,Building Services,Repairs,01 Aug 2022,2223/05,SME,N,
0000361943,SUREFIX,421.92,Building Services,Repairs,01 Aug 2022,2223/05,SME,N,
0000361496,TANKCHANGE LTD,350.00,Building Services,Repairs,19 Jul 2022,2223/05,SME,N,
0000361883,THE PLAY INSPECTION COMPANY LTD,275.00,Needham Lake Vis Centre (CAP),Prof & Consultancy Fees,30 Jun 2022,2223/05,SME,N,
0000361531,THERMATECH,450.00,Temporary Accommodation,Fire Prevention,01 Aug 2022,2223/05,SME,N,
0000360853,THOMPSON COOPER LTD,"2,651.66",Open Spaces,"Equipment, Tools & Materials",28 Jun 2022,2223/05,SME,Y,50%
0000361911,TRUCKEAST LTD,"1,232.49",Street & Major Road Cleansing,Plant & Vehicle - Other costs,16 Aug 2022,2223/05,LGE,N,
0000361504,WEST END REHOMING,484.56,Dog Control,Collection Charges,01 Aug 2022,2223/05,SME,N,
0000361301,WINDIMAN LTD,860.00,Building Services,Repairs,19 Jul 2022,2223/05,SME,N,
0000361524,WINDIMAN LTD,760.00,Window & Door Rplcmts,BMBS Repairs Work,19 May 2022,2223/05,SME,N,
0000361525,WINDIMAN LTD,273.42,Building Services,Repairs,29 Jun 2022,2223/05,SME,N,
0000361934,WINDIMAN LTD,550.00,Window & Door Rplcmts,Improvements,18 Aug 2022,2223/05,SME,N,
0000361442,WORKWEAR (EAST ANGLIA) LTD,254.72,Building Services,Protective clothing,05 Jul 2022,2223/05,SME,Y,50%
0000361519,WORKWEAR (EAST ANGLIA) LTD,153.80,Open Spaces,Protective clothing,14 Jul 2022,2223/05,SME,N,
0000361519,WORKWEAR (EAST ANGLIA) LTD,171.08,Street & Major Road Cleansing,Protective clothing,14 Jul 2022,2223/05,SME,N,
0000361526,ARCHANT COMMUNITY MEDIA LTD,303.87,Devt Management - Apps,Advertising&mkting (non-staff),23 Jul 2022,2223/05,LGE,N,
0000361641,ARCHANT COMMUNITY MEDIA LTD,505.24,Devt Management - Apps,Advertising&mkting (non-staff),31 Jul 2022,2223/05,LGE,N,
0000361747,ARCHANT COMMUNITY MEDIA LTD,715.36,Devt Management - Apps,Advertising&mkting (non-staff),06 Aug 2022,2223/05,LGE,N,
0000361876,ARCHANT COMMUNITY MEDIA LTD,662.83,Devt Management - Apps,Advertising&mkting (non-staff),13 Aug 2022,2223/05,LGE,N,
0000362037,ARCHANT COMMUNITY MEDIA LTD,741.62,Devt Management - Apps,Advertising&mkting (non-staff),20 Aug 2022,2223/05,LGE,N,
0000361915,SPORTS & LEISURE MANAGEMENT LTD,"20,833.33",Leisure Contract,Contributions to other Bodies,17 Aug 2022,2223/05,LGE,N,
0000361776,CIPFA BUSINESS LTD,"3,860.00",Financial Servs,Books & Periodicals,04 Aug 2022,2223/05,LGE,Y,50%
0000361561,BUILDBASE,253.80,Open Spaces,Plant & Vehicle - Other costs,31 Jul 2022,2223/05,LGE,N,
0000361391,IPSWICH BOROUGH COUNCIL,"7,125.59",Business Cont/Emergency Plan,Contributions to other Bodies,20 Jul 2022,2223/05,LGE,N,
0000361818,IPSWICH BOROUGH COUNCIL,"439,958.26",Shared Revenues Partnership,Major Contracts,10 Aug 2022,2223/05,LGE,N,
0000360951,SERCO LTD,"13,084.56",Open Spaces,Plant & Vehicle Fuel,24 Jun 2022,2223/05,LGE,Y,50%
0000361355,SERCO LTD,"13,141.31",Street & Major Road Cleansing,Plant & Vehicle Fuel,12 Jul 2022,2223/05,LGE,Y,50%
0000361852,TRAVIS PERKINS TRADING CO LTD,"49,201.83",Building Services,"Equipment, Tools & Materials",31 Jul 2022,2223/05,LGE,Y,66%
0000422661,EDF ENERGY,"1,848.22",C Parks General,Electricity,01 Aug 2022,2223/05,LGE,N,
0000422661,EDF ENERGY,44.40,Climate Change and Sustainabil,Electricity,01 Aug 2022,2223/05,LGE,N,
0000422661,EDF ENERGY,"2,674.31",Headquarters General,Electricity,01 Aug 2022,2223/05,LGE,N,
0000422661,EDF ENERGY,"65,405.92",Leisure Contract,Electricity,01 Aug 2022,2223/05,LGE,N,
0000422661,EDF ENERGY,"2,362.95",Open Spaces,Electricity,01 Aug 2022,2223/05,LGE,N,
0000422661,EDF ENERGY,323.62,Other HRA Temp Accommodation,Electricity,01 Aug 2022,2223/05,LGE,N,
0000422661,EDF ENERGY,464.50,Public Conveniences,Electricity,01 Aug 2022,2223/05,LGE,N,
0000422661,EDF ENERGY,628.92,Pure Gym & Adjacent Building,Electricity,01 Aug 2022,2223/05,LGE,N,
0000422661,EDF ENERGY,559.41,Sewage Treatment Works,Electricity,01 Aug 2022,2223/05,LGE,N,
0000422661,EDF ENERGY,"32,020.91",Sheltered Accommodation,Electricity,01 Aug 2022,2223/05,LGE,N,
0000422661,EDF ENERGY,434.12,Tacon Close Eye TDP,Electricity,01 Aug 2022,2223/05,LGE,N,
0000422661,EDF ENERGY,620.96,Temporary Accommodation,Electricity,01 Aug 2022,2223/05,LGE,N,
0000422661,EDF ENERGY,"3,747.01",Tenancy Services,Electricity,01 Aug 2022,2223/05,LGE,N,
0000422661,EDF ENERGY,"8,696.82",Wingfield Barns,Electricity,01 Aug 2022,2223/05,LGE,N,
0000422668,EDF ENERGY,408.74,"11 Market Place, Stowmarket",Electricity,10 Aug 2022,2223/05,LGE,N,
0000422668,EDF ENERGY,625.50,C Parks General,Electricity,10 Aug 2022,2223/05,LGE,N,
0000422668,EDF ENERGY,178.81,Climate Change and Sustainabil,Electricity,10 Aug 2022,2223/05,LGE,N,
0000422668,EDF ENERGY,"3,794.84",Creeting Rd Depot,Electricity,10 Aug 2022,2223/05,LGE,Y,50%
0000422668,EDF ENERGY,"7,569.47",Leisure Contract,Electricity,10 Aug 2022,2223/05,LGE,N,
0000422668,EDF ENERGY,584.18,Needham Market Middle School,Electricity,10 Aug 2022,2223/05,LGE,N,
0000422668,EDF ENERGY,276.92,Open Spaces,Electricity,10 Aug 2022,2223/05,LGE,N,
0000422668,EDF ENERGY,"2,534.77",Other HRA Temp Accommodation,Electricity,10 Aug 2022,2223/05,LGE,N,
0000422668,EDF ENERGY,66.21,Public Conveniences,Electricity,10 Aug 2022,2223/05,LGE,N,
0000422668,EDF ENERGY,142.66,Pure Gym & Adjacent Building,Electricity,10 Aug 2022,2223/05,LGE,N,
0000422668,EDF ENERGY,18.35,Recycling Centre,Electricity,10 Aug 2022,2223/05,LGE,N,
0000422668,EDF ENERGY,"1,697.49",Sewage Treatment Works,Electricity,10 Aug 2022,2223/05,LGE,N,
0000422668,EDF ENERGY,"13,561.58",Sheltered Accommodation,Electricity,10 Aug 2022,2223/05,LGE,N,
0000422668,EDF ENERGY,68.08,Tacon Close Eye TDP,Electricity,10 Aug 2022,2223/05,LGE,N,
0000422668,EDF ENERGY,"2,245.96",Temporary Accommodation,Electricity,10 Aug 2022,2223/05,LGE,N,
0000422668,EDF ENERGY,"6,141.87",Tenancy Services,Electricity,10 Aug 2022,2223/05,LGE,N,
0000422668,EDF ENERGY,"3,021.01",Wingfield Barns,Electricity,10 Aug 2022,2223/05,LGE,N,
0000362099,BRITISH GAS,326.30,General/Supervision & Mgmt,Electricity,11 Aug 2022,2223/05,LGE,N,
0000422667,GPC BARCLAYS,"5,473.25",Current Assets,Barclaycard Control,14 Aug 2022,2223/05,LGE,Y,14%
0000422655,ALLSTAR BUSINESS SOLUTIONS LTD,161.13,Housing Options,Plant & Vehicle Fuel,31 Jul 2022,2223/05,SME,Y,50%
0000422655,ALLSTAR BUSINESS SOLUTIONS LTD,"10,379.26",Building Services,Plant & Vehicle Fuel,31 Jul 2022,2223/05,SME,Y,50%
0000361585,STANNAH STAIRLIFTS LTD,"6,504.00",Council House Adaptions,Improvements,02 Aug 2022,2223/05,LGE,N,
0000422658,COMPUTERSHARE ,"1,040.00",Current Assets,ChildCare Vouchers-Control,29 Jul 2022,2223/05,LGE,N,
0000422703,COMPUTERSHARE ,910.00,Current Assets,ChildCare Vouchers-Control,26 Aug 2022,2223/05,LGE,N,
0000362069,1331 STOWMARKET SQUADRON,"2,300.00",Grants & Contrbns,Contributions & Donations,25 Aug 2022,2223/05,SME,N,
0000422663,1ST WETHERDEN & HAUGHLEY SCOUTS,505.33,Bring Sites,Contributions & Donations,09 Aug 2022,2223/05,SME,N,
0000422672,BACTON PARISH COUNCIL,617.50,Street & Major Road Cleansing,Contributions to other Bodies,19 Aug 2022,2223/05,SME,N,
0000422673,BARHAM PARISH COUNCIL,617.50,Street & Major Road Cleansing,Contributions to other Bodies,19 Aug 2022,2223/05,SME,N,
0000422674,BARKING PARISH COUNCIL,370.50,Street & Major Road Cleansing,Contributions to other Bodies,19 Aug 2022,2223/05,SME,N,
0000361715,BOTESDALE PARISH COUNCIL,"9,412.98",CIL Funded REFCUS,Grants,05 Aug 2022,2223/05,SME,N,
0000361831,BOTESDALE PARISH COUNCIL,"4,663.70",Community Wellbeing,Grants,11 Aug 2022,2223/05,SME,N,
0000361838,BOTESDALE PARISH COUNCIL,765.40,S106 Open Spaces Expenditure,Grants,12 Aug 2022,2223/05,SME,N,
0000422676,BOTESDALE PARISH COUNCIL,370.50,Street & Major Road Cleansing,Contributions to other Bodies,19 Aug 2022,2223/05,SME,N,
0000422677,BRAMFORD PARISH COUNCIL,617.50,Street & Major Road Cleansing,Contributions to other Bodies,19 Aug 2022,2223/05,SME,N,
0000422678,CLAYDON & WHITTON PARISH COUNCIL,"1,235.00",Street & Major Road Cleansing,Contributions to other Bodies,19 Aug 2022,2223/05,SME,N,
0000422679,DEBENHAM PARISH COUNCIL,"2,192.13",Street & Major Road Cleansing,Contributions to other Bodies,19 Aug 2022,2223/05,SME,N,
0000361644,DEBENHAM VILLAGE HALL & PLAYING FIELD TR,"2,300.00",Holiday Activity Fund,"Equipment, Tools & Materials",31 Jul 2022,2223/05,SME,N,
0000361834,DEBENHAM VILLAGE HALL & PLAYING FIELD TR,"2,003.32",Community Wellbeing,Grants,11 Aug 2022,2223/05,SME,N,
0000422680,EYE TOWN COUNCIL,"2,470.00",Street & Major Road Cleansing,Contributions to other Bodies,19 Aug 2022,2223/05,SME,N,
0000361817,FRAMSDEN PARISH COUNCIL,"10,190.81",CIL Funded REFCUS,Grants,11 Aug 2022,2223/05,SME,N,
0000361821,FRAMSDEN PARISH COUNCIL,"12,903.84",Community Wellbeing,Grants,11 Aug 2022,2223/05,SME,N,
0000422681,FRESSINGFIELD PARISH COUNCIL,555.75,Street & Major Road Cleansing,Contributions to other Bodies,19 Aug 2022,2223/05,SME,N,
0000422682,GREAT BLAKENHAM PARISH COUNCIL,"1,235.00",Street & Major Road Cleansing,Contributions to other Bodies,19 Aug 2022,2223/05,SME,N,
0000422684,HARLESTON PARISH MEETING,617.50,Street & Major Road Cleansing,Contributions to other Bodies,19 Aug 2022,2223/05,SME,N,
0000422685,HAUGHLEY PARISH COUNCIL,617.50,Street & Major Road Cleansing,Contributions to other Bodies,19 Aug 2022,2223/05,SME,N,
0000422687,HOXNE PARISH COUNCIL,617.50,Street & Major Road Cleansing,Contributions to other Bodies,19 Aug 2022,2223/05,SME,N,
0000422689,MENDLESHAM PARISH COUNCIL,432.25,Street & Major Road Cleansing,Contributions to other Bodies,19 Aug 2022,2223/05,SME,N,
0000422693,RICKINGHALL INFERIOR AND RICKINGHALL SUP,494.00,Street & Major Road Cleansing,Contributions to other Bodies,19 Aug 2022,2223/05,SME,N,
0000422695,STOWUPLAND PARISH COUNCIL,"1,235.00",Street & Major Road Cleansing,Contributions to other Bodies,19 Aug 2022,2223/05,SME,N,
0000422696,STRADBROKE PARISH COUNCIL,"1,049.75",Street & Major Road Cleansing,Contributions to other Bodies,19 Aug 2022,2223/05,SME,N,
0000361513,THURSTON PARISH COUNCIL,690.00,Grants & Contrbns,Contributions & Donations,01 Aug 2022,2223/05,SME,N,
0000361514,THURSTON PARISH COUNCIL,690.00,Grants & Contrbns,Contributions & Donations,01 Aug 2022,2223/05,SME,N,
0000361940,THURSTON PARISH COUNCIL,745.00,Grants & Contrbns,Contributions & Donations,18 Aug 2022,2223/05,SME,N,
0000422697,THURSTON PARISH COUNCIL,935.75,Street & Major Road Cleansing,Contributions to other Bodies,19 Aug 2022,2223/05,SME,N,
0000361793,TOSTOCK PARISH COUNCIL,650.00,Grants & Contrbns,Contributions & Donations,10 Aug 2022,2223/05,SME,N,
0000422698,WETHERDEN PARISH COUNCIL,370.50,Street & Major Road Cleansing,Contributions to other Bodies,19 Aug 2022,2223/05,SME,N,
0000422699,WOOLPIT PARISH COUNCIL,741.00,Street & Major Road Cleansing,Contributions to other Bodies,19 Aug 2022,2223/05,SME,N,
0000361342,SUFFOLK COUNTY COUNCIL,"8,309.19",Domestic Waste,MRF Disposal,21 Jul 2022,2223/05,LGE,N,
0000361342,SUFFOLK COUNTY COUNCIL,"24,782.49",Garden Waste,Garden Waste Disposal,21 Jul 2022,2223/05,LGE,N,
0000361508,SUFFOLK COUNTY COUNCIL,"41,000.00",Endeavour House - HQ,Operating Lease Payments,29 Jul 2022,2223/05,LGE,Y,50%
0000361508,SUFFOLK COUNTY COUNCIL,"53,750.00",Endeavour House - HQ,Contracted Services,29 Jul 2022,2223/05,LGE,Y,50%
0000361509,SUFFOLK COUNTY COUNCIL,"4,557.00",Stowmarket CAP,Operating Lease Payments,29 Jul 2022,2223/05,LGE,Y,50%
0000361509,SUFFOLK COUNTY COUNCIL,"3,307.00",Stowmarket CAP,Contracted Services,29 Jul 2022,2223/05,LGE,Y,50%
0000361663,SUFFOLK COUNTY COUNCIL,"1,950.00",Land Chgs,Contracted Services,03 Aug 2022,2223/05,LGE,N,
0000361721,SUFFOLK COUNTY COUNCIL,410.00,Policy & Strategy (H & W),"Equipment, Tools & Materials",21 Jun 2022,2223/05,LGE,N,
0000361512,FENN WRIGHT LLP,450.00,General/Supervision & Mgmt,Prof & Consultancy Fees,29 Jul 2022,2223/05,SME,N,
0000361522,FELSHAM & GEDDING VILLAGE HALL M.C.,400.00,Grants & Contrbns,Contributions & Donations,01 Aug 2022,2223/05,SME,N,
0000361762,STOWMARKET COMMUNITY SPORTS & SOCIAL CLU,"17,710.86",CIL Funded REFCUS,Grants,09 Aug 2022,2223/05,SME,N,
0000362143,TELEFONICA UK LIMITED - O2,"1,483.14",ICT,Telephone Costs,27 Aug 2022,2223/05,LGE,Y,50%
0000361383,KENNET EQUIPMENT LEASING,283.05,Creeting Rd Depot,Operating Lease Payments,25 Jul 2022,2223/05,SME,Y,50%
0000361743,ZURICH MUNICIPAL,"4,574.00",Footpaths,Prof & Consultancy Fees,30 Jul 2022,2223/05,LGE,N,
0000361714,EAST OF ENGLAND CO-OPERATIVE SOCIETY LTD,"13,522.00",Management Team,Conference Expenses,15 Jul 2022,2223/05,LGE,Y,50%
0000361967,LEX AUTOLEASE,317.20,Building Services,Lease Cars - Payment,10 Aug 2022,2223/05,SME,Y,50%
0000361968,LEX AUTOLEASE,315.39,Building Services,Lease Cars - Payment,11 Aug 2022,2223/05,SME,Y,50%
0000361969,LEX AUTOLEASE,303.08,Building Services,Lease Cars - Payment,11 Aug 2022,2223/05,SME,Y,50%
0000361973,LEX AUTOLEASE,325.05,Building Services,Lease Cars - Payment,14 Aug 2022,2223/05,SME,Y,50%
0000361974,LEX AUTOLEASE,337.78,Building Services,Lease Cars - Payment,14 Aug 2022,2223/05,SME,Y,50%
0000361975,LEX AUTOLEASE,263.72,Building Services,Lease Cars - Payment,14 Aug 2022,2223/05,SME,Y,50%
0000361976,LEX AUTOLEASE,424.45,Building Services,Lease Cars - Payment,16 Aug 2022,2223/05,SME,Y,50%
0000361977,LEX AUTOLEASE,380.23,Building Services,Lease Cars - Payment,16 Aug 2022,2223/05,SME,Y,50%
0000361978,LEX AUTOLEASE,620.97,Building Services,Lease Cars - Payment,16 Aug 2022,2223/05,SME,Y,50%
0000361981,LEX AUTOLEASE,267.12,Building Services,Lease Cars - Payment,15 Aug 2022,2223/05,SME,Y,50%
0000361982,LEX AUTOLEASE,620.97,Building Services,Lease Cars - Payment,15 Aug 2022,2223/05,SME,Y,50%
0000361983,LEX AUTOLEASE,380.23,Building Services,Lease Cars - Payment,15 Aug 2022,2223/05,SME,Y,50%
0000361607,LANDMARK CHAMBERS,"1,200.00",Devt Management - Appeals,Legal ex - Appeal related,25 May 2022,2223/05,SME,Y,50%
0000361608,LANDMARK CHAMBERS,525.00,Devt Management - Appeals,Legal ex - Appeal related,19 Apr 2022,2223/05,SME,Y,50%
0000361478,ESSEX AND SUFFOLK WATER,"1,702.23",Sheltered Accommodation,Water Rates - Metered,25 Jul 2022,2223/05,LGE,N,50%
0000361892,ESSEX AND SUFFOLK WATER,822.06,Sheltered Accommodation,Water Rates - Metered,09 Aug 2022,2223/05,LGE,N,
0000361947,ESSEX AND SUFFOLK WATER,766.66,Sheltered Accommodation,Water Rates - Metered,12 Aug 2022,2223/05,LGE,N,
0000422701,GAZPROM ENERGY,15.88,"11 Market Place, Stowmarket",Gas,15 Aug 2022,2223/05,SME,N,
0000422701,GAZPROM ENERGY,83.78,Creeting Rd Depot,Gas,15 Aug 2022,2223/05,SME,Y,50%
0000422701,GAZPROM ENERGY,28.88,Headquarters General,Gas,15 Aug 2022,2223/05,SME,N,
0000422701,GAZPROM ENERGY,"7,569.17",Leisure Contract,Gas,15 Aug 2022,2223/05,SME,N,
0000422701,GAZPROM ENERGY,927.37,Needham Market Middle School,Gas,15 Aug 2022,2223/05,SME,N,
0000422701,GAZPROM ENERGY,15.88,Pure Gym & Adjacent Building,Gas,15 Aug 2022,2223/05,SME,N,
0000422701,GAZPROM ENERGY,"2,676.67",Sheltered Accommodation,Gas,15 Aug 2022,2223/05,SME,N,
0000422701,GAZPROM ENERGY,242.98,Temporary Accommodation,Gas,15 Aug 2022,2223/05,SME,N,
0000422701,GAZPROM ENERGY,194.62,Tenancy Services,Gas,15 Aug 2022,2223/05,SME,N,
0000361835,MID SUFFOLK CITIZENS ADVICE BUREAU,"23,875.00",Grants & Contrbns,Grants,11 Aug 2022,2223/05,SME,N,
0000361611,WHYBROW PROPERTY SOLUTIONS LTD,"2,765.68",Building Services,BMBS Repairs Work,21 Jun 2022,2223/05,SME,N,
0000361816,WHYBROW PROPERTY SOLUTIONS LTD,300.00,Building Services,Repairs,10 Aug 2022,2223/05,SME,N,
0000360789,L A C CLEANING CONTRACTORS LIMITED,325.50,RoughSleepersInterventionYr3,Misc Supplies & Services Costs,24 Jun 2022,2223/05,SME,N,
0000360916,L A C CLEANING CONTRACTORS LIMITED,366.16,Temporary Accommodation,General Cleaning,29 Jun 2022,2223/05,SME,N,
0000360917,L A C CLEANING CONTRACTORS LIMITED,824.41,Temporary Accommodation,General Cleaning,29 Jun 2022,2223/05,SME,N,
0000361107,L A C CLEANING CONTRACTORS LIMITED,395.50,Housing Options,General Cleaning,07 Jul 2022,2223/05,SME,N,
0000361339,L A C CLEANING CONTRACTORS LIMITED,375.50,Homelessness Private Sector,General Cleaning,21 Jul 2022,2223/05,SME,N,
0000361340,L A C CLEANING CONTRACTORS LIMITED,272.50,Other Temp Accommodation,General Cleaning,21 Jul 2022,2223/05,SME,N,
0000361349,L A C CLEANING CONTRACTORS LIMITED,366.16,Temporary Accommodation,General Cleaning,25 Jul 2022,2223/05,SME,N,
0000361501,L A C CLEANING CONTRACTORS LIMITED,824.41,Temporary Accommodation,General Cleaning,25 Jul 2022,2223/05,SME,N,
0000361610,L A C CLEANING CONTRACTORS LIMITED,525.50,Building Services,Repairs,02 Aug 2022,2223/05,SME,N,
0000361713,L A C CLEANING CONTRACTORS LIMITED,325.50,Building Services,Repairs,05 Aug 2022,2223/05,SME,N,
0000361570,BRITISH GAS (GAS),"1,558.03",Temporary Accommodation,Gas,14 Jul 2022,2223/05,LGE,N,
0000361523,ARMSTRONG YORK ASBESTOS ENVIRONMENTAL,"6,678.00",Asbestos Survey & Reinspection,Prof & Consultancy Fees,30 Jun 2022,2223/05,SME,N,
0000361572,ARMSTRONG YORK ASBESTOS ENVIRONMENTAL,"5,519.38",Asbestos Survey & Reinspection,Prof & Consultancy Fees,29 Jul 2022,2223/05,SME,N,
0000361888,ADSO - ASSOCIATION OF DEMOCRATIC SERVICE,450.00,Governance,Conference Expenses,21 Jun 2022,2223/05,SME,Y,50%
0000361805,TRADITION (UK) LTD,"7,978.08",Treasury Management,Prof & Consultancy Fees,29 Jul 2022,2223/05,LGE,N,
0000362056,CONCERTUS DESIGN & PROPERTY CONSULTANTS,990.00,Endeavour House - HQ,Misc Premises Costs,31 May 2022,2223/05,SME,Y,50%
0000362058,CONCERTUS DESIGN & PROPERTY CONSULTANTS,"4,427.50",Endeavour House - HQ,Misc Premises Costs,31 Mar 2022,2223/05,SME,Y,50%
0000362059,CONCERTUS DESIGN & PROPERTY CONSULTANTS,"5,227.50",Endeavour House - HQ,Misc Premises Costs,31 Jan 2022,2223/05,SME,Y,50%
0000361862,OPUS PEOPLE SOLUTIONS LTD,722.54,Current Liabilities,Agency Staff Holding A/C,11 Aug 2022,2223/05,SME,N,
0000362043,OPUS PEOPLE SOLUTIONS LTD,963.92,Current Liabilities,Agency Staff Holding A/C,18 Aug 2022,2223/05,SME,N,
0000361614,CORNERSTONE BARRISTERS,"8,450.00",Devt Management - Appeals,Legal Expenses,27 Jul 2022,2223/05,SME,N,
0000361671,VERTAS GROUP LTD,"1,395.00",Assets & Development,Security Systems,31 Jul 2022,2223/05,SME,N,
0000361765,4PRINCIPLES CONSTRUCTION LTD,"5,901.16",Mand Disabled Facilities Grant,Grants,09 Aug 2022,2223/05,SME,N,
0000360977,MATT ALLMAN LTD T/A MOVEITCLEARITFINDIT,"1,833.33",Homeless Prevention Fund,Removal Expenses,02 Jul 2022,2223/05,SME,N,
0000361493,MATT ALLMAN LTD T/A MOVEITCLEARITFINDIT,"1,833.33",Homeless Prevention Fund,Removal Expenses,02 Jul 2022,2223/05,SME,N,
0000361740,BIRKETTS LLP,644.00,Organisational Devt,Professional Subs (Staff),26 May 2022,2223/05,LGE,Y,50%
0000361161,GALLAGHER CAR & VAN RENTALS LTD,"1,900.00",Domestic Waste,Refuse Contract,12 Jul 2022,2223/05,LGE,N,
0000361707,GALLAGHER CAR & VAN RENTALS LTD,"1,400.00",Domestic Waste,Refuse Contract,05 Aug 2022,2223/05,LGE,N,
0000361708,GALLAGHER CAR & VAN RENTALS LTD,"1,232.00",Domestic Waste,Refuse Contract,05 Aug 2022,2223/05,LGE,N,
0000361766,GALLAGHER CAR & VAN RENTALS LTD,"2,100.00",Domestic Waste,Refuse Contract,09 Aug 2022,2223/05,LGE,N,
0000361914,GALLAGHER CAR & VAN RENTALS LTD,520.00,Domestic Waste,Refuse Contract,17 Aug 2022,2223/05,LGE,N,
0000361731,FORESOLUTIONS LTD,254.38,Open Spaces,Plant & Vehicle - Other costs,08 Aug 2022,2223/05,SME,N,
0000361517,LOFTY HEIGHTS LTD,"1,285.00",Tenancy Services,Contracted Services,01 Aug 2022,2223/05,SME,N,
0000361518,RICHARD UTTING ASSOCIATES LLP,"1,787.20",Needham Market Middle School,Prof & Consultancy Fees,31 Jul 2022,2223/05,SME,N,
0000361615,RICHARD UTTING ASSOCIATES LLP,"2,055.00",Eves Meadow Haughley S106,Prof & Consultancy Fees,31 Jul 2022,2223/05,SME,N,
0000361638,RICHARD UTTING ASSOCIATES LLP,"3,520.00",Paddock House Eye,Prof & Consultancy Fees,31 Jul 2022,2223/05,SME,N,
0000361787,RICHARD UTTING ASSOCIATES LLP,"1,293.23","Green Road, Woolpit",Prof & Consultancy Fees,31 Jul 2022,2223/05,SME,N,
0000362010,RICHARD UTTING ASSOCIATES LLP,"2,124.75",Stowmarket Middle School,Prof & Consultancy Fees,31 Jul 2022,2223/05,SME,N,
0000361933,MANSION HOUSE PUBLISHING LTD,633.00,Independent Living Service,Prof & Consultancy Fees,16 Aug 2022,2223/05,SME,Y,50%
0000361800,PUBLIC SEWER SERVICES,839.39,Building Services,Repairs,31 Jul 2022,2223/05,SME,N,
0000361802,PUBLIC SEWER SERVICES,"1,723.01",Building Services,Repairs,08 Aug 2022,2223/05,SME,N,
0000361599,THE STOWMARKET GLASS COMPANY LTD,"1,078.92",Building Services,Repairs,11 Jul 2022,2223/05,SME,N,
0000361712,ASPECT CONTRACTS LTD,"3,628.00",Asbestos,Improvements,31 Jul 2022,2223/05,LGE,N,
0000361716,ASPECT CONTRACTS LTD,"1,865.00",Asbestos,Improvements,30 Jun 2022,2223/05,LGE,N,
0000361636,THE OYSTER PARTNERSHIP LTD,"3,150.00",General/Supervision & Mgmt,Agency Staff,03 Aug 2022,2223/05,SME,Y,50%
0000361637,THE OYSTER PARTNERSHIP LTD,"2,450.00",General/Supervision & Mgmt,Agency Staff,03 Aug 2022,2223/05,SME,Y,50%
0000361810,THE OYSTER PARTNERSHIP LTD,"1,770.00",General/Supervision & Mgmt,Agency Staff,10 Aug 2022,2223/05,SME,Y,50%
0000361811,THE OYSTER PARTNERSHIP LTD,"3,150.00",General/Supervision & Mgmt,Agency Staff,10 Aug 2022,2223/05,SME,Y,50%
0000361812,THE OYSTER PARTNERSHIP LTD,"2,450.00",General/Supervision & Mgmt,Agency Staff,10 Aug 2022,2223/05,SME,Y,50%
0000361925,THE OYSTER PARTNERSHIP LTD,"2,450.00",General/Supervision & Mgmt,Agency Staff,17 Aug 2022,2223/05,SME,Y,50%
0000361931,THE OYSTER PARTNERSHIP LTD,"1,770.00",General/Supervision & Mgmt,Agency Staff,17 Aug 2022,2223/05,SME,Y,50%
0000361932,THE OYSTER PARTNERSHIP LTD,"3,150.00",General/Supervision & Mgmt,Agency Staff,17 Aug 2022,2223/05,SME,Y,50%
0000362061,THE OYSTER PARTNERSHIP LTD,"2,450.00",General/Supervision & Mgmt,Agency Staff,24 Aug 2022,2223/05,SME,Y,50%
0000362062,THE OYSTER PARTNERSHIP LTD,"1,770.00",General/Supervision & Mgmt,Agency Staff,24 Aug 2022,2223/05,SME,Y,50%
0000362063,THE OYSTER PARTNERSHIP LTD,"3,150.00",General/Supervision & Mgmt,Agency Staff,24 Aug 2022,2223/05,SME,Y,50%
0000422659,RIX PETROLEUM (EAST ANGLIA) LTD,"11,308.78",Open Spaces,Plant & Vehicle Fuel,02 Aug 2022,2223/05,SME,N,
0000361879,HOUSING FINANCE ASSOCIATES LTD,"8,424.00",General/Supervision & Mgmt,Contracted Services,15 Aug 2022,2223/05,SME,Y,50%
0000361642,VIVID RESOURCING,"1,710.00",Business Cont/Emergency Plan,Contracted Services,03 Aug 2022,2223/05,SME,Y,50%
0000361436,NORTHUMBRIAN WATER LTD,33.46,Cedars Park,Legionella Testing,28 Jul 2022,2223/05,LGE,N,
0000361436,NORTHUMBRIAN WATER LTD,33.46,Creeting Rd Depot,Legionella Testing,28 Jul 2022,2223/05,LGE,Y,50%
0000361436,NORTHUMBRIAN WATER LTD,66.92,Leisure Contract,Legionella Testing,28 Jul 2022,2223/05,LGE,N,
0000361436,NORTHUMBRIAN WATER LTD,179.44,Open Spaces,Legionella Testing,28 Jul 2022,2223/05,LGE,N,
0000361436,NORTHUMBRIAN WATER LTD,33.46,Opportunities Bdg ChiltonField,Legionella Testing,28 Jul 2022,2223/05,LGE,N,
0000361436,NORTHUMBRIAN WATER LTD,507.82,Sheltered Accommodation,Legionella Testing,28 Jul 2022,2223/05,LGE,N,
0000361436,NORTHUMBRIAN WATER LTD,39.53,Tacon Close Eye TDP,Legionella Testing,28 Jul 2022,2223/05,LGE,N,
0000361436,NORTHUMBRIAN WATER LTD,39.53,Temporary Accommodation,Legionella Testing,28 Jul 2022,2223/05,LGE,N,
0000361436,NORTHUMBRIAN WATER LTD,629.52,Tenancy Services,Legionella Testing,28 Jul 2022,2223/05,LGE,N,
0000361436,NORTHUMBRIAN WATER LTD,72.99,Wingfield Barns,Legionella Testing,28 Jul 2022,2223/05,LGE,N,
0000361437,NORTHUMBRIAN WATER LTD,33.46,Cedars Park,Legionella Testing,28 Jul 2022,2223/05,LGE,N,
0000361437,NORTHUMBRIAN WATER LTD,33.46,Creeting Rd Depot,Legionella Testing,28 Jul 2022,2223/05,LGE,Y,50%
0000361437,NORTHUMBRIAN WATER LTD,66.92,Leisure Contract,Legionella Testing,28 Jul 2022,2223/05,LGE,N,
0000361437,NORTHUMBRIAN WATER LTD,179.44,Open Spaces,Legionella Testing,28 Jul 2022,2223/05,LGE,N,
0000361437,NORTHUMBRIAN WATER LTD,33.46,Opportunities Bdg ChiltonField,Legionella Testing,28 Jul 2022,2223/05,LGE,N,
0000361437,NORTHUMBRIAN WATER LTD,507.82,Sheltered Accommodation,Legionella Testing,28 Jul 2022,2223/05,LGE,N,
0000361437,NORTHUMBRIAN WATER LTD,39.53,Tacon Close Eye TDP,Legionella Testing,28 Jul 2022,2223/05,LGE,N,
0000361437,NORTHUMBRIAN WATER LTD,39.53,Temporary Accommodation,Legionella Testing,28 Jul 2022,2223/05,LGE,N,
0000361437,NORTHUMBRIAN WATER LTD,629.52,Tenancy Services,Legionella Testing,28 Jul 2022,2223/05,LGE,N,
0000361437,NORTHUMBRIAN WATER LTD,72.99,Wingfield Barns,Legionella Testing,28 Jul 2022,2223/05,LGE,N,
0000361438,NORTHUMBRIAN WATER LTD,33.46,Cedars Park,Legionella Testing,28 Jul 2022,2223/05,LGE,N,
0000361438,NORTHUMBRIAN WATER LTD,33.46,Creeting Rd Depot,Legionella Testing,28 Jul 2022,2223/05,LGE,Y,50%
0000361438,NORTHUMBRIAN WATER LTD,66.92,Leisure Contract,Legionella Testing,28 Jul 2022,2223/05,LGE,N,
0000361438,NORTHUMBRIAN WATER LTD,179.44,Open Spaces,Legionella Testing,28 Jul 2022,2223/05,LGE,N,
0000361438,NORTHUMBRIAN WATER LTD,33.46,Opportunities Bdg ChiltonField,Legionella Testing,28 Jul 2022,2223/05,LGE,N,
0000361438,NORTHUMBRIAN WATER LTD,507.82,Sheltered Accommodation,Legionella Testing,28 Jul 2022,2223/05,LGE,N,
0000361438,NORTHUMBRIAN WATER LTD,39.53,Tacon Close Eye TDP,Legionella Testing,28 Jul 2022,2223/05,LGE,N,
0000361438,NORTHUMBRIAN WATER LTD,39.53,Temporary Accommodation,Legionella Testing,28 Jul 2022,2223/05,LGE,N,
0000361438,NORTHUMBRIAN WATER LTD,629.52,Tenancy Services,Legionella Testing,28 Jul 2022,2223/05,LGE,N,
0000361438,NORTHUMBRIAN WATER LTD,72.99,Wingfield Barns,Legionella Testing,28 Jul 2022,2223/05,LGE,N,
0000361439,NORTHUMBRIAN WATER LTD,33.46,Cedars Park,Legionella Testing,28 Jul 2022,2223/05,LGE,N,
0000361439,NORTHUMBRIAN WATER LTD,33.46,Creeting Rd Depot,Legionella Testing,28 Jul 2022,2223/05,LGE,Y,50%
0000361439,NORTHUMBRIAN WATER LTD,66.92,Leisure Contract,Legionella Testing,28 Jul 2022,2223/05,LGE,N,
0000361439,NORTHUMBRIAN WATER LTD,179.44,Open Spaces,Legionella Testing,28 Jul 2022,2223/05,LGE,N,
0000361439,NORTHUMBRIAN WATER LTD,33.46,Opportunities Bdg ChiltonField,Legionella Testing,28 Jul 2022,2223/05,LGE,N,
0000361439,NORTHUMBRIAN WATER LTD,507.82,Sheltered Accommodation,Legionella Testing,28 Jul 2022,2223/05,LGE,N,
0000361439,NORTHUMBRIAN WATER LTD,39.53,Tacon Close Eye TDP,Legionella Testing,28 Jul 2022,2223/05,LGE,N,
0000361439,NORTHUMBRIAN WATER LTD,39.53,Temporary Accommodation,Legionella Testing,28 Jul 2022,2223/05,LGE,N,
0000361439,NORTHUMBRIAN WATER LTD,629.52,Tenancy Services,Legionella Testing,28 Jul 2022,2223/05,LGE,N,
0000361439,NORTHUMBRIAN WATER LTD,72.99,Wingfield Barns,Legionella Testing,28 Jul 2022,2223/05,LGE,N,
0000361469,GIPPING OCCUPATIONAL HEALTH LTD,385.72,Health & Safety,Contracted Services,22 Jul 2022,2223/05,SME,N,
0000361918,JOHN FORD GROUP LTD,"6,622.13",Mand Disabled Facilities Grant,Grants,17 Aug 2022,2223/05,SME,N,
0000361949,RESIDENTIALLY CHARTERED SURVEYORS,800.00,"Cedars Park C & D, Stowmarket",Prof & Consultancy Fees,18 Aug 2022,2223/05,SME,N,
0000361680,BRITISH RED CROSS,259.00,Organisational Devt,Health & Safety Training,01 Aug 2022,2223/05,SME,Y,50%
0000361041,TOP FLOORS (EAST ANGLIA) LTD,790.70,Other Temp Accommodation,"Equipment, Tools & Materials",15 Jun 2022,2223/05,SME,N,
0000361898,GREENFUTURE SOLUTIONS LTD,"2,090.00",Mand Disabled Facilities Grant,Grants,16 Aug 2022,2223/05,SME,N,
0000361666,AQUAM WATER SERVICES LTD,"1,030.00",Street & Major Road Cleansing,"Equipment, Tools & Materials",04 Aug 2022,2223/05,SME,N,
0000361497,PORTAL PLAN QUEST LTD,924.00,Devt Management - Apps,Planning Fees,01 Aug 2022,2223/05,SME,N,
0000361903,PORTAL PLAN QUEST LTD,462.00,Devt Management - Apps,Planning Fees,16 Aug 2022,2223/05,SME,N,
0000362189,PORTAL PLAN QUEST LTD,462.00,Devt Management - Apps,Planning Fees,31 Aug 2022,2223/05,SME,N,
0000362196,PORTAL PLAN QUEST LTD,462.00,Devt Management - Apps,Planning Fees,31 Aug 2022,2223/05,SME,N,
0000361692,ABBEYCROFT LEISURE,"1,224.54",Holiday Activity Fund,"Equipment, Tools & Materials",31 May 2022,2223/05,LGE,N,
0000362020,BELLWAY HOMES LIMITED (ESSEX DIVISION),"1,074,176.54","Cedars Park C & D, Stowmarket",Major Contracts,22 Aug 2022,2223/05,LGE,N,
0000361406,A C LEIGH (NORWICH) LTD,684.72,Building Services,"Equipment, Tools & Materials",22 Jul 2022,2223/05,SME,N,
0000361653,A C LEIGH (NORWICH) LTD,"1,027.08",Building Services,"Equipment, Tools & Materials",26 Jul 2022,2223/05,SME,N,
0000361659,A C LEIGH (NORWICH) LTD,518.52,Building Services,"Equipment, Tools & Materials",28 Jul 2022,2223/05,SME,N,
0000361488,3 POINT PROPERTY MANAGEMENT LTD,895.00,Guaranteed Rent Scheme,Rent Payable,01 Aug 2022,2223/05,SME,N,
0000361757,3 POINT PROPERTY MANAGEMENT LTD,675.00,Guaranteed Rent Scheme,Rent Payable,09 Aug 2022,2223/05,SME,N,
0000361645,FLAGSHIP HOUSING GROUP LTD-RENT ACCOUNT,500.00,Homeless Prevention Fund,Misc Supplies & Services Costs,04 Aug 2022,2223/05,LGE,N,
0000361851,APTL ENTERPRISES LTD,"4,270.00",PV Panels,Repairs,13 Jul 2022,2223/05,SME,N,
0000361950,APTL ENTERPRISES LTD,"3,652.00",PV Panels,Repairs,31 Jul 2022,2223/05,SME,N,
0000361951,APTL ENTERPRISES LTD,"3,652.00",PV Panels,Repairs,30 Jun 2022,2223/05,SME,N,
0000361540,WASHCO LTD,467.00,Sheltered Accommodation,"Equipment, Tools & Materials",01 Aug 2022,2223/05,SME,N,
0000361549,ANGLIA COMMERCIAL FLOORING LTD,283.74,Building Services,Repairs,27 Jul 2022,2223/05,SME,N,
0000361551,ANGLIA COMMERCIAL FLOORING LTD,614.77,Building Services,Repairs,27 Jul 2022,2223/05,SME,N,
0000361780,ANGLIA COMMERCIAL FLOORING LTD,770.38,Building Services,Repairs,04 Aug 2022,2223/05,SME,N,
0000361781,ANGLIA COMMERCIAL FLOORING LTD,506.16,Building Services,Repairs,04 Aug 2022,2223/05,SME,N,
0000361782,ANGLIA COMMERCIAL FLOORING LTD,"1,024.49",Building Services,Repairs,04 Aug 2022,2223/05,SME,N,
0000361783,ANGLIA COMMERCIAL FLOORING LTD,568.46,Building Services,Repairs,04 Aug 2022,2223/05,SME,N,
0000361784,ANGLIA COMMERCIAL FLOORING LTD,491.21,Building Services,Repairs,04 Aug 2022,2223/05,SME,N,
0000361785,ANGLIA COMMERCIAL FLOORING LTD,440.30,Building Services,Repairs,04 Aug 2022,2223/05,SME,N,
0000422670,ANGLIAN WATER BUS (NAT) LTD T/A WAVE,53.55,"11 Market Place, Stowmarket",Water Rates - Metered,12 Aug 2022,2223/05,LGE,N,
0000422670,ANGLIAN WATER BUS (NAT) LTD T/A WAVE,531.00,Creeting Rd Depot,Water Rates - Metered,12 Aug 2022,2223/05,LGE,Y,50%
0000422670,ANGLIAN WATER BUS (NAT) LTD T/A WAVE,32.26,General/Supervision & Mgmt,Water Rates - Metered,12 Aug 2022,2223/05,LGE,N,
0000422670,ANGLIAN WATER BUS (NAT) LTD T/A WAVE,-555.44,Headquarters General,Water Rates - Metered,12 Aug 2022,2223/05,LGE,N,
0000422670,ANGLIAN WATER BUS (NAT) LTD T/A WAVE,133.53,Open Spaces,Water Rates - Metered,12 Aug 2022,2223/05,LGE,N,
0000422670,ANGLIAN WATER BUS (NAT) LTD T/A WAVE,853.08,Public Conveniences,Water Rates - Metered,12 Aug 2022,2223/05,LGE,N,
0000422670,ANGLIAN WATER BUS (NAT) LTD T/A WAVE,12.15,Recycling Centre,Water Rates - Metered,12 Aug 2022,2223/05,LGE,N,
0000422670,ANGLIAN WATER BUS (NAT) LTD T/A WAVE,4.21,Sewage Treatment Works,Water Rates - Metered,12 Aug 2022,2223/05,LGE,N,
0000422670,ANGLIAN WATER BUS (NAT) LTD T/A WAVE,"3,096.55",Sheltered Accommodation,Water Rates - Metered,12 Aug 2022,2223/05,LGE,N,
0000422670,ANGLIAN WATER BUS (NAT) LTD T/A WAVE,20.56,Tacon Close Eye TDP,Water Rates - Metered,12 Aug 2022,2223/05,LGE,N,
0000422670,ANGLIAN WATER BUS (NAT) LTD T/A WAVE,17.23,Temporary Accommodation,Water Rates - Metered,12 Aug 2022,2223/05,LGE,N,
0000422670,ANGLIAN WATER BUS (NAT) LTD T/A WAVE,37.05,Tenancy Services,Water Rates - Metered,12 Aug 2022,2223/05,LGE,N,
0000422670,ANGLIAN WATER BUS (NAT) LTD T/A WAVE,27.63,Wingfield Barns,Water Rates - Metered,12 Aug 2022,2223/05,LGE,N,
0000361819,127 TRADING LTD,"15,000.00",Community Wellbeing,Grants,11 Aug 2022,2223/05,SME,N,
0000422669,IMSERV EUROPE LTD,19.97,"11 Market Place, Stowmarket",Electricity,12 Aug 2022,2223/05,LGE,N,
0000422669,IMSERV EUROPE LTD,19.97,Creeting Rd Depot,Electricity,12 Aug 2022,2223/05,LGE,Y,50%
0000422669,IMSERV EUROPE LTD,19.97,Needham Market Middle School,Electricity,12 Aug 2022,2223/05,LGE,N,
0000422669,IMSERV EUROPE LTD,39.94,Open Spaces,Electricity,12 Aug 2022,2223/05,LGE,N,
0000422669,IMSERV EUROPE LTD,19.97,Other HRA Temp Accommodation,Electricity,12 Aug 2022,2223/05,LGE,N,
0000422669,IMSERV EUROPE LTD,19.97,Public Conveniences,Electricity,12 Aug 2022,2223/05,LGE,N,
0000422669,IMSERV EUROPE LTD,19.97,Recycling Centre,Electricity,12 Aug 2022,2223/05,LGE,N,
0000422669,IMSERV EUROPE LTD,159.76,Sewage Treatment Works,Electricity,12 Aug 2022,2223/05,LGE,N,
0000422669,IMSERV EUROPE LTD,159.76,Sheltered Accommodation,Electricity,12 Aug 2022,2223/05,LGE,N,
0000422669,IMSERV EUROPE LTD,19.97,Tacon Close Eye TDP,Electricity,12 Aug 2022,2223/05,LGE,N,
0000422669,IMSERV EUROPE LTD,159.76,Temporary Accommodation,Electricity,12 Aug 2022,2223/05,LGE,N,
0000422669,IMSERV EUROPE LTD,479.28,Tenancy Services,Electricity,12 Aug 2022,2223/05,LGE,N,
0000422700,IMSERV EUROPE LTD,164.00,Headquarters General,Electricity,22 Aug 2022,2223/05,LGE,N,
0000422700,IMSERV EUROPE LTD,239.41,Pure Gym & Adjacent Building,Electricity,22 Aug 2022,2223/05,LGE,N,
0000422700,IMSERV EUROPE LTD,"1,285.64",Sheltered Accommodation,Electricity,22 Aug 2022,2223/05,LGE,N,
0000422700,IMSERV EUROPE LTD,239.41,Wingfield Barns,Electricity,22 Aug 2022,2223/05,LGE,N,
0000422702,IMSERV EUROPE LTD,102.60,"11 Market Place, Stowmarket",Electricity,23 Aug 2022,2223/05,LGE,N,
0000422702,IMSERV EUROPE LTD,102.60,Climate Change and Sustainabil,Electricity,23 Aug 2022,2223/05,LGE,N,
0000422702,IMSERV EUROPE LTD,102.60,Creeting Rd Depot,Electricity,23 Aug 2022,2223/05,LGE,Y,50%
0000422702,IMSERV EUROPE LTD,102.60,Needham Market Middle School,Electricity,23 Aug 2022,2223/05,LGE,N,
0000422702,IMSERV EUROPE LTD,205.20,Open Spaces,Electricity,23 Aug 2022,2223/05,LGE,N,
0000422702,IMSERV EUROPE LTD,102.60,Public Conveniences,Electricity,23 Aug 2022,2223/05,LGE,N,
0000422702,IMSERV EUROPE LTD,56.37,Pure Gym & Adjacent Building,Electricity,23 Aug 2022,2223/05,LGE,N,
0000422702,IMSERV EUROPE LTD,102.60,Recycling Centre,Electricity,23 Aug 2022,2223/05,LGE,N,
0000422702,IMSERV EUROPE LTD,820.80,Sewage Treatment Works,Electricity,23 Aug 2022,2223/05,LGE,N,
0000422702,IMSERV EUROPE LTD,"1,046.28",Sheltered Accommodation,Electricity,23 Aug 2022,2223/05,LGE,N,
0000422702,IMSERV EUROPE LTD,102.60,Tacon Close Eye TDP,Electricity,23 Aug 2022,2223/05,LGE,N,
0000422702,IMSERV EUROPE LTD,718.20,Temporary Accommodation,Electricity,23 Aug 2022,2223/05,LGE,N,
0000422702,IMSERV EUROPE LTD,"2,359.80",Tenancy Services,Electricity,23 Aug 2022,2223/05,LGE,N,
0000422702,IMSERV EUROPE LTD,56.37,Wingfield Barns,Electricity,23 Aug 2022,2223/05,LGE,N,
0000361877,ALBION COMPUTERS PLC,"2,831.00",Jnt Waste Contract,Computer Equpt Purchases,11 Aug 2022,2223/05,SME,Y,50%
0000361520,EASTERN PLAY SERVICES LTD,"2,930.00",Open Spaces,Repairs,29 Jul 2022,2223/05,SME,N,
0000361634,GREENACRE RECRUITMENT LTD,"1,255.19",Housing Standards,Agency Staff,03 Aug 2022,2223/05,SME,Y,50%
0000361795,GREENACRE RECRUITMENT LTD,"1,292.99",Housing Standards,Agency Staff,10 Aug 2022,2223/05,SME,Y,50%
0000361924,GREENACRE RECRUITMENT LTD,"1,278.59",Housing Standards,Agency Staff,17 Aug 2022,2223/05,SME,Y,50%
0000361485,MID SUFFOLK GROWTH LTD,"14,000.00",Needham Lake Vis Centre (CAP),Prof & Consultancy Fees,04 Mar 2022,2223/05,SME,N,
0000361889,BYCHOICE LTD,"1,800.00",Eves Meadow Haughley S106,Prof & Consultancy Fees,30 Jun 2022,2223/05,SME,N,
0000361890,BYCHOICE LTD,"1,800.00","Green Road, Woolpit",Prof & Consultancy Fees,30 Jun 2022,2223/05,SME,N,
0000361878,LAND USE CONSULTANTS LTD,"3,500.00",Nghbrhd Plan Designations,Prof & Consultancy Fees,15 Aug 2022,2223/05,SME,N,
0000361904,LAND USE CONSULTANTS LTD,"3,500.00",Nghbrhd Plan Designations,Prof & Consultancy Fees,16 Aug 2022,2223/05,SME,N,
0000361529,PENTACO CONSTRUCTION LTD,"164,221.00",Stowmarket Middle School,Major Contracts,28 Jul 2022,2223/05,SME,N,
0000361616,SANCROFT BENEFICE CHURCHES,450.00,Grants & Contrbns,Contributions & Donations,03 Aug 2022,2223/05,SME,N,
0000361963,THURSTON PRESCHOOL LTD,"2,500.00",Business Innovation Grants,Grants,19 Aug 2022,2223/05,SME,N,
0000361863,OAKSHIRE ENVIRONMENTAL,280.00,Assets & Development,Contracted Services,04 Aug 2022,2223/05,SME,N,
0000361987,OAKSHIRE ENVIRONMENTAL,"7,194.00",Assets & Development,Contracted Services,19 Aug 2022,2223/05,SME,N,
0000361987,OAKSHIRE ENVIRONMENTAL,702.00,Assets & Development,Contracted Services,19 Aug 2022,2223/05,SME,N,
0000361992,LIMELEASE LTD,395.00,Guaranteed Rent Scheme,Rent Payable,22 Aug 2022,2223/05,SME,N,
0000362089,DEBENHAM SHED,"1,500.00",Grants & Contrbns,Contributions & Donations,26 Aug 2022,2223/05,SME,N,
0000361797,BUCHER MUNICIPAL LTD,509.71,Street & Major Road Cleansing,"Equipment, Tools & Materials",09 Aug 2022,2223/05,LGE,N,
0000361530,GIPPING CONSTRUCTION LTD,"22,357.41",Regen Fund - HQ Sites,Prof & Consultancy Fees,29 Jul 2022,2223/05,SME,N,
0000361530,GIPPING CONSTRUCTION LTD,"292,698.59",Needham Market Middle School,Prof & Consultancy Fees,29 Jul 2022,2223/05,SME,N,
0000362112,GOULD ADAPTIONS LTD,"8,882.55",Mand Disabled Facilities Grant,Grants,24 Aug 2022,2223/05,SME,N,
0000362005,PRIVATE LANDLORD,786.50,Guaranteed Rent Scheme,Rent Payable,22 Aug 2022,2223/05,ST,N,
0000361727,PAUL WRIGHT & CO,775.00,Guaranteed Rent Scheme,Rent Payable,08 Aug 2022,2223/05,SME,N,
0000361379,AMPLIS CONSTRUCTION LTD,"1,311.25",Building Services,BMBS Repairs Work,25 Jul 2022,2223/05,SME,N,
0000361723,PRIVATE LANDLORD,786.50,Guaranteed Rent Scheme,Rent Payable,08 Aug 2022,2223/05,ST,N,
0000422664,NICHOLAS ESTATES LTD,"1,683.00",Guaranteed Rent Scheme,Rent Payable,11 Aug 2022,2223/05,SME,N,
0000422664,NICHOLAS ESTATES LTD,250.00,Guaranteed Rent Scheme,Misc Supplies & Services Costs,11 Aug 2022,2223/05,SME,N,
0000361669,COUNTRYSTYLE RECYCLING LTD,322.00,Trade Waste,Trade Waste Disposal,31 Jul 2022,2223/05,SME,Y,50%
0000361670,COUNTRYSTYLE RECYCLING LTD,"5,193.98",Bring Sites,Contracted Services,31 Jul 2022,2223/05,SME,N,
0000361492,DGL QUALITY MANAGEMENT LTD,870.76,Needham Market Middle School,Prof & Consultancy Fees,31 Jul 2022,2223/05,SME,N,
0000362007,DGL QUALITY MANAGEMENT LTD,"1,092.00",Stowmarket Middle School,Prof & Consultancy Fees,31 Jul 2022,2223/05,SME,N,
0000361956,OAKS MEADOW PROJECT CIO,"13,099.76",Community Wellbeing,Grants,18 Aug 2022,2223/05,SME,N,
0000361200,ARAN INSULATION LTD,"2,961.72",Insulation Imps,Improvements,14 Jul 2022,2223/05,SME,N,
0000361456,ARAN INSULATION LTD,660.37,Insulation Imps,Improvements,28 Jul 2022,2223/05,SME,N,
0000361456,ARAN INSULATION LTD,334.56,Stairlifts,Repairs,28 Jul 2022,2223/05,SME,N,
0000361456,ARAN INSULATION LTD,838.05,Insulation Imps,Improvements,28 Jul 2022,2223/05,SME,N,
0000361676,ARAN INSULATION LTD,"2,995.74",Insulation Imps,Improvements,04 Aug 2022,2223/05,SME,N,
0000361758,ARAN INSULATION LTD,"1,076.91",Insulation Imps,Improvements,09 Aug 2022,2223/05,SME,N,
0000361928,ORWELL REMOVALS & STORAGE LTD,795.00,Homeless Prevention Fund,Removal Expenses,04 Jul 2022,2223/05,SME,N,
0000362050,CATCH22,"8,295.34",Community Safety-General,Contributions & Donations,24 Aug 2022,2223/05,LGE,Y,50%
0000361823,INTERNATIONAL PARKING SYSTEMS UK LTD,950.00,C Parks General,Contracted Services,11 Aug 2022,2223/05,LGE,N,
0000361544,IAN BOOTH CONSULTANT ENGINEER LTD,400.00,Roads and Paths,Improvements,29 Jul 2022,2223/05,SME,N,
0000361545,IAN BOOTH CONSULTANT ENGINEER LTD,520.00,Strategic Assets,Prof & Consultancy Fees,29 Jul 2022,2223/05,SME,N,
0000361546,IAN BOOTH CONSULTANT ENGINEER LTD,360.00,Pld Maint/ Enhncmts-C Parks,Prof & Consultancy Fees,29 Jul 2022,2223/05,SME,N,
0000361741,IAN BOOTH CONSULTANT ENGINEER LTD,440.00,Roads and Paths,Improvements,30 Jun 2022,2223/05,SME,N,
0000361742,IAN BOOTH CONSULTANT ENGINEER LTD,360.00,Strategic Assets,Prof & Consultancy Fees,30 Jun 2022,2223/05,SME,N,
0000361774,DRISCOLL KINGSTON SOLICITORS,"7,000.00",Building Services,Payments to Tenants,09 Aug 2022,2223/05,SME,N,
0000362149,DRISCOLL KINGSTON SOLICITORS,360.95,Building Services,BMBS Repairs Work,31 Aug 2022,2223/05,SME,N,
0000361500,MARCHDELL LTD,715.00,Guaranteed Rent Scheme,Rent Payable,01 Aug 2022,2223/05,SME,N,
0000361510,PRIVATE LANDLORD,"1,260.55",Guaranteed Rent Scheme,Rent Payable,01 Aug 2022,2223/05,SME,N,
0000362078,PRIVATE LANDLORD,"1,300.00",Guaranteed Rent Scheme,Rent Payable,26 Aug 2022,2223/05,SME,N,
0000361533,IPSERV LTD,14.84,Policy & Strategy (H & W),Commercial Printing,01 Aug 2022,2223/05,SME,N,
0000361533,IPSERV LTD,"1,489.75",Central Printing,Commercial Printing,01 Aug 2022,2223/05,SME,N,
0000361533,IPSERV LTD,"1,227.71",Communications,Commercial Printing,01 Aug 2022,2223/05,SME,N,
0000361562,IPSERV LTD,"1,855.26",Communications,Commercial Printing,02 Aug 2022,2223/05,SME,N,
0000361562,IPSERV LTD,410.30,Central Printing,Commercial Printing,02 Aug 2022,2223/05,SME,N,
0000361562,IPSERV LTD,18.15,Paddock House Eye,Prof & Consultancy Fees,02 Aug 2022,2223/05,SME,N,
0000361993,PRIVATE LANDLORD,669.00,Guaranteed Rent Scheme,Rent Payable,22 Aug 2022,2223/05,ST,N,
0000422708,PRIVATE LANDLORD,669.00,Guaranteed Rent Scheme,Rent Payable,26 Aug 2022,2223/05,ST,N,
0000361728,PRIVATE LANDLORD,650.00,Guaranteed Rent Scheme,Rent Payable,08 Aug 2022,2223/05,ST,N,
0000361796,MK AUTOS MOT CENTRE LIMITED,400.00,Taxi & Private Hire Licensing,Contracted Services,31 Jul 2022,2223/05,SME,N,
0000361724,PRIVATE LANDLORD,495.00,Guaranteed Rent Scheme,Rent Payable,08 Aug 2022,2223/05,SME,N,
0000361489,SHJ HOMES LTD,500.00,Guaranteed Rent Scheme,Rent Payable,01 Aug 2022,2223/05,SME,N,
0000362003,SHJ HOMES LTD,550.00,Guaranteed Rent Scheme,Rent Payable,22 Aug 2022,2223/05,SME,N,
0000361532,DUDLEY SMITH PARTNERSHIP LTD,900.00,Cross Street Tech Hub,Prof & Consultancy Fees,29 Jul 2022,2223/05,SME,N,
0000361899,CEDARS PARK ART CIC,330.10,Transformation Fund,Contributions & Donations,16 Aug 2022,2223/05,SME,N,
0000422707,CEDARS PARK ART CIC,"2,890.00",Transformation Fund,Contributions & Donations,10 Aug 2022,2223/05,SME,N,
0000422709,CEDARS PARK ART CIC,"2,000.00",Transformation Fund,Contributions & Donations,10 Aug 2022,2223/05,SME,N,
0000361392,T MAN WITH A VAN,700.00,Homeless Prevention Fund,Removal Expenses,25 Jul 2022,2223/05,ST,N,
0000362044,1ST NEEDHAM MARKET RANGERS,550.00,Grants & Contrbns,Contributions & Donations,23 Aug 2022,2223/05,SME,N,
0000361338,NEC SOFTWARE SOLUTIONS UK LTD,"2,500.00",ICT,Contracted Services,20 Jul 2022,2223/05,LGE,Y,50%
0000361754,ORIGIN AMENITY SOLUTIONS LTD,268.35,Open Spaces,"Equipment, Tools & Materials",08 Aug 2022,2223/05,SME,N,
0000361498,HAMILTON SMITH LETTINGS,500.00,Guaranteed Rent Scheme,Rent Payable,01 Aug 2022,2223/05,SME,N,
0000361499,HAMILTON SMITH LETTINGS,500.00,Guaranteed Rent Scheme,Rent Payable,01 Aug 2022,2223/05,SME,N,
0000361730,HAMILTON SMITH LETTINGS,590.00,Guaranteed Rent Scheme,Rent Payable,08 Aug 2022,2223/05,SME,N,
0000361858,HAMILTON SMITH LETTINGS,775.00,Guaranteed Rent Scheme,Rent Payable,15 Aug 2022,2223/05,SME,N,
0000361995,HAMILTON SMITH LETTINGS,500.00,Guaranteed Rent Scheme,Rent Payable,22 Aug 2022,2223/05,SME,N,
0000362079,HAMILTON SMITH LETTINGS,500.00,Guaranteed Rent Scheme,Rent Payable,25 Aug 2022,2223/05,SME,N,
0000362080,HAMILTON SMITH LETTINGS,500.00,Guaranteed Rent Scheme,Rent Payable,25 Aug 2022,2223/05,SME,N,
0000361643,BRITISH GAS TRADING LTD,193.89,Voids Maintenance,Electricity,23 Jul 2022,2223/05,LGE,N,
0000361643,BRITISH GAS TRADING LTD,72.22,Voids Maintenance,Gas,23 Jul 2022,2223/05,LGE,N,
0000361481,DEADLINE COMMUNICATIONS LTD,"1,500.00",Communications,Advertising&mkting (non-staff),29 Jul 2022,2223/05,SME,Y,50%
0000361998,DEADLINE COMMUNICATIONS LTD,760.00,Communications,Advertising&mkting (non-staff),22 Aug 2022,2223/05,SME,Y,50%
0000361840,PAY 360 LIMITED,"4,002.54",Bank Chgs,Bank Charges,12 Aug 2022,2223/05,0,N,
0000361775,THE SHAH CORP LTD,283.50,Policy & Strategy (H & W),"Equipment, Tools & Materials",30 Jun 2022,2223/05,SME,N,
0000361371,TILE HILL INTERIM & EXECUTIVE LTD,"28,800.00",Management Team,Recruitment,22 Jul 2022,2223/05,SME,Y,50%
0000361864,TILE HILL INTERIM & EXECUTIVE LTD,"11,700.00",Management Team,Recruitment,12 Aug 2022,2223/05,SME,Y,50%
0000362004,ESIA CONSULT LIMITED,"8,910.00",Devt Management - Apps,Environmental  Consultancy,22 Aug 2022,2223/05,SME,N,
0000361460,A W & D HAMMOND LTD,"26,995.00",Vehicle and Plant Renewals,Plant & Vehicle - Purchase,21 Jul 2022,2223/05,LGE,N,
0000361460,A W & D HAMMOND LTD,290.00,Vehicle and Plant Renewals,Plant & Vehicle - Purchase,21 Jul 2022,2223/05,LGE,N,
0000361461,A W & D HAMMOND LTD,"27,373.00",Vehicle and Plant Renewals,Plant & Vehicle - Purchase,21 Jul 2022,2223/05,LGE,N,
0000361461,A W & D HAMMOND LTD,345.00,Vehicle and Plant Renewals,Plant & Vehicle - Purchase,21 Jul 2022,2223/05,LGE,N,
0000361842,TIC TAC SKATE SCHOOL,450.00,Holiday Activity Fund,"Equipment, Tools & Materials",12 Aug 2022,2223/05,SME,N,
0000361804,DMD ENVIRONMENTAL LTD,"1,000.00",Insulation Imps,Improvements,15 Jul 2022,2223/05,SME,N,
0000361753,MR BEAN ENTERTAINMENTS,715.00,Holiday Activity Fund,"Equipment, Tools & Materials",04 Aug 2022,2223/05,SME,N,
0000361640,WILBY WOMENS INSTITUTE,700.00,Grants & Contrbns,Contributions & Donations,03 Aug 2022,2223/05,SME,N,
0000361952,THE CHARTERED INSTITUTE OF MARKETING,"2,030.00",Bldg Regs Chargeable Serv,Training,12 Aug 2022,2223/05,SME,Y,50%
0000361790,RATTLESDEN PRE-SCHOOL,750.00,Grants & Contrbns,Contributions & Donations,10 Aug 2022,2223/05,SME,N,
0000361948,BRAMFORD & DISTRICT SOCIAL CLUB LTD,"1,500.00",Grants & Contrbns,Contributions & Donations,18 Aug 2022,2223/05,SME,N,
0000422665,PRIVATE LANDLORD,750.00,Guaranteed Rent Scheme,Misc Supplies & Services Costs,11 Aug 2022,2223/05,ST,N,
0000361726,DUKES BAILIFFS LIMITED,"2,216.76",Household Support Grant,Misc Supplies & Services Costs,05 Aug 2022,2223/05,SME,N,
0000361789,GJR PROPERTY SERVICES,"5,997.00",Mand Disabled Facilities Grant,Grants,10 Aug 2022,2223/05,SME,N,
0000362195,BULB ENERGY REVENUE ACT,500.00,Household Support Grant,Misc Supplies & Services Costs,31 Aug 2022,2223/05,SME,N,
0000361833,STOWE HEALTHCARE SH LTD,"3,190.00",Responsive maintenance,Rent Payable,11 Aug 2022,2223/05,LGE,N,
0000361917,C B PROPERTY MAINTENANCE,"7,352.85",Mand Disabled Facilities Grant,Grants,17 Aug 2022,2223/05,SME,N,
0000362017,T KEELING ROOFING CONTRACTOR,"7,000.00",Renovation/Home Repair Grants,Grants,23 Aug 2022,2223/05,SME,N,
0000362074,1st COMBS SCOUT GROUP,600.00,Grants & Contrbns,Contributions & Donations,25 Aug 2022,2223/05,SME,N,
0000361025,ERNEST DOE & SONS LTD,"-1,780.00",Building Services,Repairs,09 Jun 2022,2223/04,LGE,Y,50%
0000000220,GIPPING OCCUPATIONAL HEALTH LTD,144.00,Health & Safety,Contracted Services,01 Jul 2022,2223/04,SME,Y,50%
0000360834,GIPPING OCCUPATIONAL HEALTH LTD,-144.00,Health & Safety,Contracted Services,27 Jun 2022,2223/04,SME,Y,50%
0000000269,DMD INSTALLATIONS LTD,"-1,000.00",Insulation Imps,Improvements,27 Jul 2022,2223/04,SME,N,
0000000937,CARE PLUS STAFFORDSHIRE LTD,-63.68,Civil Protection & Emerg Plg,Telephone Costs,27 Jul 2022,2223/04,SME,N,
0000000937,CARE PLUS STAFFORDSHIRE LTD,-21.22,Bldg Regs Other Activities,Telephone Costs,27 Jul 2022,2223/04,SME,N,
0000000937,CARE PLUS STAFFORDSHIRE LTD,-21.22,Bldg Regs Non-Chargeable Serv,Telephone Costs,27 Jul 2022,2223/04,SME,N,
0000000937,CARE PLUS STAFFORDSHIRE LTD,-21.22,Bldg Regs Chargeable Serv,Telephone Costs,27 Jul 2022,2223/04,SME,N,
0000000937,CARE PLUS STAFFORDSHIRE LTD,-63.67,Animal Welfare Licensing,Telephone Costs,27 Jul 2022,2223/04,SME,N,
0000000937,CARE PLUS STAFFORDSHIRE LTD,-541.20,Building Services,Telephone Costs,27 Jul 2022,2223/04,SME,N,
0000000937,CARE PLUS STAFFORDSHIRE LTD,-63.67,Temporary Accommodation,Telephone Costs,27 Jul 2022,2223/04,SME,N,
0000000937,CARE PLUS STAFFORDSHIRE LTD,"-7,162.92",Sheltered General Mgmt,Community Alarm Costs,27 Jul 2022,2223/04,SME,N,
0000000939,CARE PLUS STAFFORDSHIRE LTD,-21.22,Bldg Regs Chargeable Serv,Telephone Costs,27 Jul 2022,2223/04,SME,N,
0000000939,CARE PLUS STAFFORDSHIRE LTD,-21.22,Bldg Regs Non-Chargeable Serv,Telephone Costs,27 Jul 2022,2223/04,SME,N,
0000000939,CARE PLUS STAFFORDSHIRE LTD,-21.22,Bldg Regs Other Activities,Telephone Costs,27 Jul 2022,2223/04,SME,N,
0000000939,CARE PLUS STAFFORDSHIRE LTD,-63.68,Civil Protection & Emerg Plg,Telephone Costs,27 Jul 2022,2223/04,SME,N,
0000000939,CARE PLUS STAFFORDSHIRE LTD,-63.67,Animal Welfare Licensing,Telephone Costs,27 Jul 2022,2223/04,SME,N,
0000000939,CARE PLUS STAFFORDSHIRE LTD,-541.20,Building Services,Telephone Costs,27 Jul 2022,2223/04,SME,N,
0000000939,CARE PLUS STAFFORDSHIRE LTD,-63.67,Temporary Accommodation,Telephone Costs,27 Jul 2022,2223/04,SME,N,
0000000939,CARE PLUS STAFFORDSHIRE LTD,"-7,162.92",Sheltered General Mgmt,Community Alarm Costs,27 Jul 2022,2223/04,SME,N,
0000000940,CARE PLUS STAFFORDSHIRE LTD,-63.67,Animal Welfare Licensing,Telephone Costs,27 Jul 2022,2223/04,SME,N,
0000000940,CARE PLUS STAFFORDSHIRE LTD,-21.22,Bldg Regs Chargeable Serv,Telephone Costs,27 Jul 2022,2223/04,SME,Y,100%
0000000940,CARE PLUS STAFFORDSHIRE LTD,-21.22,Bldg Regs Non-Chargeable Serv,Telephone Costs,27 Jul 2022,2223/04,SME,Y,100%
0000000940,CARE PLUS STAFFORDSHIRE LTD,-21.22,Bldg Regs Other Activities,Telephone Costs,27 Jul 2022,2223/04,SME,Y,100%
0000000940,CARE PLUS STAFFORDSHIRE LTD,-541.20,Building Services,Telephone Costs,27 Jul 2022,2223/04,SME,N,
0000000940,CARE PLUS STAFFORDSHIRE LTD,-63.68,Civil Protection & Emerg Plg,Telephone Costs,27 Jul 2022,2223/04,SME,N,
0000000940,CARE PLUS STAFFORDSHIRE LTD,-63.67,Temporary Accommodation,Telephone Costs,27 Jul 2022,2223/04,SME,N,
0000000940,CARE PLUS STAFFORDSHIRE LTD,"-7,162.92",Sheltered General Mgmt,Community Alarm Costs,27 Jul 2022,2223/04,SME,N,
0000000943,CARE PLUS STAFFORDSHIRE LTD,-63.67,Animal Welfare Licensing,Telephone Costs,27 Jul 2022,2223/04,SME,N,
0000000943,CARE PLUS STAFFORDSHIRE LTD,-21.22,Bldg Regs Chargeable Serv,Telephone Costs,27 Jul 2022,2223/04,SME,N,
0000000943,CARE PLUS STAFFORDSHIRE LTD,-21.22,Bldg Regs Non-Chargeable Serv,Telephone Costs,27 Jul 2022,2223/04,SME,N,
0000000943,CARE PLUS STAFFORDSHIRE LTD,-21.22,Bldg Regs Other Activities,Telephone Costs,27 Jul 2022,2223/04,SME,N,
0000000943,CARE PLUS STAFFORDSHIRE LTD,-541.20,Building Services,Telephone Costs,27 Jul 2022,2223/04,SME,N,
0000000943,CARE PLUS STAFFORDSHIRE LTD,-63.68,Civil Protection & Emerg Plg,Telephone Costs,27 Jul 2022,2223/04,SME,N,
0000000943,CARE PLUS STAFFORDSHIRE LTD,-63.67,Temporary Accommodation,Telephone Costs,27 Jul 2022,2223/04,SME,N,
0000000943,CARE PLUS STAFFORDSHIRE LTD,"-7,162.92",Sheltered General Mgmt,Community Alarm Costs,27 Jul 2022,2223/04,SME,N,
0000000945,CARE PLUS STAFFORDSHIRE LTD,"-7,162.92",Sheltered General Mgmt,Community Alarm Costs,27 Jul 2022,2223/04,SME,N,
0000000945,CARE PLUS STAFFORDSHIRE LTD,-63.67,Temporary Accommodation,Telephone Costs,27 Jul 2022,2223/04,SME,N,
0000000945,CARE PLUS STAFFORDSHIRE LTD,-541.20,Building Services,Telephone Costs,27 Jul 2022,2223/04,SME,N,
0000000945,CARE PLUS STAFFORDSHIRE LTD,-63.67,Animal Welfare Licensing,Telephone Costs,27 Jul 2022,2223/04,SME,N,
0000000945,CARE PLUS STAFFORDSHIRE LTD,-21.22,Bldg Regs Chargeable Serv,Telephone Costs,27 Jul 2022,2223/04,SME,N,
0000000945,CARE PLUS STAFFORDSHIRE LTD,-21.22,Bldg Regs Non-Chargeable Serv,Telephone Costs,27 Jul 2022,2223/04,SME,N,
0000000945,CARE PLUS STAFFORDSHIRE LTD,-21.22,Bldg Regs Other Activities,Telephone Costs,27 Jul 2022,2223/04,SME,N,
0000000945,CARE PLUS STAFFORDSHIRE LTD,-63.68,Civil Protection & Emerg Plg,Telephone Costs,27 Jul 2022,2223/04,SME,N,
0000000268,PREMIER EDUCATION,"-2,960.00",Holiday Activity Fund,"Equipment, Tools & Materials",22 Jul 2022,2223/04,SME,N,
0000362230,AARON SERVICES LTD,"29,189.01",Planned Maint - Heating,Property Servicing,31 Aug 2022,2223/06,SME,N,
0000422716,AARON SERVICES LTD,78.81,Planned Maint - Heating,Property Servicing,22 Aug 2022,2223/06,SME,N,
0000422716,AARON SERVICES LTD,236.43,Voids Maintenance,Repairs,22 Aug 2022,2223/06,SME,N,
0000422719,AARON SERVICES LTD,629.74,Planned Maint - Heating,Property Servicing,30 Aug 2022,2223/06,SME,N,
0000422719,AARON SERVICES LTD,277.25,Planned Maint - Heating,Repairs,30 Aug 2022,2223/06,SME,N,
0000422740,AARON SERVICES LTD,"1,091.41",Voids Maintenance,Repairs,14 Sep 2022,2223/06,SME,N,
0000422740,AARON SERVICES LTD,"26,841.81",Planned Maint - Heating,Property Servicing,14 Sep 2022,2223/06,SME,N,
0000422741,AARON SERVICES LTD,"26,833.51",Planned Maint - Heating,Repairs,12 Sep 2022,2223/06,SME,N,
0000422742,AARON SERVICES LTD,195.99,Voids Maintenance,Repairs,21 Sep 2022,2223/06,SME,N,
0000422742,AARON SERVICES LTD,"19,589.32",Planned Maint - Heating,Property Servicing,21 Sep 2022,2223/06,SME,N,
0000422742,AARON SERVICES LTD,139.87,Smoke Alarms (Bbgh Standard),Improvements,21 Sep 2022,2223/06,SME,N,
0000362139,ACADEMY BUILDING CONTRACTS LTD,"4,034.68","Fences, Gates and Walls",BMBS Repairs Work,26 Aug 2022,2223/06,SME,N,
0000362270,ACADEMY BUILDING CONTRACTS LTD,556.51,"Fences, Gates and Walls",BMBS Repairs Work,02 Sep 2022,2223/06,SME,N,
0000362271,ACADEMY BUILDING CONTRACTS LTD,707.39,"Fences, Gates and Walls",BMBS Repairs Work,02 Sep 2022,2223/06,SME,N,
0000362586,ACADEMY BUILDING CONTRACTS LTD,"1,594.56","Fences, Gates and Walls",BMBS Repairs Work,16 Sep 2022,2223/06,SME,N,
0000362607,ACADEMY BUILDING CONTRACTS LTD,"1,763.82",Building Services,Repairs,16 Sep 2022,2223/06,SME,N,
0000362229,AE WHITE SURFACING,"18,723.00",Council House Adaptions,Improvements,01 Sep 2022,2223/06,SME,N,
0000362652,AE WHITE SURFACING,"1,485.00",Roads and Paths,Improvements,23 Sep 2022,2223/06,SME,N,
0000362159,ANGLIAN WATER,501.81,Water Sampling,Sampling & Analysis,26 Aug 2022,2223/06,LGE,N,
0000362167,ANGLIAN WATER,833.90,Sheltered Accommodation,Water Rates - Metered,23 Aug 2022,2223/06,LGE,N,
0000362275,ANGLIAN WATER,"1,170.28",Sheltered Accommodation,Water Rates - Metered,23 Aug 2022,2223/06,LGE,N,
0000362322,ANGLIAN WATER,856.84,Sheltered Accommodation,Water Rates - Metered,30 Aug 2022,2223/06,LGE,N,
0000362512,ANGLIAN WATER,502.77,Tenancy Services,Water Rates - Metered,07 Sep 2022,2223/06,LGE,N,
0000362462,BOWER FULLER,973.22,Building Services,Repairs,31 Aug 2022,2223/06,SME,N,
0000362511,BUTTON & TURNER LTD,760.98,Open Spaces,Plant & Vehicle - Other costs,17 Aug 2022,2223/06,SME,N,
0000362274,CAPITA BUSINESS SERVICES LTD,575.00,Voids Maintenance,Prof & Consultancy Fees,01 Sep 2022,2223/06,LGE,Y,50%
0000362187,AQUASAMPLERS,385.00,Water Sampling,Sampling & Analysis,31 Jul 2022,2223/06,SME,N,
0000361906,CEDARS HOTEL LTD,"35,000.00",Homelessness Private Sector,B&B Costs,16 Aug 2022,2223/06,SME,Y,50%
0000362648,CEDARS HOTEL LTD,"19,800.00",Homelessness Private Sector,B&B Costs,21 Sep 2022,2223/06,SME,N,
0000362648,CEDARS HOTEL LTD,"20,460.00",Homelessness Private Sector,B&B Costs,21 Sep 2022,2223/06,SME,N,
0000361613,CHAPPLE SIGNS LTD,464.84,Open Spaces,"Equipment, Tools & Materials",03 Aug 2022,2223/06,SME,N,
0000362550,CHAPPLE SIGNS LTD,495.00,Open Spaces,Biodiversity Task Force,15 Sep 2022,2223/06,SME,Y,50%
0000362103,CHEQUERS HOTEL LTD,877.50,Homelessness Private Sector,B&B Costs,01 Aug 2022,2223/06,SME,N,
0000362104,CHEQUERS HOTEL LTD,910.00,Homelessness Private Sector,B&B Costs,01 Aug 2022,2223/06,SME,N,
0000362106,CHEQUERS HOTEL LTD,"1,105.00",Homelessness Private Sector,B&B Costs,04 Jul 2022,2223/06,SME,N,
0000362107,CHEQUERS HOTEL LTD,747.50,Homelessness Private Sector,B&B Costs,04 Jul 2022,2223/06,SME,N,
0000362108,CHEQUERS HOTEL LTD,"1,137.50",Homelessness Private Sector,B&B Costs,04 Jul 2022,2223/06,SME,N,
0000362109,CHEQUERS HOTEL LTD,"1,137.50",Homelessness Private Sector,B&B Costs,04 Jul 2022,2223/06,SME,N,
0000362491,CHEQUERS HOTEL LTD,"1,137.50",Homelessness Private Sector,B&B Costs,05 Sep 2022,2223/06,SME,N,
0000362482,CHIPSIDE LTD,975.67,C Parks General,Contracted Services,31 Aug 2022,2223/06,SME,N,
0000362774,CLARKE FENCING LTD,367.64,Open Spaces,"Equipment, Tools & Materials",28 Sep 2022,2223/06,SME,N,
0000361868,D W ADAMS LTD,479.24,Building Services,Repairs,15 Aug 2022,2223/06,SME,N,
0000362152,D W ADAMS LTD,"7,394.00",Council House Adaptions,Improvements,30 Aug 2022,2223/06,SME,N,
0000362246,D W ADAMS LTD,"3,597.00",Kitchens/Bathrooms,Improvements,02 Sep 2022,2223/06,SME,N,
0000362312,D W ADAMS LTD,393.00,Disabled Facilities (Revenue),Repairs,05 Sep 2022,2223/06,SME,N,
0000362437,D W ADAMS LTD,"6,254.00",Council House Adaptions,Improvements,09 Sep 2022,2223/06,SME,N,
0000362091,DANCE EAST,"2,925.00",Grants & Contrbns,Grants,27 Jun 2022,2223/06,SME,N,
0000362483,DMA HEALTH AND SAFETY LTD,316.00,Strategic Assets,Prof & Consultancy Fees,07 Sep 2022,2223/06,SME,N,
0000362318,DOLPHIN STAIRLIFTS (EAST ANGLIA) LTD,"2,182.00",Mand Disabled Facilities Grant,Grants,06 Sep 2022,2223/06,SME,N,
0000362076,EAST ANGLIA CLEANING SERVICES LTD,451.47,Open Spaces,General Cleaning,25 Aug 2022,2223/06,SME,N,
0000362771,EAST ANGLIA CLEANING SERVICES LTD,"1,489.71",Jnt Waste Contract,General Cleaning,28 Sep 2022,2223/06,SME,Y,50%
0000362231,EAST OF ENGLAND LGA,"2,000.00",Management Team,Subscriptions,30 Aug 2022,2223/06,SME,N,
0000362026,ENGLISH SECURITY,387.50,Wingfield Barns,Fire Prevention,17 Aug 2022,2223/06,SME,N,
0000362181,ENGLISH SECURITY,684.47,Temporary Accommodation,Fire Prevention,30 Aug 2022,2223/06,SME,N,
0000362554,ENGLISH SECURITY,41.20,Building Services,Fire Prevention,14 Sep 2022,2223/06,SME,N,
0000362554,ENGLISH SECURITY,103.00,Creeting Rd Depot,Fire Prevention,14 Sep 2022,2223/06,SME,Y,50%
0000362554,ENGLISH SECURITY,150.45,Other HRA Temp Accommodation,Fire Prevention,14 Sep 2022,2223/06,SME,N,
0000362554,ENGLISH SECURITY,"2,089.25",Sheltered Accommodation,Fire Prevention,14 Sep 2022,2223/06,SME,N,
0000362554,ENGLISH SECURITY,326.65,Temporary Accommodation,Fire Prevention,14 Sep 2022,2223/06,SME,N,
0000362554,ENGLISH SECURITY,"2,906.80",Tenancy Services,Fire Prevention,14 Sep 2022,2223/06,SME,N,
0000362554,ENGLISH SECURITY,226.60,Wingfield Barns,Fire Prevention,14 Sep 2022,2223/06,SME,N,
0000362556,ENGLISH SECURITY,595.40,Sheltered Accommodation,Misc Premises Costs,14 Sep 2022,2223/06,SME,N,
0000362557,ENGLISH SECURITY,257.58,Sheltered Accommodation,Fire Prevention,14 Sep 2022,2223/06,SME,N,
0000362131,ENVIROVENT LTD,460.00,Stairlifts,Repairs,18 Aug 2022,2223/06,SME,N,
0000362132,ENVIROVENT LTD,460.00,Stairlifts,Repairs,18 Aug 2022,2223/06,SME,N,
0000362154,ENVIROVENT LTD,709.00,Stairlifts,Repairs,19 Aug 2022,2223/06,SME,N,
0000362162,ENVIROVENT LTD,460.00,Building Services,Repairs,23 Aug 2022,2223/06,SME,N,
0000362171,ENVIROVENT LTD,709.00,Building Services,Repairs,24 Aug 2022,2223/06,SME,N,
0000362265,ENVIROVENT LTD,460.00,Building Services,Repairs,31 Aug 2022,2223/06,SME,N,
0000362332,ENVIROVENT LTD,498.00,Insulation Imps,Improvements,02 Sep 2022,2223/06,SME,N,
0000362333,ENVIROVENT LTD,460.00,Insulation Imps,Improvements,02 Sep 2022,2223/06,SME,N,
0000362334,ENVIROVENT LTD,669.87,Building Services,Repairs,02 Sep 2022,2223/06,SME,N,
0000362540,ENVIROVENT LTD,319.00,Building Services,Repairs,06 Sep 2022,2223/06,SME,N,
0000362541,ENVIROVENT LTD,958.00,Insulation Imps,BMBS Repairs Work,06 Sep 2022,2223/06,SME,N,
0000362542,ENVIROVENT LTD,349.00,Building Services,Repairs,06 Sep 2022,2223/06,SME,N,
0000362721,FELGAINS CARE CENTRE,"7,615.00",Mand Disabled Facilities Grant,Grants,26 Sep 2022,2223/06,SME,N,
0000362048,FELLBRIDGE BUILDING SERVICES,"19,993.76",Building Services,Repairs,24 Aug 2022,2223/06,SME,N,
0000362051,FELLBRIDGE BUILDING SERVICES,938.05,Building Services,Repairs,24 Aug 2022,2223/06,SME,N,
0000362148,FELLBRIDGE BUILDING SERVICES,409.98,Building Services,Repairs,29 Aug 2022,2223/06,SME,N,
0000362150,FELLBRIDGE BUILDING SERVICES,485.55,Building Services,Repairs,29 Aug 2022,2223/06,SME,N,
0000362151,FELLBRIDGE BUILDING SERVICES,"2,782.70",Building Services,Repairs,29 Aug 2022,2223/06,SME,N,
0000362304,FELLBRIDGE BUILDING SERVICES,288.00,Building Services,Repairs,05 Sep 2022,2223/06,SME,N,
0000362381,FELLBRIDGE BUILDING SERVICES,"2,967.75",Building Services,Repairs,07 Sep 2022,2223/06,SME,N,
0000362382,FELLBRIDGE BUILDING SERVICES,"1,955.40",Building Services,Repairs,07 Sep 2022,2223/06,SME,N,
0000362383,FELLBRIDGE BUILDING SERVICES,450.12,Building Services,Repairs,07 Sep 2022,2223/06,SME,N,
0000362014,G & G SIGNS,620.00,Street Naming & Numbering,Signs,19 Aug 2022,2223/06,SME,N,
0000361553,G4S CASH SOLUTIONS LTD,"1,671.44",C Parks General,Audit Fees,31 Mar 2022,2223/06,LGE,N,
0000361554,G4S CASH SOLUTIONS LTD,"1,278.16",C Parks General,Audit Fees,30 Apr 2022,2223/06,LGE,N,
0000361556,G4S CASH SOLUTIONS LTD,737.40,C Parks General,Audit Fees,30 Jun 2022,2223/06,LGE,N,
0000361557,G4S CASH SOLUTIONS LTD,"1,634.57",C Parks General,Audit Fees,31 May 2022,2223/06,LGE,N,
0000361558,G4S CASH SOLUTIONS LTD,"1,474.80",C Parks General,Audit Fees,28 Feb 2022,2223/06,LGE,N,
0000361559,G4S CASH SOLUTIONS LTD,"1,281.28",C Parks General,Audit Fees,31 Dec 2021,2223/06,LGE,N,
0000361560,G4S CASH SOLUTIONS LTD,"1,474.80",C Parks General,Audit Fees,31 Jan 2022,2223/06,LGE,N,
0000361683,G4S CASH SOLUTIONS LTD,"1,302.74",C Parks General,Audit Fees,31 Jul 2022,2223/06,LGE,N,
0000362320,G4S CASH SOLUTIONS LTD,"1,302.74",C Parks General,Audit Fees,31 Aug 2022,2223/06,LGE,N,
0000362486,GHB ROOFING,"4,940.00",Building Services,Repairs,09 Sep 2022,2223/06,SME,N,
0000362487,GHB ROOFING,"4,940.00",Building Services,Repairs,09 Sep 2022,2223/06,SME,N,
0000362488,GHB ROOFING,"6,620.00",Building Services,Repairs,09 Sep 2022,2223/06,SME,N,
0000362587,JOHN PEEL CENTRE FOR CREATIVE ARTS,300.00,MSM Town Centre Vision,Room Hire,18 Sep 2022,2223/06,SME,N,
0000362452,KEN GRIME & SON LTD,605.73,Building Services,Repairs,12 Sep 2022,2223/06,SME,N,
0000362156,KEYWAYS THE LOCKSMITHS LTD,400.00,Temporary Accommodation,Misc Premises Costs,30 Aug 2022,2223/06,SME,N,
0000361920,LJ GAMMER (STOWMARKET) LTD,439.04,Building Services,Plant & Vehicle - Other costs,21 Jul 2022,2223/06,SME,N,
0000362301,M & H CIVIL ENGINEERING LTD,841.15,Building Services,Repairs,05 Sep 2022,2223/06,SME,N,
0000362526,M & H CIVIL ENGINEERING LTD,585.00,Building Services,Repairs,09 Sep 2022,2223/06,SME,N,
0000362545,M & H CIVIL ENGINEERING LTD,"1,274.10",Building Services,Repairs,15 Sep 2022,2223/06,SME,N,
0000362601,M & H CIVIL ENGINEERING LTD,615.00,Building Services,Repairs,20 Sep 2022,2223/06,SME,N,
0000362218,MATERIAL CHANGE COMPOSTING LTD,566.61,Open Spaces,Waste Disposal,31 Aug 2022,2223/06,LGE,N,
0000362228,MB TREES (EAST ANGLIA) LTD,480.00,Public Tree Programme,Tree felling/maintenance,31 Aug 2022,2223/06,SME,N,
0000362485,MB TREES (EAST ANGLIA) LTD,"2,875.00",Public Tree Programme,Tree felling/maintenance,08 Sep 2022,2223/06,SME,N,
0000362594,MB TREES (EAST ANGLIA) LTD,980.00,Tenants Forum,Horticultural Purchases,15 Sep 2022,2223/06,SME,N,
0000362012,MID SUFFOLK FENCING LTD,400.00,Building Services,Repairs,19 Aug 2022,2223/06,SME,N,
0000362358,MID SUFFOLK FENCING LTD,"2,135.00","Fences, Gates and Walls",Improvements,23 Aug 2022,2223/06,SME,N,
0000362359,MID SUFFOLK FENCING LTD,"1,991.00",Building Services,Repairs,23 Aug 2022,2223/06,SME,N,
0000362476,MID SUFFOLK FENCING LTD,"1,965.00","Fences, Gates and Walls",Improvements,23 Aug 2022,2223/06,SME,N,
0000362502,MID SUFFOLK FENCING LTD,900.00,Building Services,Repairs,12 Sep 2022,2223/06,SME,N,
0000362177,MIXBROW LTD,"10,554.00",Council House Adaptions,Improvements,30 Aug 2022,2223/06,SME,N,
0000362455,NEEDHAM MARKET TOWN COUNCIL,"45,144.15",S106 Open Spaces Expenditure,Grants,12 Sep 2022,2223/06,SME,N,
0000362138,PITMAN BROTHERS (DECORATORS) LTD,"2,050.00",Creeting Rd Depot,Grounds & Site Maintenance,26 Aug 2022,2223/06,SME,Y,50%
0000361953,PRO-FLAT SPECIALIST SERVICES LTD,"3,545.00",Roofing,Improvements,18 Aug 2022,2223/06,SME,N,
0000362628,PRO-FLAT SPECIALIST SERVICES LTD,"2,732.00",Building Services,Repairs,20 Sep 2022,2223/06,SME,N,
0000361792,REID PLUMBING & HEATING CONTRACTORS LTD,"25,957.82",Central Heating,Major Contracts,10 Aug 2022,2223/06,SME,N,
0000362055,REID PLUMBING & HEATING CONTRACTORS LTD,"9,843.29",Central Heating,Major Contracts,24 Aug 2022,2223/06,SME,N,
0000362226,REID PLUMBING & HEATING CONTRACTORS LTD,"9,665.69",Central Heating,Major Contracts,01 Sep 2022,2223/06,SME,N,
0000362325,REID PLUMBING & HEATING CONTRACTORS LTD,"10,006.09",Central Heating,Major Contracts,06 Sep 2022,2223/06,SME,N,
0000362206,SACKERS LTD,"2,269.14",Building Services,Waste Disposal,31 Aug 2022,2223/06,SME,Y,50%
0000362410,SPALDINGS LTD,896.61,Open Spaces,"Equipment, Tools & Materials",07 Sep 2022,2223/06,SME,Y,50%
0000362309,SSI SCHAEFER LTD,"31,104.40",Bins,Bins,05 Sep 2022,2223/06,SME,Y,50%
0000362431,SSI SCHAEFER LTD,"16,441.00",Bins,Bins,08 Sep 2022,2223/06,SME,Y,50.5%
0000362191,THOMPSON COOPER LTD,994.50,Street & Major Road Cleansing,"Equipment, Tools & Materials",31 Aug 2022,2223/06,SME,N,
0000362408,THOMPSON COOPER LTD,"1,326.00",Open Spaces,"Equipment, Tools & Materials",07 Sep 2022,2223/06,SME,N,
0000361376,TRUCKEAST LTD,611.98,Open Spaces,Plant & Vehicle - Other costs,22 Jul 2022,2223/06,LGE,N,
0000362349,UK POWER NETWORKS,"2,614.25",Strategic Investment Fund,Annual Bldg Maint Contracts,07 Sep 2022,2223/06,LGE,N,
0000362404,VODAFONE CORPORATE LTD,"1,577.25",ICT,Telephone Costs,24 Jul 2022,2223/06,LGE,N,
0000361771,WINDIMAN LTD,"3,000.00",Window & Door Rplcmts,Improvements,09 Aug 2022,2223/06,SME,N,
0000362084,WINDIMAN LTD,760.00,Building Services,Repairs,25 Aug 2022,2223/06,SME,N,
0000362085,WINDIMAN LTD,"1,520.00",Building Services,Repairs,25 Aug 2022,2223/06,SME,N,
0000362086,WINDIMAN LTD,"1,358.18",Building Services,Repairs,25 Aug 2022,2223/06,SME,N,
0000362087,WINDIMAN LTD,"2,160.00",Window & Door Rplcmts,Improvements,25 Aug 2022,2223/06,SME,N,
0000362173,WINDIMAN LTD,430.00,Window & Door Rplcmts,Improvements,30 Aug 2022,2223/06,SME,N,
0000362175,WINDIMAN LTD,900.00,Window & Door Rplcmts,Improvements,30 Aug 2022,2223/06,SME,N,
0000362176,WINDIMAN LTD,760.00,Building Services,Repairs,30 Aug 2022,2223/06,SME,N,
0000362331,WINDIMAN LTD,980.00,Window & Door Rplcmts,Improvements,06 Sep 2022,2223/06,SME,N,
0000362002,WORKWEAR (EAST ANGLIA) LTD,130.13,Open Spaces,Protective clothing,17 Aug 2022,2223/06,SME,N,
0000362002,WORKWEAR (EAST ANGLIA) LTD,130.13,Street & Major Road Cleansing,Protective clothing,17 Aug 2022,2223/06,SME,N,
0000362224,WORKWEAR (EAST ANGLIA) LTD,427.74,Open Spaces,Protective clothing,23 Aug 2022,2223/06,SME,N,
0000362224,WORKWEAR (EAST ANGLIA) LTD,427.74,Street & Major Road Cleansing,Protective clothing,23 Aug 2022,2223/06,SME,N,
0000362248,WORKWEAR (EAST ANGLIA) LTD,253.20,Building Services,Protective clothing,26 Aug 2022,2223/06,SME,Y,50%
0000362255,WORKWEAR (EAST ANGLIA) LTD,424.23,Building Services,Protective clothing,15 Aug 2022,2223/06,SME,Y,50%
0000362259,WORKWEAR (EAST ANGLIA) LTD,153.80,Open Spaces,Protective clothing,08 Aug 2022,2223/06,SME,N,
0000362259,WORKWEAR (EAST ANGLIA) LTD,153.80,Street & Major Road Cleansing,Protective clothing,08 Aug 2022,2223/06,SME,N,
0000362170,ARCHANT COMMUNITY MEDIA LTD,741.62,Devt Management - Apps,Advertising&mkting (non-staff),27 Aug 2022,2223/06,LGE,N,
0000362194,ARCHANT COMMUNITY MEDIA LTD,480.00,Footpaths,Advertising&mkting (non-staff),30 Aug 2022,2223/06,LGE,N,
0000362298,ARCHANT COMMUNITY MEDIA LTD,452.71,Devt Management - Apps,Advertising&mkting (non-staff),31 Aug 2022,2223/06,LGE,N,
0000362449,ARCHANT COMMUNITY MEDIA LTD,478.97,Devt Management - Apps,Advertising&mkting (non-staff),08 Sep 2022,2223/06,LGE,N,
0000361984,SERCO LTD,"5,131.36",Open Spaces,Plant & Vehicle Fuel,11 Aug 2022,2223/06,LGE,Y,50%
0000361984,SERCO LTD,"5,131.37",Street & Major Road Cleansing,Plant & Vehicle Fuel,11 Aug 2022,2223/06,LGE,Y,50%
0000362070,SERCO LTD,"320,710.50",Domestic Waste,Refuse Contract,11 Aug 2022,2223/06,LGE,Y,48%
0000362070,SERCO LTD,"21,380.70",Trade Waste,Refuse Contract,11 Aug 2022,2223/06,LGE,Y,60%
0000362070,SERCO LTD,"85,522.80",Garden Waste,Refuse Contract,11 Aug 2022,2223/06,LGE,Y,47.5%
0000362071,SERCO LTD,"10,000.00",Jnt Waste Contract,Plant & Vehicle Fuel,11 Aug 2022,2223/06,LGE,Y,50%
0000362072,SERCO LTD,"4,587.00",Domestic Waste,Refuse Contract,11 Aug 2022,2223/06,LGE,Y,50%
0000362073,SERCO LTD,"1,953.08",Domestic Waste,Refuse Contract,11 Aug 2022,2223/06,LGE,Y,50%
0000362327,SERCO LTD,"4,587.00",Domestic Waste,Refuse Contract,05 Sep 2022,2223/06,LGE,Y,50%
0000362328,SERCO LTD,"10,000.00",Jnt Waste Contract,Plant & Vehicle Fuel,05 Sep 2022,2223/06,LGE,Y,50%
0000362329,SERCO LTD,"320,710.50",Domestic Waste,Refuse Contract,05 Sep 2022,2223/06,LGE,Y,48%
0000362329,SERCO LTD,"21,380.70",Trade Waste,Refuse Contract,05 Sep 2022,2223/06,LGE,Y,60%
0000362329,SERCO LTD,"85,522.80",Garden Waste,Refuse Contract,05 Sep 2022,2223/06,LGE,Y,47.5%
0000362340,SERCO LTD,"7,045.00",Open Spaces,Plant & Vehicle Fuel,05 Sep 2022,2223/06,LGE,Y,50%
0000362340,SERCO LTD,"7,045.00",Street & Major Road Cleansing,Plant & Vehicle Fuel,05 Sep 2022,2223/06,LGE,Y,50%
0000422727,EDF ENERGY,605.39,C Parks General,Electricity,10 Sep 2022,2223/06,LGE,N,
0000422727,EDF ENERGY,923.12,Creeting Rd Depot,Electricity,10 Sep 2022,2223/06,LGE,Y,50%
0000422727,EDF ENERGY,804.35,Headquarters General,Electricity,10 Sep 2022,2223/06,LGE,N,
0000422727,EDF ENERGY,"27,293.61",Leisure Contract,Electricity,10 Sep 2022,2223/06,LGE,N,
0000422727,EDF ENERGY,150.06,Needham Market Middle School,Electricity,10 Sep 2022,2223/06,LGE,N,
0000422727,EDF ENERGY,"2,954.34",Open Spaces,Electricity,10 Sep 2022,2223/06,LGE,N,
0000422727,EDF ENERGY,"1,019.56",Other HRA Temp Accommodation,Electricity,10 Sep 2022,2223/06,LGE,N,
0000422727,EDF ENERGY,458.30,Public Conveniences,Electricity,10 Sep 2022,2223/06,LGE,N,
0000422727,EDF ENERGY,424.66,Pure Gym & Adjacent Building,Electricity,10 Sep 2022,2223/06,LGE,N,
0000422727,EDF ENERGY,3.10,Recycling Centre,Electricity,10 Sep 2022,2223/06,LGE,N,
0000422727,EDF ENERGY,589.92,Sewage Treatment Works,Electricity,10 Sep 2022,2223/06,LGE,N,
0000422727,EDF ENERGY,"10,404.79",Sheltered Accommodation,Electricity,10 Sep 2022,2223/06,LGE,N,
0000422727,EDF ENERGY,62.38,Tacon Close Eye TDP,Electricity,10 Sep 2022,2223/06,LGE,N,
0000422727,EDF ENERGY,628.59,Temporary Accommodation,Electricity,10 Sep 2022,2223/06,LGE,N,
0000422727,EDF ENERGY,"2,516.35",Tenancy Services,Electricity,10 Sep 2022,2223/06,LGE,N,
0000422727,EDF ENERGY,"2,963.45",Wingfield Barns,Electricity,10 Sep 2022,2223/06,LGE,N,
0000422737,GPC BARCLAYS,"8,152.65",Current Assets,Barclaycard Control,14 Sep 2022,2223/06,LGE,Y,12%
0000422721,ALLSTAR BUSINESS SOLUTIONS LTD,202.89,Housing Options,Plant & Vehicle Fuel,31 Aug 2022,2223/06,SME,Y,50%
0000422721,ALLSTAR BUSINESS SOLUTIONS LTD,"13,053.80",Building Services,Plant & Vehicle Fuel,31 Aug 2022,2223/06,SME,Y,50%
0000422783,1ST WETHERDEN & HAUGHLEY SCOUTS,460.49,Bring Sites,Contributions & Donations,28 Sep 2022,2223/06,SME,N,
0000362719,BOTESDALE PARISH COUNCIL,"3,934.02",CIL Funded REFCUS,Grants,26 Sep 2022,2223/06,SME,N,
0000362781,BOTESDALE PARISH COUNCIL,"2,270.16",Community Wellbeing,Grants,28 Sep 2022,2223/06,SME,N,
0000362448,DEBENHAM VILLAGE HALL & PLAYING FIELD TR,441.60,Wellbeing CCG Funding,Room Hire,09 Sep 2022,2223/06,SME,N,
0000422779,DRINKSTONE WAR MEMORIAL INSTITUTE,266.50,Bring Sites,Contributions & Donations,28 Sep 2022,2223/06,SME,N,
0000422780,EARL STONHAM PARISH COUNCIL,315.05,Bring Sites,Contributions & Donations,28 Sep 2022,2223/06,SME,N,
0000422750,ELMSWELL PARISH COUNCIL,852.91,Bring Sites,Contributions & Donations,28 Sep 2022,2223/06,SME,N,
0000362137,FRAMSDEN PARISH COUNCIL,"1,000.00",Grants & Contrbns,Contributions & Donations,26 Aug 2022,2223/06,SME,N,
0000422785,HOXNE VILLAGE HALL,339.80,Bring Sites,Contributions & Donations,28 Sep 2022,2223/06,SME,N,
0000362494,LITTLE BLAKENHAM PARISH COUNCIL,"2,500.00",Grants & Contrbns,Contributions & Donations,14 Sep 2022,2223/06,SME,N,
0000362435,NORTON PARISH COUNCIL,265.52,Grants & Contrbns,Contributions & Donations,08 Sep 2022,2223/06,SME,N,
0000422759,NORTON PARISH COUNCIL,550.14,Bring Sites,Contributions & Donations,28 Sep 2022,2223/06,SME,N,
0000362590,OFFTON & WILLISHAM VILLAGE HALL,600.00,Devt Management - Appeals,Room Hire,19 Sep 2022,2223/06,SME,N,
0000422793,RATTLESDEN PARISH COUNCIL,294.10,Bring Sites,Contributions & Donations,28 Sep 2022,2223/06,SME,N,
0000422795,RICKINGHALL VILLAGE HALL,460.55,Bring Sites,Contributions & Donations,28 Sep 2022,2223/06,SME,N,
0000422766,THORNHAM PARISH HALL,367.13,Bring Sites,Contributions & Donations,28 Sep 2022,2223/06,SME,N,
0000362433,THURSTON PARISH COUNCIL,745.00,Grants & Contrbns,Contributions & Donations,08 Sep 2022,2223/06,SME,N,
0000422801,WALSHAM LE WILLOWS MEMORIAL VILLAGE HALL,515.53,Bring Sites,Contributions & Donations,28 Sep 2022,2223/06,SME,N,
0000362779,WINGFIELD BARNS CIC,416.66,Holiday Activity Fund,"Equipment, Tools & Materials",28 Sep 2022,2223/06,SME,N,
0000422805,WORTHAM VILLAGE HALL,393.23,Bring Sites,Contributions & Donations,28 Sep 2022,2223/06,SME,N,
0000422806,YAXLEY PARISH COUNCIL,345.40,Bring Sites,Contributions & Donations,28 Sep 2022,2223/06,SME,N,
0000361226,SUFFOLK COUNTY COUNCIL,"1,065.25",Organisational Devt,Recruitment,14 Jul 2022,2223/06,LGE,Y,50%
0000361479,SUFFOLK COUNTY COUNCIL,350.00,Organisational Devt,Recruitment,28 Jul 2022,2223/06,LGE,Y,50%
0000361664,SUFFOLK COUNTY COUNCIL,"1,355.00",Organisational Devt,Recruitment,04 Aug 2022,2223/06,LGE,Y,50%
0000361900,SUFFOLK COUNTY COUNCIL,"8,250.00",ICT,Computer Equpt Purchases,15 Aug 2022,2223/06,LGE,Y,50%
0000362065,SUFFOLK COUNTY COUNCIL,837.02,Jnt Waste Contract,Contracted Services,23 Aug 2022,2223/06,LGE,Y,50%
0000362067,SUFFOLK COUNTY COUNCIL,"66,689.77",Household Support Grant,Misc Supplies & Services Costs,24 Aug 2022,2223/06,LGE,N,
0000362135,SUFFOLK COUNTY COUNCIL,"53,293.45",Trade Waste,Trade Waste Disposal,25 Aug 2022,2223/06,LGE,N,
0000362190,SUFFOLK COUNTY COUNCIL,"1,303.30",Domestic Waste,MRF Disposal,30 Aug 2022,2223/06,LGE,N,
0000362190,SUFFOLK COUNTY COUNCIL,"16,207.78",Garden Waste,Garden Waste Disposal,30 Aug 2022,2223/06,LGE,N,
0000362264,SUFFOLK COUNTY COUNCIL,397.72,Organisational Devt,Training,01 Sep 2022,2223/06,LGE,Y,50%
0000362303,SUFFOLK COUNTY COUNCIL,"1,470.00",Land Chgs,Contracted Services,02 Sep 2022,2223/06,LGE,N,
0000362389,SUFFOLK COUNTY COUNCIL,779.07,Health & Safety,"Equipment, Tools & Materials",06 Sep 2022,2223/06,LGE,Y,50%
0000362441,SUFFOLK COUNTY COUNCIL,975.00,Open Spaces,Computer Equpt Purchases,08 Sep 2022,2223/06,LGE,N,
0000362442,SUFFOLK COUNTY COUNCIL,"1,507.00",Organisational Devt,Recruitment,08 Sep 2022,2223/06,LGE,Y,50%
0000362563,SUFFOLK COUNTY COUNCIL,375.00,Organisational Devt,Recruitment,15 Sep 2022,2223/06,LGE,Y,50%
0000362757,SUFFOLK COUNTY COUNCIL,"1,518.46",Domestic Waste,MRF Disposal,26 Sep 2022,2223/06,LGE,N,
0000362757,SUFFOLK COUNTY COUNCIL,"14,335.88",Garden Waste,Garden Waste Disposal,26 Sep 2022,2223/06,LGE,N,
0000362184,FENN WRIGHT LLP,450.00,General/Supervision & Mgmt,Prof & Consultancy Fees,30 Aug 2022,2223/06,SME,N,
0000362744,TELEFONICA UK LIMITED - O2,"1,476.00",ICT,Telephone Costs,27 Sep 2022,2223/06,LGE,Y,50%
0000362581,LACY SCOTT & KNIGHT,450.00,Assets & Development,Prof & Consultancy Fees,16 Sep 2022,2223/06,SME,N,
0000362158,KENNET EQUIPMENT LEASING,283.05,Creeting Rd Depot,Operating Lease Payments,30 Aug 2022,2223/06,SME,Y,50%
0000362727,KENNET EQUIPMENT LEASING,283.05,Creeting Rd Depot,Operating Lease Payments,26 Sep 2022,2223/06,SME,Y,50%
0000361972,LEX AUTOLEASE,265.48,Building Services,Lease Cars - Payment,14 Aug 2022,2223/06,SME,Y,50%
0000362566,LEX AUTOLEASE,320.52,Building Services,Lease Cars - Payment,07 Sep 2022,2223/06,SME,Y,50%
0000362567,LEX AUTOLEASE,327.22,Building Services,Lease Cars - Payment,07 Sep 2022,2223/06,SME,Y,50%
0000362568,LEX AUTOLEASE,311.29,Building Services,Lease Cars - Payment,08 Sep 2022,2223/06,SME,Y,50%
0000362569,LEX AUTOLEASE,315.39,Building Services,Lease Cars - Payment,11 Sep 2022,2223/06,SME,Y,50%
0000362570,LEX AUTOLEASE,303.08,Building Services,Lease Cars - Payment,11 Sep 2022,2223/06,SME,Y,50%
0000362571,LEX AUTOLEASE,265.48,Building Services,Lease Cars - Payment,12 Sep 2022,2223/06,SME,Y,50%
0000362572,LEX AUTOLEASE,325.05,Building Services,Lease Cars - Payment,12 Sep 2022,2223/06,SME,Y,50%
0000362573,LEX AUTOLEASE,337.78,Building Services,Lease Cars - Payment,12 Sep 2022,2223/06,SME,Y,50%
0000362574,LEX AUTOLEASE,263.72,Building Services,Lease Cars - Payment,12 Sep 2022,2223/06,SME,Y,50%
0000362319,ESSEX AND SUFFOLK WATER,685.73,Sheltered Accommodation,Water Rates - Metered,30 Aug 2022,2223/06,LGE,N,
0000422743,GAZPROM ENERGY,15.88,"11 Market Place, Stowmarket",Gas,15 Sep 2022,2223/06,SME,N,
0000422743,GAZPROM ENERGY,81.15,Creeting Rd Depot,Gas,15 Sep 2022,2223/06,SME,Y,50%
0000422743,GAZPROM ENERGY,19.27,General/Supervision & Mgmt,Gas,15 Sep 2022,2223/06,SME,N,
0000422743,GAZPROM ENERGY,54.07,Headquarters General,Gas,15 Sep 2022,2223/06,SME,N,
0000422743,GAZPROM ENERGY,"7,079.47",Leisure Contract,Gas,15 Sep 2022,2223/06,SME,N,
0000422743,GAZPROM ENERGY,15.88,Pure Gym & Adjacent Building,Gas,15 Sep 2022,2223/06,SME,N,
0000422743,GAZPROM ENERGY,"4,532.51",Sheltered Accommodation,Gas,15 Sep 2022,2223/06,SME,N,
0000422743,GAZPROM ENERGY,224.08,Temporary Accommodation,Gas,15 Sep 2022,2223/06,SME,N,
0000422743,GAZPROM ENERGY,168.53,Tenancy Services,Gas,15 Sep 2022,2223/06,SME,N,
0000362521,CYCLESCHEME LTD,"1,249.99",Current Assets,Cycling Scheme,13 Sep 2022,2223/06,SME,N,
0000362434,LAMBERT SMITH HAMPTON GROUP LTD,"10,093.11",Devt Management - Appeals,Prof & Consultancy Fees,08 Sep 2022,2223/06,LGE,N,
0000361407,TEMPLE GROUP LTD,"3,839.46",Stowmarket Middle School,Prof & Consultancy Fees,18 Jul 2022,2223/06,SME,N,
0000362740,TEMPLE GROUP LTD,"1,600.00",Paddock House Eye,Prof & Consultancy Fees,21 Sep 2022,2223/06,SME,N,
0000362498,WHYBROW PROPERTY SOLUTIONS LTD,"2,691.00",Building Services,Repairs,12 Sep 2022,2223/06,SME,N,
0000361944,L A C CLEANING CONTRACTORS LIMITED,375.00,Other Temp Accommodation,General Cleaning,18 Aug 2022,2223/06,SME,N,
0000362185,L A C CLEANING CONTRACTORS LIMITED,366.16,Temporary Accommodation,General Cleaning,26 Aug 2022,2223/06,SME,N,
0000362186,L A C CLEANING CONTRACTORS LIMITED,824.41,Temporary Accommodation,General Cleaning,26 Aug 2022,2223/06,SME,N,
0000362213,L A C CLEANING CONTRACTORS LIMITED,75.50,Temporary Accommodation,General Cleaning,01 Sep 2022,2223/06,SME,N,
0000362213,L A C CLEANING CONTRACTORS LIMITED,175.00,Temporary Accommodation,General Cleaning,01 Sep 2022,2223/06,SME,N,
0000362335,ARMSTRONG YORK ASBESTOS ENVIRONMENTAL,"4,948.43",Asbestos Survey & Reinspection,Prof & Consultancy Fees,31 Aug 2022,2223/06,SME,N,
0000362592,EXPERIAN LTD,726.93,Economy & Business,Subscriptions,19 Sep 2022,2223/06,SME,Y,50%
0000422772,1ST BACTON SCOUT GROUP,491.59,Bring Sites,Contributions & Donations,28 Sep 2022,2223/06,SME,N,
0000362544,BAREFOOT & GILLES LTD,"2,500.00",Cross Street Tech Hub,Prof & Consultancy Fees,13 Sep 2022,2223/06,SME,N,
0000362641,THE MIX STOWMARKET LTD,"3,025.00",Holiday Activity Fund,"Equipment, Tools & Materials",21 Sep 2022,2223/06,SME,N,
0000422744,BT DIRECT DEBIT,"11,303.91",ICT,Telephone Costs,21 Sep 2022,2223/06,LGE,N,
0000422771,EAST ANGLIAN AIR AMBULANCE,"1,188.98",Bring Sites,Contributions & Donations,28 Sep 2022,2223/06,SME,N,
0000362308,COMMUNITY ACTION SUFFOLK,768.00,Community Safety-General,Contributions & Donations,05 Sep 2022,2223/06,SME,N,
0000362346,OLD NEWTON VILLAGE HALL,"2,000.00",Grants & Contrbns,Contributions & Donations,06 Sep 2022,2223/06,SME,N,
0000422791,OLD NEWTON VILLAGE HALL,300.22,Bring Sites,Contributions & Donations,28 Sep 2022,2223/06,SME,N,
0000362057,CONCERTUS DESIGN & PROPERTY CONSULTANTS,660.00,Endeavour House - HQ,Misc Premises Costs,29 Apr 2022,2223/06,SME,Y,50%
0000362337,CONCERTUS DESIGN & PROPERTY CONSULTANTS,660.00,Endeavour House - HQ,Misc Premises Costs,29 Jul 2022,2223/06,SME,Y,50%
0000362338,CONCERTUS DESIGN & PROPERTY CONSULTANTS,990.00,Endeavour House - HQ,Misc Premises Costs,30 Jun 2022,2223/06,SME,Y,50%
0000362443,ORSIS UK LTD,"4,902.00",PV Panels,Contracted Services,09 Sep 2022,2223/06,SME,N,
0000360996,ROSSI LONG CONSULTING LTD,"3,451.25",Cross Street Tech Hub,Prof & Consultancy Fees,29 Jun 2022,2223/06,SME,N,
0000361942,OXBURY CHARTERED SURVEYORS,"1,800.00","The Broadway, Badwell Ash",Prof & Consultancy Fees,18 Aug 2022,2223/06,SME,N,
0000362785,OXBURY CHARTERED SURVEYORS,"1,800.00","The Broadway, Badwell Ash",Prof & Consultancy Fees,28 Sep 2022,2223/06,SME,N,
0000362160,OPUS PEOPLE SOLUTIONS LTD,602.48,Current Liabilities,Agency Staff Holding A/C,25 Aug 2022,2223/06,SME,N,
0000362496,OPUS PEOPLE SOLUTIONS LTD,"1,329.47",Current Liabilities,Agency Staff Holding A/C,08 Sep 2022,2223/06,SME,N,
0000362553,OPUS PEOPLE SOLUTIONS LTD,"4,906.81",Current Liabilities,Agency Staff Holding A/C,12 Sep 2022,2223/06,SME,N,
0000362599,OPUS PEOPLE SOLUTIONS LTD,545.59,Current Liabilities,Agency Staff Holding A/C,15 Sep 2022,2223/06,SME,N,
0000362701,OPUS PEOPLE SOLUTIONS LTD,"1,064.29",Current Liabilities,Agency Staff Holding A/C,22 Sep 2022,2223/06,SME,N,
0000362768,ECOSYSTEMS TREE & GROUNDS CARE,"1,025.00",Needham Market Middle School,Prof & Consultancy Fees,27 Sep 2022,2223/06,SME,N,
0000362469,CORNERSTONE BARRISTERS,"4,000.00",CIL,Misc Legal Expenses,12 Sep 2022,2223/06,SME,Y,50%
0000362352,VERTAS GROUP LTD,"1,440.00",Assets & Development,Repairs,31 Aug 2022,2223/06,SME,N,
0000362414,4PRINCIPLES CONSTRUCTION LTD,"6,495.26",Mand Disabled Facilities Grant,Grants,08 Sep 2022,2223/06,SME,N,
0000362470,4PRINCIPLES CONSTRUCTION LTD,"7,500.00",Mand Disabled Facilities Grant,Grants,13 Sep 2022,2223/06,SME,N,
0000362436,DESTINATION RESEARCH  LTD,"1,850.00",Tourism General,Prof & Consultancy Fees,08 Sep 2022,2223/06,SME,Y,50%
0000362256,GALLAGHER CAR & VAN RENTALS LTD,"1,232.00",Domestic Waste,Refuse Contract,02 Sep 2022,2223/06,LGE,N,
0000362440,GALLAGHER CAR & VAN RENTALS LTD,"2,116.42",Domestic Waste,Refuse Contract,07 Sep 2022,2223/06,LGE,N,
0000362428,FORESOLUTIONS LTD,254.38,Open Spaces,Plant & Vehicle - Other costs,08 Sep 2022,2223/06,SME,N,
0000362456,SOMERSHAM TENNIS CLUB,744.00,Grants & Contrbns,Grants,12 Sep 2022,2223/06,SME,N,
0000362432,TOSTOCK VILLAGE HALL,380.00,Grants & Contrbns,Contributions & Donations,08 Sep 2022,2223/06,SME,N,
0000362192,FAST TEST STOWMARKET LLP,600.00,Taxi & Private Hire Licensing,Contracted Services,31 Aug 2022,2223/06,SME,N,
0000362161,GREEN SPARK PRODUCTION LTD T/A AV UNIT,656.00,Cost of Democracy,Room Hire,03 Aug 2022,2223/06,SME,N,
0000362602,LOFTY HEIGHTS LTD,"1,180.00",Tenancy Services,Contracted Services,19 Sep 2022,2223/06,SME,N,
0000362336,COLCHESTER ZOO LTD,375.00,Organisational Devt,Training,06 Sep 2022,2223/06,LGE,Y,50%
0000362397,RICHARD UTTING ASSOCIATES LLP,"1,293.23","Green Road, Woolpit",Prof & Consultancy Fees,31 Aug 2022,2223/06,SME,N,
0000362500,RICHARD UTTING ASSOCIATES LLP,"2,124.75",Stowmarket Middle School,Prof & Consultancy Fees,31 Aug 2022,2223/06,SME,N,
0000362501,RICHARD UTTING ASSOCIATES LLP,"1,787.19",Needham Market Middle School,Prof & Consultancy Fees,31 Aug 2022,2223/06,SME,N,
0000422739,HM COURTS & TRIBUNALS SERVICE  (DD ONLY),"1,292.00",Devt Management - Apps,Legal Expenses,01 Sep 2022,2223/06,LGE,N,
0000362291,PUBLIC SEWER SERVICES,791.63,Building Services,Repairs,31 Aug 2022,2223/06,SME,N,
0000362293,PUBLIC SEWER SERVICES,"1,637.07",Building Services,Repairs,31 Aug 2022,2223/06,SME,N,
0000362361,PUBLIC SEWER SERVICES,563.58,Building Services,Repairs,24 May 2022,2223/06,SME,N,
0000362363,PUBLIC SEWER SERVICES,"1,891.16",Building Services,Repairs,24 May 2022,2223/06,SME,N,
0000362374,PUBLIC SEWER SERVICES,424.24,Roads and Paths,Improvements,27 Jul 2022,2223/06,SME,N,
0000362376,PUBLIC SEWER SERVICES,500.00,Building Services,Repairs,27 Jul 2022,2223/06,SME,N,
0000362378,PUBLIC SEWER SERVICES,"3,649.20",Building Services,Repairs,24 May 2022,2223/06,SME,N,
0000362484,PUBLIC SEWER SERVICES,"1,557.21",Building Services,Repairs,20 Jul 2022,2223/06,SME,N,
0000362534,PUBLIC SEWER SERVICES,"5,409.02",Unadopted Drains & Sewers,Improvements,02 Sep 2022,2223/06,SME,N,
0000362596,PUBLIC SEWER SERVICES,"3,660.06",Building Services,Repairs,20 Sep 2022,2223/06,SME,N,
0000362267,THE STOWMARKET GLASS COMPANY LTD,330.60,Building Services,Repairs,18 Aug 2022,2223/06,SME,N,
0000362268,THE STOWMARKET GLASS COMPANY LTD,693.07,Building Services,Repairs,19 Aug 2022,2223/06,SME,N,
0000362405,ASPECT CONTRACTS LTD,"2,214.00",Asbestos,Improvements,31 Aug 2022,2223/06,LGE,N,
0000362778,THE OFFSHOOT FOUNDATION,939.30,Holiday Activity Fund,"Equipment, Tools & Materials",28 Sep 2022,2223/06,SME,N,
0000362251,THE OYSTER PARTNERSHIP LTD,"2,450.00",General/Supervision & Mgmt,Agency Staff,31 Aug 2022,2223/06,SME,Y,50%
0000362252,THE OYSTER PARTNERSHIP LTD,"1,770.00",General/Supervision & Mgmt,Agency Staff,31 Aug 2022,2223/06,SME,Y,50%
0000362253,THE OYSTER PARTNERSHIP LTD,"2,656.25",Building Servs Tech Staff,Agency Staff,31 Aug 2022,2223/06,SME,Y,50%
0000362254,THE OYSTER PARTNERSHIP LTD,"3,150.00",General/Supervision & Mgmt,Agency Staff,31 Aug 2022,2223/06,SME,Y,50%
0000362399,THE OYSTER PARTNERSHIP LTD,"3,150.00",General/Supervision & Mgmt,Agency Staff,07 Sep 2022,2223/06,SME,Y,50%
0000362400,THE OYSTER PARTNERSHIP LTD,"1,960.00",General/Supervision & Mgmt,Agency Staff,07 Sep 2022,2223/06,SME,Y,50%
0000362401,THE OYSTER PARTNERSHIP LTD,"2,125.00",Building Servs Tech Staff,Agency Staff,07 Sep 2022,2223/06,SME,Y,50%
0000362402,THE OYSTER PARTNERSHIP LTD,"1,770.00",General/Supervision & Mgmt,Agency Staff,07 Sep 2022,2223/06,SME,Y,50%
0000362529,THE OYSTER PARTNERSHIP LTD,"3,150.00",General/Supervision & Mgmt,Agency Staff,14 Sep 2022,2223/06,SME,Y,50%
0000362530,THE OYSTER PARTNERSHIP LTD,"2,450.00",General/Supervision & Mgmt,Agency Staff,14 Sep 2022,2223/06,SME,Y,50%
0000362531,THE OYSTER PARTNERSHIP LTD,"2,656.25",Building Servs Tech Staff,Agency Staff,14 Sep 2022,2223/06,SME,Y,50%
0000362532,THE OYSTER PARTNERSHIP LTD,"1,770.00",General/Supervision & Mgmt,Agency Staff,14 Sep 2022,2223/06,SME,Y,50%
0000362533,THE OYSTER PARTNERSHIP LTD,"1,770.00",General/Supervision & Mgmt,Agency Staff,14 Sep 2022,2223/06,SME,Y,50%
0000362661,THE OYSTER PARTNERSHIP LTD,"1,770.00",General/Supervision & Mgmt,Agency Staff,21 Sep 2022,2223/06,SME,Y,50%
0000362662,THE OYSTER PARTNERSHIP LTD,"2,450.00",General/Supervision & Mgmt,Agency Staff,21 Sep 2022,2223/06,SME,Y,50%
0000362663,THE OYSTER PARTNERSHIP LTD,"3,150.00",General/Supervision & Mgmt,Agency Staff,21 Sep 2022,2223/06,SME,Y,50%
0000362664,THE OYSTER PARTNERSHIP LTD,"2,656.25",Building Servs Tech Staff,Agency Staff,21 Sep 2022,2223/06,SME,Y,50%
0000362197,VIVID RESOURCING,"1,710.00",Business Cont/Emergency Plan,Contracted Services,31 Aug 2022,2223/06,SME,Y,50%
0000362386,VIVID RESOURCING,"1,710.00",Business Cont/Emergency Plan,Contracted Services,07 Sep 2022,2223/06,SME,Y,50%
0000362527,VIVID RESOURCING,"1,710.00",Business Cont/Emergency Plan,Contracted Services,14 Sep 2022,2223/06,SME,Y,50%
0000362780,VIVID RESOURCING,"3,420.00",Business Cont/Emergency Plan,Contracted Services,28 Sep 2022,2223/06,SME,Y,50%
0000362052,NORTHUMBRIAN WATER LTD,33.46,Cedars Park,Legionella Testing,24 Aug 2022,2223/06,LGE,N,
0000362052,NORTHUMBRIAN WATER LTD,33.46,Creeting Rd Depot,Legionella Testing,24 Aug 2022,2223/06,LGE,Y,50%
0000362052,NORTHUMBRIAN WATER LTD,33.48,Open Spaces,Legionella Testing,24 Aug 2022,2223/06,LGE,N,
0000362052,NORTHUMBRIAN WATER LTD,507.82,Sheltered Accommodation,Legionella Testing,24 Aug 2022,2223/06,LGE,N,
0000362052,NORTHUMBRIAN WATER LTD,39.53,Tacon Close Eye TDP,Legionella Testing,24 Aug 2022,2223/06,LGE,N,
0000362052,NORTHUMBRIAN WATER LTD,39.53,Temporary Accommodation,Legionella Testing,24 Aug 2022,2223/06,LGE,N,
0000362052,NORTHUMBRIAN WATER LTD,629.52,Tenancy Services,Legionella Testing,24 Aug 2022,2223/06,LGE,N,
0000362052,NORTHUMBRIAN WATER LTD,72.99,Wingfield Barns,Legionella Testing,24 Aug 2022,2223/06,LGE,N,
0000362077,NORTHUMBRIAN WATER LTD,"1,716.04",Sheltered Accommodation,Legionella Testing,25 Aug 2022,2223/06,LGE,N,
0000362090,NORTHUMBRIAN WATER LTD,"1,344.06",Sheltered Accommodation,Legionella Testing,25 Aug 2022,2223/06,LGE,N,
0000362090,NORTHUMBRIAN WATER LTD,39.30,Tenancy Services,Legionella Testing,25 Aug 2022,2223/06,LGE,N,
0000362355,GIPPING OCCUPATIONAL HEALTH LTD,289.44,Health & Safety,Contracted Services,06 Sep 2022,2223/06,SME,N,
0000362603,GIPPING OCCUPATIONAL HEALTH LTD,420.00,Organisational Devt,Contracted Services,05 Aug 2022,2223/06,SME,Y,50%
0000362041,PARK AVENUE RECRUITMENT LTD,"1,189.00",Devt Management - Apps,Prof & Consultancy Fees,12 Aug 2022,2223/06,SME,Y,45.5%
0000362042,PARK AVENUE RECRUITMENT LTD,"1,476.00",Devt Management - Apps,Prof & Consultancy Fees,24 Jul 2022,2223/06,SME,Y,45.5%
0000362418,PARK AVENUE RECRUITMENT LTD,"1,209.50",Devt Management - Apps,Prof & Consultancy Fees,06 Sep 2022,2223/06,SME,Y,56%
0000362330,JOHN FORD GROUP LTD,"6,845.87",Mand Disabled Facilities Grant,Grants,06 Sep 2022,2223/06,SME,N,
0000362398,RESIDENTIALLY CHARTERED SURVEYORS,350.00,Tenants Forum,Prof & Consultancy Fees,31 Aug 2022,2223/06,SME,N,
0000362761,WILD FRONTIER ECOLOGY LTD,660.00,Paddock House Eye,Prof & Consultancy Fees,22 Jun 2022,2223/06,SME,N,
0000362198,ABBEYCROFT LEISURE,"1,620.00",Holiday Activity Fund,"Equipment, Tools & Materials",24 Aug 2022,2223/06,LGE,N,
0000362783,ABBEYCROFT LEISURE,"6,211.94",Holiday Activity Fund,"Equipment, Tools & Materials",28 Sep 2022,2223/06,LGE,N,
0000362650,BELLWAY HOMES LIMITED (ESSEX DIVISION),"463,286.08",Eves Meadow Haughley S106,Prof & Consultancy Fees,21 Sep 2022,2223/06,LGE,N,
0000359680,HAMSON BARRON SMITH LTD,"1,085.00",BRRP-MarketTownVision&Invest,Prof & Consultancy Fees,30 Apr 2022,2223/06,LGE,N,
0000362153,HAMSON BARRON SMITH LTD,500.00,BRRP-MarketTownVision&Invest,Prof & Consultancy Fees,31 Aug 2022,2223/06,LGE,N,
0000362119,A C LEIGH (NORWICH) LTD,276.84,Building Services,"Equipment, Tools & Materials",11 Aug 2022,2223/06,SME,N,
0000362391,A C LEIGH (NORWICH) LTD,269.52,Building Services,"Equipment, Tools & Materials",01 Sep 2022,2223/06,SME,N,
0000362632,A C LEIGH (NORWICH) LTD,264.72,Building Services,"Equipment, Tools & Materials",14 Sep 2022,2223/06,SME,N,
0000362276,3 POINT PROPERTY MANAGEMENT LTD,895.00,Guaranteed Rent Scheme,Rent Payable,05 Sep 2022,2223/06,SME,N,
0000362353,3 POINT PROPERTY MANAGEMENT LTD,675.00,Guaranteed Rent Scheme,Rent Payable,07 Sep 2022,2223/06,SME,N,
0000422738,3 POINT PROPERTY MANAGEMENT LTD,825.00,Guaranteed Rent Scheme,Rent Payable,15 Sep 2022,2223/06,SME,N,
0000362411,FLAGSHIP HOUSING GROUP LTD-RENT ACCOUNT,"1,150.00",Homeless Prevention Fund,Misc Supplies & Services Costs,08 Sep 2022,2223/06,LGE,N,
0000362283,EAST SUFFOLK COUNCIL,"3,807.23",Bldg Regs Chargeable Serv,Prof & Consultancy Fees,02 Sep 2022,2223/06,LGE,N,
0000362728,DG ACCESSIBLE DESIGNS,"1,745.56",Mand Disabled Facilities Grant,Grants,26 Sep 2022,2223/06,SME,N,
0000422781,2ND EYE RAINBOWS,742.52,Bring Sites,Contributions & Donations,28 Sep 2022,2223/06,SME,N,
0000362179,APTL ENTERPRISES LTD,"3,652.00",PV Panels,Repairs,31 Aug 2022,2223/06,SME,N,
0000362240,WASHCO LTD,467.00,Sheltered Accommodation,"Equipment, Tools & Materials",01 Sep 2022,2223/06,SME,N,
0000362622,ANGLIA COMMERCIAL FLOORING LTD,512.23,Building Services,Repairs,13 Sep 2022,2223/06,SME,N,
0000362623,ANGLIA COMMERCIAL FLOORING LTD,546.60,Building Services,Repairs,13 Sep 2022,2223/06,SME,N,
0000362624,ANGLIA COMMERCIAL FLOORING LTD,"1,519.86",Building Services,Repairs,20 Sep 2022,2223/06,SME,N,
0000362625,ANGLIA COMMERCIAL FLOORING LTD,437.28,Building Services,Repairs,20 Sep 2022,2223/06,SME,N,
0000362683,ANGLIA COMMERCIAL FLOORING LTD,845.61,Building Services,Repairs,21 Sep 2022,2223/06,SME,N,
0000362684,ANGLIA COMMERCIAL FLOORING LTD,320.40,Building Services,Repairs,22 Sep 2022,2223/06,SME,N,
0000362722,ANGLIA COMMERCIAL FLOORING LTD,644.44,Building Services,Repairs,16 Jun 2022,2223/06,SME,N,
0000362724,ANGLIA COMMERCIAL FLOORING LTD,690.96,Building Services,Repairs,23 Sep 2022,2223/06,SME,N,
0000362647,CABBAGES & KINGS,400.00,Devt Management - Appeals,Misc Supplies & Services Costs,16 Sep 2022,2223/06,SME,N,
0000422726,ANGLIAN WATER BUS (NAT) LTD T/A WAVE,50.25,"11 Market Place, Stowmarket",Water Rates - Metered,12 Sep 2022,2223/06,LGE,N,
0000422726,ANGLIAN WATER BUS (NAT) LTD T/A WAVE,32.26,General/Supervision & Mgmt,Water Rates - Metered,12 Sep 2022,2223/06,LGE,N,
0000422726,ANGLIAN WATER BUS (NAT) LTD T/A WAVE,564.44,Headquarters General,Water Rates - Metered,12 Sep 2022,2223/06,LGE,N,
0000422726,ANGLIAN WATER BUS (NAT) LTD T/A WAVE,130.22,Open Spaces,Water Rates - Metered,12 Sep 2022,2223/06,LGE,N,
0000422726,ANGLIAN WATER BUS (NAT) LTD T/A WAVE,"-2,087.71",Public Conveniences,Water Rates - Metered,12 Sep 2022,2223/06,LGE,N,
0000422726,ANGLIAN WATER BUS (NAT) LTD T/A WAVE,5.80,Recycling Centre,Water Rates - Metered,12 Sep 2022,2223/06,LGE,N,
0000422726,ANGLIAN WATER BUS (NAT) LTD T/A WAVE,4.21,Sewage Treatment Works,Water Rates - Metered,12 Sep 2022,2223/06,LGE,N,
0000422726,ANGLIAN WATER BUS (NAT) LTD T/A WAVE,"2,268.31",Sheltered Accommodation,Water Rates - Metered,12 Sep 2022,2223/06,LGE,N,
0000422726,ANGLIAN WATER BUS (NAT) LTD T/A WAVE,-2.26,Tacon Close Eye TDP,Water Rates - Metered,12 Sep 2022,2223/06,LGE,N,
0000422726,ANGLIAN WATER BUS (NAT) LTD T/A WAVE,17.23,Temporary Accommodation,Water Rates - Metered,12 Sep 2022,2223/06,LGE,N,
0000422726,ANGLIAN WATER BUS (NAT) LTD T/A WAVE,33.75,Tenancy Services,Water Rates - Metered,12 Sep 2022,2223/06,LGE,N,
0000422726,ANGLIAN WATER BUS (NAT) LTD T/A WAVE,-16.81,Wingfield Barns,Water Rates - Metered,12 Sep 2022,2223/06,LGE,N,
0000422809,ANGLIAN WATER BUS (NAT) LTD T/A WAVE,997.51,Sheltered Accommodation,Water Rates - Metered,29 Sep 2022,2223/06,LGE,N,
0000422725,IMSERV EUROPE LTD,250.41,Sheltered Accommodation,Electricity,01 Sep 2022,2223/06,LGE,N,
0000422725,IMSERV EUROPE LTD,131.37,Headquarters General,Electricity,01 Sep 2022,2223/06,LGE,N,
0000422725,IMSERV EUROPE LTD,131.37,Open Spaces,Electricity,01 Sep 2022,2223/06,LGE,N,
0000422746,IMSERV EUROPE LTD,180.37,Tenancy Services,Electricity,22 Sep 2022,2223/06,LGE,N,
0000422746,IMSERV EUROPE LTD,180.37,Open Spaces,Electricity,22 Sep 2022,2223/06,LGE,N,
0000362643,HEALTH AND CARE (UK) LTD,499.93,Jnt Waste Contract,"Equipment, Tools & Materials",01 Sep 2022,2223/06,SME,Y,50%
0000362310,ALBION COMPUTERS PLC,"4,715.00",Jnt Waste Contract,Computer Equpt Purchases,31 Aug 2022,2223/06,SME,Y,50%
0000362169,GREENACRE RECRUITMENT LTD,"1,193.99",Housing Standards,Agency Staff,24 Aug 2022,2223/06,SME,Y,50%
0000362207,GREENACRE RECRUITMENT LTD,"1,269.14",Housing Standards,Agency Staff,01 Sep 2022,2223/06,SME,Y,50%
0000362380,GREENACRE RECRUITMENT LTD,"1,006.35",Housing Standards,Agency Staff,07 Sep 2022,2223/06,SME,Y,50%
0000362539,GREENACRE RECRUITMENT LTD,"1,309.19",Housing Standards,Agency Staff,14 Sep 2022,2223/06,SME,Y,50%
0000362637,GREENACRE RECRUITMENT LTD,"1,238.84",Housing Standards,Agency Staff,21 Sep 2022,2223/06,SME,Y,50%
0000361435,MID SUFFOLK GROWTH LTD,"7,970.00",Needham Lake Vis Centre (CAP),Prof & Consultancy Fees,27 Jul 2022,2223/06,SME,N,
0000362204,QUADIENT UK LIMITED,"2,000.00",Central Postal Serv,Postage,05 Aug 2022,2223/06,LGE,Y,50%
0000362612,WATERLOGIC,759.93,Creeting Rd Depot,Contracted Services,16 Sep 2022,2223/06,LGE,Y,50%
0000362636,GATEHOUSE CARING IN EAST ANGLIA,295.00,Homelessness Private Sector,Furniture,12 Sep 2022,2223/06,SME,N,
0000362538,METFIELD ESTATES LTD,670.00,Guaranteed Rent Scheme,Rent Payable,15 Sep 2022,2223/06,SME,N,
0000422713,METFIELD ESTATES LTD,"1,443.00",Guaranteed Rent Scheme,Rent Payable,31 Aug 2022,2223/06,SME,N,
0000362406,PENTACO CONSTRUCTION LTD,"611,294.00",Stowmarket Middle School,Major Contracts,05 Sep 2022,2223/06,SME,N,
0000362794,CLOSOMAT LTD,"3,743.00",Mand Disabled Facilities Grant,Grants,29 Sep 2022,2223/06,SME,N,
0000362777,THE KINETIC SCIENCE FOUNDATION,"3,673.33",Holiday Activity Fund,"Equipment, Tools & Materials",28 Sep 2022,2223/06,SME,N,
0000362729,LIMELEASE LTD,395.00,Guaranteed Rent Scheme,Rent Payable,26 Sep 2022,2223/06,SME,N,
0000362008,BUCHER MUNICIPAL LTD,"1,037.02",Open Spaces,"Equipment, Tools & Materials",22 Aug 2022,2223/06,LGE,N,
0000362262,BUCHER MUNICIPAL LTD,596.71,Street & Major Road Cleansing,Plant & Vehicle - Other costs,02 Sep 2022,2223/06,LGE,N,
0000362344,BUCHER MUNICIPAL LTD,509.71,Street & Major Road Cleansing,"Equipment, Tools & Materials",06 Sep 2022,2223/06,LGE,N,
0000362407,GIPPING CONSTRUCTION LTD,"27,024.39",Regen Fund - HQ Sites,Prof & Consultancy Fees,01 Sep 2022,2223/06,SME,N,
0000362407,GIPPING CONSTRUCTION LTD,"353,797.61",Needham Market Middle School,Prof & Consultancy Fees,01 Sep 2022,2223/06,SME,N,
0000362598,GOULD ADAPTIONS LTD,"12,261.32",Mand Disabled Facilities Grant,Grants,20 Sep 2022,2223/06,SME,N,
0000362497,PRIVATE LANDLORD,786.50,Guaranteed Rent Scheme,Rent Payable,15 Sep 2022,2223/06,ST,N,
0000362289,RED CACTUS MEDIA LTD,"1,900.00",Cost of Democracy,Advertising&mkting (non-staff),02 Sep 2022,2223/06,SME,Y,50%
0000362459,PAUL WRIGHT & CO,775.00,Guaranteed Rent Scheme,Rent Payable,12 Sep 2022,2223/06,SME,N,
0000362604,AFFINITY HEALTH AT WORK LTD,"5,805.00",Organisational Devt,Training,20 Sep 2022,2223/06,SME,Y,50%
0000362605,AFFINITY HEALTH AT WORK LTD,"2,100.00",Organisational Devt,Training,20 Sep 2022,2223/06,SME,Y,50%
0000422717,EWS LIMITED,"3,813.70",Housing Estates (Non-HRA),Service Charges,22 Aug 2022,2223/06,SME,N,
0000362678,UKBCSD,"3,000.00",Management Team,Subscriptions,08 Sep 2022,2223/06,SME,N,
0000362110,DAVID KNIGHTS T/A DAVID BROWN,275.00,Assets & Development,Prof & Consultancy Fees,26 Aug 2022,2223/06,ST,N,
0000362451,PRIVATE LANDLORD,786.50,Guaranteed Rent Scheme,Rent Payable,12 Sep 2022,2223/06,ST,N,
0000362324,COUNTRYSTYLE RECYCLING LTD,"5,628.32",Bring Sites,Contracted Services,31 Aug 2022,2223/06,SME,N,
0000362210,DGL QUALITY MANAGEMENT LTD,"1,092.00",Stowmarket Middle School,Prof & Consultancy Fees,31 Aug 2022,2223/06,SME,N,
0000362233,EAST OF ENGLAND AMBULANCE SERVICE NHS TR,"1,800.00",Grants & Contrbns,Contributions & Donations,01 Sep 2022,2223/06,SME,N,
0000361875,ARAN INSULATION LTD,165.00,Insulation Imps,Improvements,15 Aug 2022,2223/06,SME,N,
0000361875,ARAN INSULATION LTD,110.00,Building Services,Repairs,15 Aug 2022,2223/06,SME,N,
0000361907,ARAN INSULATION LTD,"3,117.76",Insulation Imps,Improvements,16 Aug 2022,2223/06,SME,N,
0000361907,ARAN INSULATION LTD,"4,841.69",Building Services,Repairs,16 Aug 2022,2223/06,SME,N,
0000361908,ARAN INSULATION LTD,"8,058.40",Insulation Imps,Improvements,16 Aug 2022,2223/06,SME,N,
0000362019,ARAN INSULATION LTD,"7,170.60",Insulation Imps,Improvements,23 Aug 2022,2223/06,SME,N,
0000362285,ARAN INSULATION LTD,766.41,Insulation Imps,BMBS Repairs Work,05 Sep 2022,2223/06,SME,N,
0000362285,ARAN INSULATION LTD,"2,966.46",Insulation Imps,Improvements,05 Sep 2022,2223/06,SME,N,
0000362286,ARAN INSULATION LTD,"3,234.99",Insulation Imps,BMBS Repairs Work,05 Sep 2022,2223/06,SME,N,
0000362286,ARAN INSULATION LTD,"2,491.58",Insulation Imps,Improvements,05 Sep 2022,2223/06,SME,N,
0000362287,ARAN INSULATION LTD,"3,617.99",Insulation Imps,Improvements,05 Sep 2022,2223/06,SME,N,
0000362287,ARAN INSULATION LTD,"2,244.45",Stairlifts,Repairs,05 Sep 2022,2223/06,SME,N,
0000362453,CIPFA (COURSES),"1,150.00",Internal Audit,Training,08 Sep 2022,2223/06,LGE,Y,50%
0000362088,IAN BOOTH CONSULTANT ENGINEER LTD,680.00,Strategic Assets,Prof & Consultancy Fees,25 Aug 2022,2223/06,SME,N,
0000362747,IAN BOOTH CONSULTANT ENGINEER LTD,360.00,Strategic Assets,Prof & Consultancy Fees,26 Sep 2022,2223/06,SME,N,
0000362741,STORM ENVIRONMENTAL LTD,"15,665.00",Bins,Bins,23 Sep 2022,2223/06,SME,Y,50%
0000362775,DEBENHAM LEISURE CENTRE FOOTBALL CLUB,"1,150.00",Holiday Activity Fund,"Equipment, Tools & Materials",28 Sep 2022,2223/06,SME,N,
0000362273,MARCHDELL LTD,715.00,Guaranteed Rent Scheme,Rent Payable,05 Sep 2022,2223/06,SME,N,
0000422732,POLYSOLAR LTD,"150,495.84",Public Sector Decarbonisation,Contracted Services,25 Feb 2022,2223/06,SME,N,
0000422734,POLYSOLAR LTD,"107,352.85",Public Sector Decarbonisation,Contracted Services,28 Jan 2022,2223/06,SME,N,
0000422736,POLYSOLAR LTD,"124,559.86",Public Sector Decarbonisation,Contracted Services,21 Dec 2021,2223/06,SME,N,
0000422811,POLYSOLAR LTD,"172,037.86",Public Sector Decarbonisation,Contracted Services,01 Sep 2021,2223/06,SME,N,
0000361503,URBA,"9,775.00",Devt Management - Appeals,Viability,27 Sep 2022,2223/06,SME,N,
0000362278,SPOT WELLBEING,"5,850.00",Policy & Strategy (H & W),Contracted Services,30 Aug 2022,2223/06,SME,N,
0000362739,E.ON NEXT,"1,733.34",Other HRA Temp Accommodation,Heating Charges,21 Sep 2022,2223/06,LGE,N,
0000362473,IPSERV LTD,565.48,Communications,Commercial Printing,06 Sep 2022,2223/06,SME,N,
0000362473,IPSERV LTD,51.37,Central Printing,Commercial Printing,06 Sep 2022,2223/06,SME,N,
0000362676,SSE,366.32,Voids Maintenance,Electricity,21 Sep 2022,2223/06,LGE,N,
0000362499,PRIVATE LANDLORD,669.00,Guaranteed Rent Scheme,Rent Payable,15 Sep 2022,2223/06,ST,N,
0000362589,RSM RISK ASSURANCE SERVICES LLP,"3,000.00",Needham Market Middle School,Prof & Consultancy Fees,30 Aug 2022,2223/06,LGE,N,
0000362454,PRIVATE LANDLORD,650.00,Guaranteed Rent Scheme,Rent Payable,12 Sep 2022,2223/06,ST,N,
0000362036,MK AUTOS MOT CENTRE LIMITED,500.00,Taxi & Private Hire Licensing,Contracted Services,31 May 2022,2223/06,SME,N,
0000362535,MK AUTOS MOT CENTRE LIMITED,400.00,Taxi & Private Hire Licensing,Contracted Services,31 Aug 2022,2223/06,SME,N,
0000362279,PRIVATE LANDLORD,495.00,Guaranteed Rent Scheme,Rent Payable,05 Sep 2022,2223/06,SME,N,
0000362272,SHJ HOMES LTD,500.00,Guaranteed Rent Scheme,Rent Payable,05 Sep 2022,2223/06,SME,N,
0000362517,SHJ HOMES LTD,550.00,Guaranteed Rent Scheme,Rent Payable,15 Sep 2022,2223/06,SME,N,
0000362638,METRIC GROUP LTD,"8,440.52",Pld Maint/ Enhncmts-C Parks,"Equipment, Tools & Materials",20 Sep 2022,2223/06,SME,N,
0000362666,KEYS REMOVALS LTD,830.00,Homeless Prevention Fund,Removal Expenses,06 Sep 2022,2223/06,SME,N,
0000362776,PREMIER EDUCATION,"2,933.34",Holiday Activity Fund,"Equipment, Tools & Materials",28 Sep 2022,2223/06,SME,N,
0000362100,SHARPS ACOUSTICS LLP,"1,000.00",Devt Management - Apps,Environmental  Consultancy,31 Jul 2022,2223/06,SME,N,
0000362420,SHARPS ACOUSTICS LLP,300.00,Devt Management - Apps,Environmental  Consultancy,31 Aug 2022,2223/06,SME,N,
0000362782,1ST CLAYDON SCOUT GROUP,"1,000.00",Grants & Contrbns,Grants,28 Sep 2022,2223/06,SME,N,
0000362629,CEDARS PARK ART CIC,498.00,Transformation Fund,Contributions & Donations,21 Sep 2022,2223/06,SME,N,
0000362630,CEDARS PARK ART CIC,400.00,Transformation Fund,Contributions & Donations,21 Sep 2022,2223/06,SME,N,
0000362339,WALSHAM LE WILLOWS COMMUNITY COUNCIL,500.00,Grants & Contrbns,Contributions & Donations,06 Sep 2022,2223/06,SME,N,
0000362247,IVY LEGAL LTD,750.00,Organisational Devt,Training,01 Sep 2022,2223/06,SME,N,
0000362457,HAMILTON SMITH LETTINGS,775.00,Guaranteed Rent Scheme,Rent Payable,12 Sep 2022,2223/06,SME,N,
0000362460,HAMILTON SMITH LETTINGS,590.00,Guaranteed Rent Scheme,Rent Payable,12 Sep 2022,2223/06,SME,N,
0000362730,HAMILTON SMITH LETTINGS,500.00,Guaranteed Rent Scheme,Rent Payable,26 Sep 2022,2223/06,SME,N,
0000362731,HAMILTON SMITH LETTINGS,500.00,Guaranteed Rent Scheme,Rent Payable,26 Sep 2022,2223/06,SME,N,
0000362732,HAMILTON SMITH LETTINGS,500.00,Guaranteed Rent Scheme,Rent Payable,26 Sep 2022,2223/06,SME,N,
0000422729,HAMILTON SMITH LETTINGS,550.00,Guaranteed Rent Scheme,Rent Payable,12 Sep 2022,2223/06,SME,N,
0000362745,THE RESPUBLICA PARTNERSHIP LTD,"24,500.00",MSM Skills & Innovation Centre,Prof & Consultancy Fees,24 Aug 2022,2223/06,SME,N,
0000362493,PAY 360 LIMITED,"4,310.45",Bank Chgs,Bank Charges,12 Sep 2022,2223/06,LGE,N,
0000362639,THE FOOD MUSEUM LTD,"7,140.00",Holiday Activity Fund,"Equipment, Tools & Materials",21 Sep 2022,2223/06,SME,N,
0000362784,THE FOOD MUSEUM LTD,"2,595.00",Holiday Activity Fund,"Equipment, Tools & Materials",28 Sep 2022,2223/06,SME,N,
0000362508,FOOTBALL FUN FACTORY (COMMUNITY 011) LTD,"4,200.00",Holiday Activity Fund,"Equipment, Tools & Materials",13 Sep 2022,2223/06,SME,N,
0000362720,FOOTBALL FUN FACTORY (COMMUNITY 011) LTD,"2,572.50",Holiday Activity Fund,"Equipment, Tools & Materials",26 Sep 2022,2223/06,SME,N,
0000362646,ELITE TEACHING LTD,"2,385.50",Holiday Activity Fund,"Equipment, Tools & Materials",21 Sep 2022,2223/06,SME,N,
0000362208,OSBORNE CLARKE LLP,"1,738.00",Organisational Devt,Legal Expenses,20 Jul 2022,2223/06,LGE,Y,50%
0000362644,ESIA CONSULT LIMITED,"4,455.00",Devt Management - Apps,Prof & Consultancy Fees,21 Sep 2022,2223/06,SME,N,
0000362505,SCOTTISH POWER,177.66,Tenancy Services,Electricity,29 Aug 2022,2223/06,LGE,N,
0000362505,SCOTTISH POWER,341.87,Tenancy Services,Gas,29 Aug 2022,2223/06,LGE,N,
0000362506,SCOTTISH POWER,146.18,Tenancy Services,Electricity,22 Aug 2022,2223/06,LGE,N,
0000362506,SCOTTISH POWER,174.23,Tenancy Services,Gas,22 Aug 2022,2223/06,LGE,N,
0000362477,DTS EAST LTD T/A HUDSON SIGN SOLUTIONS,945.00,Needham Lake Vis Centre (CAP),Prof & Consultancy Fees,18 May 2022,2223/06,SME,N,
0000362345,PRIVATE LANDLORD,900.00,Guaranteed Rent Scheme,Rent Payable,05 Sep 2022,2223/06,SME,N,
0000362281,PRIVATE LANDLORD,875.00,Guaranteed Rent Scheme,Rent Payable,05 Sep 2022,2223/06,ST,N,
0000362205,GUARDA LTD,"2,550.00",Devt Management - Apps,Landscape Consultancy,28 Jun 2022,2223/06,SME,N,
0000362733,BENICIA PROPERTIES LTD,650.00,Guaranteed Rent Scheme,Rent Payable,26 Sep 2022,2223/06,SME,N,
0000422728,BENICIA PROPERTIES LTD,650.00,Guaranteed Rent Scheme,Rent Payable,08 Sep 2022,2223/06,SME,N,
0000422728,BENICIA PROPERTIES LTD,"1,500.00",Guaranteed Rent Scheme,Misc Supplies & Services Costs,08 Sep 2022,2223/06,SME,N,
0000362201,GRANTHAM INDUSTRIES LTD T/A GBM DEMOLITI,"10,788.28",Paddock House Eye,Prof & Consultancy Fees,31 Jul 2022,2223/06,SME,N,
0000362201,GRANTHAM INDUSTRIES LTD T/A GBM DEMOLITI,"-2,157.66",Current Assets,VAT-DRs (Output),31 Jul 2022,2223/06,SME,N,
0000362713,PRIVATE LANDLORD,800.00,Guaranteed Rent Scheme,Rent Payable,26 Sep 2022,2223/06,ST,N,
0000422718,PRIVATE LANDLORD,"2,300.00",Guaranteed Rent Scheme,Rent Payable,31 Aug 2022,2223/06,ST,N,
0000362546,PLACECUBE LTD,"148,000.00",Addl Projects,Major Contracts,15 Sep 2022,2223/06,SME,Y,50%
0000362282,EASY STORAGE,799.40,Household Support Grant,Misc Supplies & Services Costs,05 Sep 2022,2223/06,SME,N,
0000362348,ST MARYS PAROCHIAL CC WALSHAM LE WILLOWS,"1,000.00",Grants & Contrbns,Contributions & Donations,06 Sep 2022,2223/06,SME,N,
0000362668,WILD HERITAGE SUFFOLK,500.00,Grants & Contrbns,Contributions & Donations,22 Sep 2022,2223/06,SME,N,
0000362385,AESTIMA LTD,730.00,Building Services,Payments to Tenants,31 Aug 2022,2223/06,SME,N,
0000422730,PRIVATE LANDLORD,"1,500.00",Guaranteed Rent Scheme,Misc Supplies & Services Costs,12 Sep 2022,2223/06,SME,N,
0000362579,NEWSQUEST MEDIA GROUP,610.29,Devt Management - Apps,Advertising&mkting (non-staff),15 Sep 2022,2223/06,LGE,N,
0000000960,ANGLIAN WATER,-823.86,Tenancy Services,Water Rates - Metered,02 Sep 2022,2223/06,LGE,N,
0000000270,ELMHURST ENERGY SYSTEMS LTD - DD,-14.20,Bldg Control Commercial Income,Contracted Services,02 Sep 2022,2223/06,SME,N,
0000362654,KNOWLES ASSOCIATES TFM LTD,-15.84,Building Services,Lease Cars - Payment,22 Sep 2022,2223/06,SME,Y,50%
0000362656,KNOWLES ASSOCIATES TFM LTD,-15.84,Building Services,Lease Cars - Payment,22 Sep 2022,2223/06,SME,Y,50%
0000000962,PORTAL PLAN QUEST LTD,34.00,Devt Management -Applications,Planning Fees,02 Sep 2022,2223/06,SME,N,
0000000963,PORTAL PLAN QUEST LTD,34.00,Devt Management - Apps,Planning Fees,02 Sep 2022,2223/06,SME,N,
0000000964,PORTAL PLAN QUEST LTD,-34.00,Devt Management - Apps,Planning Fees,02 Sep 2022,2223/06,SME,N,
0000000965,PORTAL PLAN QUEST LTD,-34.00,Devt Management -Applications,Planning Fees,02 Sep 2022,2223/06,SME,N,
0000000966,PORTAL PLAN QUEST LTD,34.00,Devt Management - Apps,Planning Fees,02 Sep 2022,2223/06,SME,N,
0000000967,PORTAL PLAN QUEST LTD,34.00,Devt Management - Apps,Planning Fees,02 Sep 2022,2223/06,SME,N,
0000000968,PORTAL PLAN QUEST LTD,-34.00,Devt Management -Applications,Planning Fees,02 Sep 2022,2223/06,SME,N,
0000000969,PORTAL PLAN QUEST LTD,-34.00,Devt Management -Applications,Planning Fees,02 Sep 2022,2223/06,SME,N,
0000000971,PORTAL PLAN QUEST LTD,34.00,Devt Management -Applications,Planning Fees,02 Sep 2022,2223/06,SME,N,
0000000972,PORTAL PLAN QUEST LTD,-34.00,Devt Management - Apps,Planning Fees,02 Sep 2022,2223/06,SME,N,
0000422731,POLYSOLAR LTD,"-150,495.84",Public Sector Decarbonisation,Contracted Services,25 Feb 2022,2223/06,SME,N,
0000422733,POLYSOLAR LTD,"-107,352.85",Public Sector Decarbonisation,Contracted Services,28 Jan 2022,2223/06,SME,N,
0000422735,POLYSOLAR LTD,"-124,559.86",Public Sector Decarbonisation,Contracted Services,21 Dec 2021,2223/06,SME,N,
0000422810,POLYSOLAR LTD,"-172,037.86",Public Sector Decarbonisation,Contracted Services,01 Sep 2021,2223/06,SME,N,
0000000976,OVO ENERGY,-9.83,Voids Maintenance,Electricity,30 Sep 2022,2223/06,LGE,N,
0000000977,OVO ENERGY,9.83,Voids Maintenance,Electricity,30 Sep 2022,2223/06,LGE,N,
